{"text_format":"1","workbook":"xlsx","n_sheets":5,"sheets":["Accueil","liste_armee","images","carte","coordonnée"],"not_rendered":{"charts":0,"images":15,"macros":1,"external_links":0,"defined_names":4,"comments":1,"pivot_tables":0},"unopened":[],"bounds":{"document_bytes":16777216,"sheet_cells":100000,"rows_first":2000,"rows_last":500,"rows_between":2000,"halvings":0,"cell_chars":16384,"cell_head_chars":4096},"cells_cut":0,"cells_raw":0,"read":"whole","date_system":"1900"}

{"sheet":"Accueil","index":0,"n_rows":37,"n_cols":11,"rows_kept":37,"cut":false,"hidden":false,"merged":[]}
[]
[null,null,null,null,null,null,null,null,null,null,"http://www.dufric.com/RR/royaumes.php"]
[]
[]
[]
[]
[]
[]
[]
[]
[]
[]
[]
[]
[]
[]
[]
[]
[]
[]
[]
[]
[]
[]
[]
[]
[]
[]
[]
[]
[]
[]
[]
[]
[]
[]
[null,null,null,null,null,"© Wolfloner",null,"Spécials remerciment à Tototiti2008"]

{"sheet":"liste_armee","index":1,"n_rows":300,"n_cols":5,"rows_kept":300,"cut":false,"hidden":false,"merged":[]}
["Even","Image","Ville","LigneAdr","NbEt"]
[" Estela de Rason (Astrostol), aux portes de la ville le 2015-07-08 14:32:36\" src=\"images/oriflamme-2.gif\"><",{"$f":"IF(FIND(\"oriflamme\",A2),MID(RIGHT(A2,18),1,11),\"\")","v":"oriflamme-2"},"Albi",{"$f":"MATCH(SUBSTITUTE(C2,\" (Capitale)\",\"\"),OFFSET(Liste,,,,1),0)","v":199},{"$f":"SUMPRODUCT(NOT(ISERROR($B$2:$B2))*($C$2:$C2=C2))","v":1}]
[" Exército Tormenta dos inimigos -  (Ellinha), aux portes de la ville le 2015-06-21 22:44:37\" src=\"images/oriflamme-8.gif\"><",{"$f":"IF(FIND(\"oriflamme\",A3),MID(RIGHT(A3,18),1,11),\"\")","v":"oriflamme-8"},"Alcácer do Sal",{"$f":"MATCH(SUBSTITUTE(C3,\" (Capitale)\",\"\"),OFFSET(Liste,,,,1),0)","v":161},{"$f":"SUMPRODUCT(NOT(ISERROR($B$2:$B3))*($C$2:$C3=C3))","v":1}]
[" ALLEZ! (Sarah_linden), aux portes de la ville le 2015-05-26 09:19:52\" src=\"images/oriflamme-0.gif\"><",{"$f":"IF(FIND(\"oriflamme\",A4),MID(RIGHT(A4,18),1,11),\"\")","v":"oriflamme-0"},"Alcobaça",{"$f":"MATCH(SUBSTITUTE(C4,\" (Capitale)\",\"\"),OFFSET(Liste,,,,1),0)","v":154},{"$f":"SUMPRODUCT(NOT(ISERROR($B$2:$B4))*($C$2:$C4=C4))","v":1}]
[" Concussus surgo (Sepa), aux portes de la ville le 2015-08-05 04:47:16\" src=\"images/oriflamme-7.gif\"><",{"$f":"IF(FIND(\"oriflamme\",A5),MID(RIGHT(A5,18),1,11),\"\")","v":"oriflamme-7"},"Alençon (Capitale)",{"$f":"MATCH(SUBSTITUTE(C5,\" (Capitale)\",\"\"),OFFSET(Liste,,,,1),0)","v":234},{"$f":"SUMPRODUCT(NOT(ISERROR($B$2:$B5))*($C$2:$C5=C5))","v":1}]
[" Armata Brancaleone (Skioppo), aux portes de la ville le 2015-08-05 12:25:37\" src=\"images/oriflamme-4.gif\"><",{"$f":"IF(FIND(\"oriflamme\",A6),MID(RIGHT(A6,18),1,11),\"\")","v":"oriflamme-4"},"Alessandria",{"$f":"MATCH(SUBSTITUTE(C6,\" (Capitale)\",\"\"),OFFSET(Liste,,,,1),0)","v":328},{"$f":"SUMPRODUCT(NOT(ISERROR($B$2:$B6))*($C$2:$C6=C6))","v":1}]
[" NNGO IX - Baby Mama Drama (Snarkface), dans l'enceinte de la ville le 2015-05-24 11:11:12\" src=\"images/oriflamme-7.gif\"><",{"$f":"IF(FIND(\"oriflamme\",A7),MID(RIGHT(A7,18),1,11),\"\")","v":"oriflamme-7"},"An Gort (Capitale)",{"$f":"MATCH(SUBSTITUTE(C7,\" (Capitale)\",\"\"),OFFSET(Liste,,,,1),0)","v":41},{"$f":"SUMPRODUCT(NOT(ISERROR($B$2:$B7))*($C$2:$C7=C7))","v":1}]
[" Celtic Legion of Laighean (Flannacan), aux portes de la ville le 2014-12-30 00:45:47\" src=\"images/oriflamme-4.gif\"><",{"$f":"IF(FIND(\"oriflamme\",A8),MID(RIGHT(A8,18),1,11),\"\")","v":"oriflamme-4"},"An tInbhear Mór",{"$f":"MATCH(SUBSTITUTE(C8,\" (Capitale)\",\"\"),OFFSET(Liste,,,,1),0)","v":45},{"$f":"SUMPRODUCT(NOT(ISERROR($B$2:$B8))*($C$2:$C8=C8))","v":1}]
[" House Valdyr: Jomsvikings (Hector_valdyr), aux portes de la ville le 2014-12-30 00:45:47\" src=\"images/oriflamme-4.gif\"><",{"$f":"IF(FIND(\"oriflamme\",A9),MID(RIGHT(A9,18),1,11),\"\")","v":"oriflamme-4"},"An tInbhear Mór",{"$f":"MATCH(SUBSTITUTE(C9,\" (Capitale)\",\"\"),OFFSET(Liste,,,,1),0)","v":45},{"$f":"SUMPRODUCT(NOT(ISERROR($B$2:$B9))*($C$2:$C9=C9))","v":2}]
[" Laighean's Delta Force (Wild_one), aux portes de la ville le 2014-12-30 00:45:47\" src=\"images/oriflamme-4.gif\"><",{"$f":"IF(FIND(\"oriflamme\",A10),MID(RIGHT(A10,18),1,11),\"\")","v":"oriflamme-4"},"An tInbhear Mór",{"$f":"MATCH(SUBSTITUTE(C10,\" (Capitale)\",\"\"),OFFSET(Liste,,,,1),0)","v":45},{"$f":"SUMPRODUCT(NOT(ISERROR($B$2:$B10))*($C$2:$C10=C10))","v":3}]
[" Laighean Defense Force (John_ogrady), dans l'enceinte de la ville le 2014-12-30 00:45:47\" src=\"images/oriflamme-4.gif\"><",{"$f":"IF(FIND(\"oriflamme\",A11),MID(RIGHT(A11,18),1,11),\"\")","v":"oriflamme-4"},"An tInbhear Mór",{"$f":"MATCH(SUBSTITUTE(C11,\" (Capitale)\",\"\"),OFFSET(Liste,,,,1),0)","v":45},{"$f":"SUMPRODUCT(NOT(ISERROR($B$2:$B11))*($C$2:$C11=C11))","v":4}]
[" Legio domini caerulei de Norimberga (Katchet_von_ibelin), aux portes de la ville le 2015-03-23 11:17:47\" src=\"images/oriflamme-7.gif\"><",{"$f":"IF(FIND(\"oriflamme\",A12),MID(RIGHT(A12,18),1,11),\"\")","v":"oriflamme-7"},"Ansbach",{"$f":"MATCH(SUBSTITUTE(C12,\" (Capitale)\",\"\"),OFFSET(Liste,,,,1),0)","v":319},{"$f":"SUMPRODUCT(NOT(ISERROR($B$2:$B12))*($C$2:$C12=C12))","v":1}]
[" F.S.F (Niwiel), aux portes de la ville le 2015-08-05 07:19:42\" src=\"images/oriflamme-7.gif\"><",{"$f":"IF(FIND(\"oriflamme\",A13),MID(RIGHT(A13,18),1,11),\"\")","v":"oriflamme-7"},"Antwerpen",{"$f":"MATCH(SUBSTITUTE(C13,\" (Capitale)\",\"\"),OFFSET(Liste,,,,1),0)","v":190},{"$f":"SUMPRODUCT(NOT(ISERROR($B$2:$B13))*($C$2:$C13=C13))","v":1}]
[" The Fury Langoliers (Dar), aux portes de la ville le 2015-07-15 21:19:46\" src=\"images/oriflamme-2.gif\"><",{"$f":"IF(FIND(\"oriflamme\",A14),MID(RIGHT(A14,18),1,11),\"\")","v":"oriflamme-2"},"Ardencaple",{"$f":"MATCH(SUBSTITUTE(C14,\" (Capitale)\",\"\"),OFFSET(Liste,,,,1),0)","v":81},{"$f":"SUMPRODUCT(NOT(ISERROR($B$2:$B14))*($C$2:$C14=C14))","v":1}]
[" Swiffer (Coxynel), aux portes de la ville le 2015-08-05 07:00:57\" src=\"images/oriflamme-7.gif\"><",{"$f":"IF(FIND(\"oriflamme\",A15),MID(RIGHT(A15,18),1,11),\"\")","v":"oriflamme-7"},"Argonne",{"$f":"MATCH(SUBSTITUTE(C15,\" (Capitale)\",\"\"),OFFSET(Liste,,,,1),0)","v":265},{"$f":"SUMPRODUCT(NOT(ISERROR($B$2:$B15))*($C$2:$C15=C15))","v":1}]
[" Ab ira leonis (Eavan), aux portes de la ville le 2015-08-05 10:14:08\" src=\"images/oriflamme-0.gif\"><",{"$f":"IF(FIND(\"oriflamme\",A16),MID(RIGHT(A16,18),1,11),\"\")","v":"oriflamme-0"},"Arles",{"$f":"MATCH(SUBSTITUTE(C16,\" (Capitale)\",\"\"),OFFSET(Liste,,,,1),0)","v":325},{"$f":"SUMPRODUCT(NOT(ISERROR($B$2:$B16))*($C$2:$C16=C16))","v":1}]
[" Les Dragons Noirs Artésiens (Ade23), aux portes de la ville le 2015-08-03 20:47:06\" src=\"images/oriflamme-7.gif\"><",{"$f":"IF(FIND(\"oriflamme\",A17),MID(RIGHT(A17,18),1,11),\"\")","v":"oriflamme-7"},"Arras (Capitale)",{"$f":"MATCH(SUBSTITUTE(C17,\" (Capitale)\",\"\"),OFFSET(Liste,,,,1),0)","v":179},{"$f":"SUMPRODUCT(NOT(ISERROR($B$2:$B17))*($C$2:$C17=C17))","v":1}]
[" ABOC ! (Della), aux portes de la ville le 2015-08-05 08:31:14\" src=\"images/oriflamme-0.gif\"><",{"$f":"IF(FIND(\"oriflamme\",A18),MID(RIGHT(A18,18),1,11),\"\")","v":"oriflamme-0"},"Autun",{"$f":"MATCH(SUBSTITUTE(C18,\" (Capitale)\",\"\"),OFFSET(Liste,,,,1),0)","v":247},{"$f":"SUMPRODUCT(NOT(ISERROR($B$2:$B18))*($C$2:$C18=C18))","v":1}]
[" Utriusque Siciliae (Raffaelemagno), aux portes de la ville le 2015-08-03 18:07:08\" src=\"images/oriflamme-2.gif\"><",{"$f":"IF(FIND(\"oriflamme\",A19),MID(RIGHT(A19,18),1,11),\"\")","v":"oriflamme-2"},"Avezzano",{"$f":"MATCH(SUBSTITUTE(C19,\" (Capitale)\",\"\"),OFFSET(Liste,,,,1),0)","v":141},{"$f":"SUMPRODUCT(NOT(ISERROR($B$2:$B19))*($C$2:$C19=C19))","v":1}]
[" Normania (Leoric), aux portes de la ville le 2015-08-04 14:57:15\" src=\"images/oriflamme-1.gif\"><",{"$f":"IF(FIND(\"oriflamme\",A20),MID(RIGHT(A20,18),1,11),\"\")","v":"oriflamme-1"},"Avranches",{"$f":"MATCH(SUBSTITUTE(C20,\" (Capitale)\",\"\"),OFFSET(Liste,,,,1),0)","v":287},{"$f":"SUMPRODUCT(NOT(ISERROR($B$2:$B20))*($C$2:$C20=C20))","v":1}]
[" Ordu-yu Güneyli (Necropoliz), aux portes de la ville le 2015-06-24 10:07:52\" src=\"images/oriflamme-2.gif\"><",{"$f":"IF(FIND(\"oriflamme\",A21),MID(RIGHT(A21,18),1,11),\"\")","v":"oriflamme-2"},"Ayvalık",{"$f":"MATCH(SUBSTITUTE(C21,\" (Capitale)\",\"\"),OFFSET(Liste,,,,1),0)","v":125},{"$f":"SUMPRODUCT(NOT(ISERROR($B$2:$B21))*($C$2:$C21=C21))","v":1}]
[" Kurmainz (Heidn_ni_andrew), dans l'enceinte de la ville le 2015-04-27 18:19:14\" src=\"images/oriflamme-0.gif\"><",{"$f":"IF(FIND(\"oriflamme\",A22),MID(RIGHT(A22,18),1,11),\"\")","v":"oriflamme-0"},"Bad Mergentheim",{"$f":"MATCH(SUBSTITUTE(C22,\" (Capitale)\",\"\"),OFFSET(Liste,,,,1),0)","v":362},{"$f":"SUMPRODUCT(NOT(ISERROR($B$2:$B22))*($C$2:$C22=C22))","v":1}]
[" Asakir-i Mansure-i Muhammediyye (Lordserkan), aux portes de la ville le 2014-03-25 21:27:09\" src=\"images/oriflamme-5.gif\"><",{"$f":"IF(FIND(\"oriflamme\",A23),MID(RIGHT(A23,18),1,11),\"\")","v":"oriflamme-5"},"Balikesir (Capitale)",{"$f":"MATCH(SUBSTITUTE(C23,\" (Capitale)\",\"\"),OFFSET(Liste,,,,1),0)","v":126},{"$f":"SUMPRODUCT(NOT(ISERROR($B$2:$B23))*($C$2:$C23=C23))","v":1}]
[" Karesi Kurtuluş (Molla), dans l'enceinte de la ville le 2014-03-25 21:27:09\" src=\"images/oriflamme-4.gif\"><",{"$f":"IF(FIND(\"oriflamme\",A24),MID(RIGHT(A24,18),1,11),\"\")","v":"oriflamme-4"},"Balikesir (Capitale)",{"$f":"MATCH(SUBSTITUTE(C24,\" (Capitale)\",\"\"),OFFSET(Liste,,,,1),0)","v":126},{"$f":"SUMPRODUCT(NOT(ISERROR($B$2:$B24))*($C$2:$C24=C24))","v":2}]
[" Osmanlı Cihad Akıncıları (O.C.A) (Leonank), dans l'enceinte de la ville le 2014-08-26 21:15:51\" src=\"images/oriflamme-4.gif\"><",{"$f":"IF(FIND(\"oriflamme\",A25),MID(RIGHT(A25,18),1,11),\"\")","v":"oriflamme-4"},"Bandırma",{"$f":"MATCH(SUBSTITUTE(C25,\" (Capitale)\",\"\"),OFFSET(Liste,,,,1),0)","v":110},{"$f":"SUMPRODUCT(NOT(ISERROR($B$2:$B25))*($C$2:$C25=C25))","v":1}]
[" Companyia d'Entença (Rutger), aux portes de la ville le 2015-07-29 20:29:45\" src=\"images/oriflamme-1.gif\"><",{"$f":"IF(FIND(\"oriflamme\",A26),MID(RIGHT(A26,18),1,11),\"\")","v":"oriflamme-1"},"Barcelona (Capitale)",{"$f":"MATCH(SUBSTITUTE(C26,\" (Capitale)\",\"\"),OFFSET(Liste,,,,1),0)","v":17},{"$f":"SUMPRODUCT(NOT(ISERROR($B$2:$B26))*($C$2:$C26=C26))","v":1}]
[" Roger de Flor (Maties), aux portes de la ville le 2015-07-29 20:29:45\" src=\"images/oriflamme-7.gif\"><",{"$f":"IF(FIND(\"oriflamme\",A27),MID(RIGHT(A27,18),1,11),\"\")","v":"oriflamme-7"},"Barcelona (Capitale)",{"$f":"MATCH(SUBSTITUTE(C27,\" (Capitale)\",\"\"),OFFSET(Liste,,,,1),0)","v":17},{"$f":"SUMPRODUCT(NOT(ISERROR($B$2:$B27))*($C$2:$C27=C27))","v":2}]
[" La Renaissance Des Phoénix (Mayaii), aux portes de la ville le 2015-08-04 08:43:37\" src=\"images/oriflamme-0.gif\"><",{"$f":"IF(FIND(\"oriflamme\",A28),MID(RIGHT(A28,18),1,11),\"\")","v":"oriflamme-0"},"Bertincourt",{"$f":"MATCH(SUBSTITUTE(C28,\" (Capitale)\",\"\"),OFFSET(Liste,,,,1),0)","v":181},{"$f":"SUMPRODUCT(NOT(ISERROR($B$2:$B28))*($C$2:$C28=C28))","v":1}]
[" La Companhia Roge del Leon (Basile), aux portes de la ville le 2015-08-05 10:40:06\" src=\"images/oriflamme-0.gif\"><",{"$f":"IF(FIND(\"oriflamme\",A29),MID(RIGHT(A29,18),1,11),\"\")","v":"oriflamme-0"},"Bordeaux (Capitale)",{"$f":"MATCH(SUBSTITUTE(C29,\" (Capitale)\",\"\"),OFFSET(Liste,,,,1),0)","v":282},{"$f":"SUMPRODUCT(NOT(ISERROR($B$2:$B29))*($C$2:$C29=C29))","v":1}]
[" ♕☭✞ (Hec_desbaumes), aux portes de la ville le 2015-08-05 10:40:06\" src=\"images/oriflamme-2.gif\"><",{"$f":"IF(FIND(\"oriflamme\",A30),MID(RIGHT(A30,18),1,11),\"\")","v":"oriflamme-2"},"Bordeaux (Capitale)",{"$f":"MATCH(SUBSTITUTE(C30,\" (Capitale)\",\"\"),OFFSET(Liste,,,,1),0)","v":282},{"$f":"SUMPRODUCT(NOT(ISERROR($B$2:$B30))*($C$2:$C30=C30))","v":2}]
[" La Déterminée (Xalta), dans l'enceinte de la ville le 2015-08-05 10:40:06\" src=\"images/oriflamme-2.gif\"><",{"$f":"IF(FIND(\"oriflamme\",A31),MID(RIGHT(A31,18),1,11),\"\")","v":"oriflamme-2"},"Bordeaux (Capitale)",{"$f":"MATCH(SUBSTITUTE(C31,\" (Capitale)\",\"\"),OFFSET(Liste,,,,1),0)","v":282},{"$f":"SUMPRODUCT(NOT(ISERROR($B$2:$B31))*($C$2:$C31=C31))","v":3}]
[" La Rôdeuse (Raspoutine), aux portes de la ville le 2015-08-03 19:11:50\" src=\"images/oriflamme-7.gif\"><",{"$f":"IF(FIND(\"oriflamme\",A32),MID(RIGHT(A32,18),1,11),\"\")","v":"oriflamme-7"},"Bourganeuf",{"$f":"MATCH(SUBSTITUTE(C32,\" (Capitale)\",\"\"),OFFSET(Liste,,,,1),0)","v":213},{"$f":"SUMPRODUCT(NOT(ISERROR($B$2:$B32))*($C$2:$C32=C32))","v":1}]
[" A Vaillant Cueur (Alphonse.), dans l'enceinte de la ville le 2015-08-03 22:37:20\" src=\"images/oriflamme-0.gif\"><",{"$f":"IF(FIND(\"oriflamme\",A33),MID(RIGHT(A33,18),1,11),\"\")","v":"oriflamme-0"},"Bourges (Capitale)",{"$f":"MATCH(SUBSTITUTE(C33,\" (Capitale)\",\"\"),OFFSET(Liste,,,,1),0)","v":298},{"$f":"SUMPRODUCT(NOT(ISERROR($B$2:$B33))*($C$2:$C33=C33))","v":1}]
[" Armée du Léon (Chabada), dans l'enceinte de la ville le 2015-08-01 11:10:07\" src=\"images/oriflamme-5.gif\"><",{"$f":"IF(FIND(\"oriflamme\",A34),MID(RIGHT(A34,18),1,11),\"\")","v":"oriflamme-5"},"Brest",{"$f":"MATCH(SUBSTITUTE(C34,\" (Capitale)\",\"\"),OFFSET(Liste,,,,1),0)","v":256},{"$f":"SUMPRODUCT(NOT(ISERROR($B$2:$B34))*($C$2:$C34=C34))","v":1}]
["du Léon (Chabada), dans l'enceinte de la ville le 2015-08-01 11:10:07\" src=\"images/oriflamme-5.gif\"><",{"$f":"IF(FIND(\"oriflamme\",A35),MID(RIGHT(A35,18),1,11),\"\")","v":"oriflamme-5"},"Brest",{"$f":"MATCH(SUBSTITUTE(C35,\" (Capitale)\",\"\"),OFFSET(Liste,,,,1),0)","v":256},{"$f":"SUMPRODUCT(NOT(ISERROR($B$2:$B35))*($C$2:$C35=C35))","v":2}]
[" La Mistrale (Hersende), aux portes de la ville le 2015-08-05 12:46:07\" src=\"images/oriflamme-4.gif\"><",{"$f":"IF(FIND(\"oriflamme\",A36),MID(RIGHT(A36,18),1,11),\"\")","v":"oriflamme-4"},"Brignoles",{"$f":"MATCH(SUBSTITUTE(C36,\" (Capitale)\",\"\"),OFFSET(Liste,,,,1),0)","v":326},{"$f":"SUMPRODUCT(NOT(ISERROR($B$2:$B36))*($C$2:$C36=C36))","v":1}]
[" Devon First Regiment (Marslynn), aux portes de la ville le 2015-07-21 12:17:37\" src=\"images/oriflamme-0.gif\"><",{"$f":"IF(FIND(\"oriflamme\",A37),MID(RIGHT(A37,18),1,11),\"\")","v":"oriflamme-0"},"Bristol (Capitale)",{"$f":"MATCH(SUBSTITUTE(C37,\" (Capitale)\",\"\"),OFFSET(Liste,,,,1),0)","v":58},{"$f":"SUMPRODUCT(NOT(ISERROR($B$2:$B37))*($C$2:$C37=C37))","v":1}]
[" Furor Draconis Aurei (Timberjack), aux portes de la ville le 2015-07-23 21:59:29\" src=\"images/oriflamme-7.gif\"><",{"$f":"IF(FIND(\"oriflamme\",A38),MID(RIGHT(A38,18),1,11),\"\")","v":"oriflamme-7"},"Brštanik",{"$f":"MATCH(SUBSTITUTE(C38,\" (Capitale)\",\"\"),OFFSET(Liste,,,,1),0)","v":84},{"$f":"SUMPRODUCT(NOT(ISERROR($B$2:$B38))*($C$2:$C38=C38))","v":1}]
[" Prieure de Sion - Aureus Exercitus (Hiv_mocina), aux portes de la ville le 2015-07-23 21:59:29\" src=\"images/oriflamme-0.gif\"><",{"$f":"IF(FIND(\"oriflamme\",A39),MID(RIGHT(A39,18),1,11),\"\")","v":"oriflamme-0"},"Brštanik",{"$f":"MATCH(SUBSTITUTE(C39,\" (Capitale)\",\"\"),OFFSET(Liste,,,,1),0)","v":84},{"$f":"SUMPRODUCT(NOT(ISERROR($B$2:$B39))*($C$2:$C39=C39))","v":2}]
[" ZMAJ od BOSNE  (Devetak), aux portes de la ville le 2015-07-23 21:59:29\" src=\"images/oriflamme-2.gif\"><",{"$f":"IF(FIND(\"oriflamme\",A40),MID(RIGHT(A40,18),1,11),\"\")","v":"oriflamme-2"},"Brštanik",{"$f":"MATCH(SUBSTITUTE(C40,\" (Capitale)\",\"\"),OFFSET(Liste,,,,1),0)","v":84},{"$f":"SUMPRODUCT(NOT(ISERROR($B$2:$B40))*($C$2:$C40=C40))","v":3}]
[" Bosanska Narodna Garda  (Black2), dans l'enceinte de la ville le 2015-07-23 21:59:29\" src=\"images/oriflamme-5.gif\"><",{"$f":"IF(FIND(\"oriflamme\",A41),MID(RIGHT(A41,18),1,11),\"\")","v":"oriflamme-5"},"Brštanik",{"$f":"MATCH(SUBSTITUTE(C41,\" (Capitale)\",\"\"),OFFSET(Liste,,,,1),0)","v":84},{"$f":"SUMPRODUCT(NOT(ISERROR($B$2:$B41))*($C$2:$C41=C41))","v":4}]
[" In Proelio Leones (Asdrubal1), dans l'enceinte de la ville le 2015-07-07 19:25:50\" src=\"images/oriflamme-3.gif\"><",{"$f":"IF(FIND(\"oriflamme\",A42),MID(RIGHT(A42,18),1,11),\"\")","v":"oriflamme-3"},"Burgos (Capitale)",{"$f":"MATCH(SUBSTITUTE(C42,\" (Capitale)\",\"\"),OFFSET(Liste,,,,1),0)","v":35},{"$f":"SUMPRODUCT(NOT(ISERROR($B$2:$B42))*($C$2:$C42=C42))","v":1}]
[" Girudar-ı Özlem ÇAĞLAYAN  (End.ozzy), aux portes de la ville le 2015-06-29 10:54:39\" src=\"images/oriflamme-7.gif\"><",{"$f":"IF(FIND(\"oriflamme\",A43),MID(RIGHT(A43,18),1,11),\"\")","v":"oriflamme-7"},"Çanakkale",{"$f":"MATCH(SUBSTITUTE(C43,\" (Capitale)\",\"\"),OFFSET(Liste,,,,1),0)","v":124},{"$f":"SUMPRODUCT(NOT(ISERROR($B$2:$B43))*($C$2:$C43=C43))","v":1}]
[" NIZAM-I  CEDİD (Aykut), aux portes de la ville le 2015-06-29 10:54:39\" src=\"images/oriflamme-0.gif\"><",{"$f":"IF(FIND(\"oriflamme\",A44),MID(RIGHT(A44,18),1,11),\"\")","v":"oriflamme-0"},"Çanakkale",{"$f":"MATCH(SUBSTITUTE(C44,\" (Capitale)\",\"\"),OFFSET(Liste,,,,1),0)","v":124},{"$f":"SUMPRODUCT(NOT(ISERROR($B$2:$B44))*($C$2:$C44=C44))","v":2}]
[" Ordu-u Çağlayan (No62noexit), aux portes de la ville le 2015-06-29 10:54:39\" src=\"images/oriflamme-7.gif\"><",{"$f":"IF(FIND(\"oriflamme\",A45),MID(RIGHT(A45,18),1,11),\"\")","v":"oriflamme-7"},"Çanakkale",{"$f":"MATCH(SUBSTITUTE(C45,\" (Capitale)\",\"\"),OFFSET(Liste,,,,1),0)","v":124},{"$f":"SUMPRODUCT(NOT(ISERROR($B$2:$B45))*($C$2:$C45=C45))","v":3}]
[" Dracos Indivisa Manent (Eloli1), aux portes de la ville le 2015-07-19 12:15:52\" src=\"images/oriflamme-4.gif\"><",{"$f":"IF(FIND(\"oriflamme\",A46),MID(RIGHT(A46,18),1,11),\"\")","v":"oriflamme-4"},"Caspe",{"$f":"MATCH(SUBSTITUTE(C46,\" (Capitale)\",\"\"),OFFSET(Liste,,,,1),0)","v":15},{"$f":"SUMPRODUCT(NOT(ISERROR($B$2:$B46))*($C$2:$C46=C46))","v":1}]
[" GDC Semper Fidelis Dracones (Benedicto_chacon), dans l'enceinte de la ville le 2015-07-19 12:15:52\" src=\"images/oriflamme-1.gif\"><",{"$f":"IF(FIND(\"oriflamme\",A47),MID(RIGHT(A47,18),1,11),\"\")","v":"oriflamme-1"},"Caspe",{"$f":"MATCH(SUBSTITUTE(C47,\" (Capitale)\",\"\"),OFFSET(Liste,,,,1),0)","v":15},{"$f":"SUMPRODUCT(NOT(ISERROR($B$2:$B47))*($C$2:$C47=C47))","v":2}]
[" Borgne to be wild (Calembredaine), aux portes de la ville le 2015-08-05 08:08:03\" src=\"images/oriflamme-5.gif\"><",{"$f":"IF(FIND(\"oriflamme\",A48),MID(RIGHT(A48,18),1,11),\"\")","v":"oriflamme-5"},"Castres",{"$f":"MATCH(SUBSTITUTE(C48,\" (Capitale)\",\"\"),OFFSET(Liste,,,,1),0)","v":201},{"$f":"SUMPRODUCT(NOT(ISERROR($B$2:$B48))*($C$2:$C48=C48))","v":1}]
[" E Capoë (Cedrik1er), aux portes de la ville le 2015-08-04 19:58:26\" src=\"images/oriflamme-0.gif\"><",{"$f":"IF(FIND(\"oriflamme\",A49),MID(RIGHT(A49,18),1,11),\"\")","v":"oriflamme-0"},"Chambéry (Capitale)",{"$f":"MATCH(SUBSTITUTE(C49,\" (Capitale)\",\"\"),OFFSET(Liste,,,,1),0)","v":349},{"$f":"SUMPRODUCT(NOT(ISERROR($B$2:$B49))*($C$2:$C49=C49))","v":1}]
[" Vae Victis (Cesarphilippeauguste), aux portes de la ville le 2015-08-04 19:58:26\" src=\"images/oriflamme-0.gif\"><",{"$f":"IF(FIND(\"oriflamme\",A50),MID(RIGHT(A50,18),1,11),\"\")","v":"oriflamme-0"},"Chambéry (Capitale)",{"$f":"MATCH(SUBSTITUTE(C50,\" (Capitale)\",\"\"),OFFSET(Liste,,,,1),0)","v":349},{"$f":"SUMPRODUCT(NOT(ISERROR($B$2:$B50))*($C$2:$C50=C50))","v":2}]
[" Templar's Army of the Flaming Rose (Bhnapoleon), dans l'enceinte de la ville le 2015-07-28 18:06:24\" src=\"images/oriflamme-0.gif\"><",{"$f":"IF(FIND(\"oriflamme\",A51),MID(RIGHT(A51,18),1,11),\"\")","v":"oriflamme-0"},"Chard",{"$f":"MATCH(SUBSTITUTE(C51,\" (Capitale)\",\"\"),OFFSET(Liste,,,,1),0)","v":59},{"$f":"SUMPRODUCT(NOT(ISERROR($B$2:$B51))*($C$2:$C51=C51))","v":1}]
["  (Waves20), aux portes de la ville le 2015-08-03 21:01:36\" src=\"images/oriflamme-7.gif\"><",{"$f":"IF(FIND(\"oriflamme\",A52),MID(RIGHT(A52,18),1,11),\"\")","v":"oriflamme-7"},"Chieti",{"$f":"MATCH(SUBSTITUTE(C52,\" (Capitale)\",\"\"),OFFSET(Liste,,,,1),0)","v":142},{"$f":"SUMPRODUCT(NOT(ISERROR($B$2:$B52))*($C$2:$C52=C52))","v":1}]
[" Pacificatoria Sancti-Martia (Joachim_), aux portes de la ville le 2015-08-05 07:14:04\" src=\"images/oriflamme-0.gif\"><",{"$f":"IF(FIND(\"oriflamme\",A53),MID(RIGHT(A53,18),1,11),\"\")","v":"oriflamme-0"},"Chinon",{"$f":"MATCH(SUBSTITUTE(C53,\" (Capitale)\",\"\"),OFFSET(Liste,,,,1),0)","v":294},{"$f":"SUMPRODUCT(NOT(ISERROR($B$2:$B53))*($C$2:$C53=C53))","v":1}]
[" Shield of Laighean (Nursejosie), aux portes de la ville le 2015-08-02 16:14:29\" src=\"images/oriflamme-4.gif\"><",{"$f":"IF(FIND(\"oriflamme\",A54),MID(RIGHT(A54,18),1,11),\"\")","v":"oriflamme-4"},"Cill Chainnigh (Capitale)",{"$f":"MATCH(SUBSTITUTE(C54,\" (Capitale)\",\"\"),OFFSET(Liste,,,,1),0)","v":47},{"$f":"SUMPRODUCT(NOT(ISERROR($B$2:$B54))*($C$2:$C54=C54))","v":1}]
[" Laighean's Sentinal (Patrick.henry), dans l'enceinte de la ville le 2015-08-02 16:14:29\" src=\"images/oriflamme-4.gif\"><",{"$f":"IF(FIND(\"oriflamme\",A55),MID(RIGHT(A55,18),1,11),\"\")","v":"oriflamme-4"},"Cill Chainnigh (Capitale)",{"$f":"MATCH(SUBSTITUTE(C55,\" (Capitale)\",\"\"),OFFSET(Liste,,,,1),0)","v":47},{"$f":"SUMPRODUCT(NOT(ISERROR($B$2:$B55))*($C$2:$C55=C55))","v":2}]
[" My army name: Laighean Celtic Legion (Thecourtjester), dans l'enceinte de la ville le 2015-08-02 16:14:29\" src=\"images/oriflamme-4.gif\"><",{"$f":"IF(FIND(\"oriflamme\",A56),MID(RIGHT(A56,18),1,11),\"\")","v":"oriflamme-4"},"Cill Chainnigh (Capitale)",{"$f":"MATCH(SUBSTITUTE(C56,\" (Capitale)\",\"\"),OFFSET(Liste,,,,1),0)","v":47},{"$f":"SUMPRODUCT(NOT(ISERROR($B$2:$B56))*($C$2:$C56=C56))","v":3}]
[" 2º Esquadrão de Dragões (Rodolfo), aux portes de la ville le 2015-07-28 03:20:40\" src=\"images/oriflamme-1.gif\"><",{"$f":"IF(FIND(\"oriflamme\",A57),MID(RIGHT(A57,18),1,11),\"\")","v":"oriflamme-1"},"Coimbra (Capitale)",{"$f":"MATCH(SUBSTITUTE(C57,\" (Capitale)\",\"\"),OFFSET(Liste,,,,1),0)","v":156},{"$f":"SUMPRODUCT(NOT(ISERROR($B$2:$B57))*($C$2:$C57=C57))","v":1}]
[" NNGO XI - Psychedelic Cookies (Roxxane), dans l'enceinte de la ville le 2015-07-23 14:25:03\" src=\"images/oriflamme-7.gif\"><",{"$f":"IF(FIND(\"oriflamme\",A58),MID(RIGHT(A58,18),1,11),\"\")","v":"oriflamme-7"},"Corcaigh (Capitale)",{"$f":"MATCH(SUBSTITUTE(C58,\" (Capitale)\",\"\"),OFFSET(Liste,,,,1),0)","v":39},{"$f":"SUMPRODUCT(NOT(ISERROR($B$2:$B58))*($C$2:$C58=C58))","v":1}]
[" Armia Królewska (Meis), dans l'enceinte de la ville le 2015-07-20 07:46:11\" src=\"images/oriflamme-0.gif\"><",{"$f":"IF(FIND(\"oriflamme\",A59),MID(RIGHT(A59,18),1,11),\"\")","v":"oriflamme-0"},"Częstochowa",{"$f":"MATCH(SUBSTITUTE(C59,\" (Capitale)\",\"\"),OFFSET(Liste,,,,1),0)","v":103},{"$f":"SUMPRODUCT(NOT(ISERROR($B$2:$B59))*($C$2:$C59=C59))","v":1}]
[" Les Renards Blancs (Jetfaze), aux portes de la ville le 2015-08-02 16:22:49\" src=\"images/oriflamme-2.gif\"><",{"$f":"IF(FIND(\"oriflamme\",A60),MID(RIGHT(A60,18),1,11),\"\")","v":"oriflamme-2"},"Dax",{"$f":"MATCH(SUBSTITUTE(C60,\" (Capitale)\",\"\"),OFFSET(Liste,,,,1),0)","v":275},{"$f":"SUMPRODUCT(NOT(ISERROR($B$2:$B60))*($C$2:$C60=C60))","v":1}]
[" Sacred Military Constantinian Order of St. George (Laurent_gropaj), aux portes de la ville le 2015-07-22 23:41:46\" src=\"images/oriflamme-0.gif\"><",{"$f":"IF(FIND(\"oriflamme\",A61),MID(RIGHT(A61,18),1,11),\"\")","v":"oriflamme-0"},"Dénia",{"$f":"MATCH(SUBSTITUTE(C61,\" (Capitale)\",\"\"),OFFSET(Liste,,,,1),0)","v":55},{"$f":"SUMPRODUCT(NOT(ISERROR($B$2:$B61))*($C$2:$C61=C61))","v":1}]
[" La Maudificator (Wolfar), aux portes de la ville le 2015-08-05 10:37:56\" src=\"images/oriflamme-6.gif\"><",{"$f":"IF(FIND(\"oriflamme\",A62),MID(RIGHT(A62,18),1,11),\"\")","v":"oriflamme-6"},"Dijon (Capitale)",{"$f":"MATCH(SUBSTITUTE(C62,\" (Capitale)\",\"\"),OFFSET(Liste,,,,1),0)","v":250},{"$f":"SUMPRODUCT(NOT(ISERROR($B$2:$B62))*($C$2:$C62=C62))","v":1}]
[" Legio Burgundiae (Lenada), aux portes de la ville le 2015-08-05 10:37:56\" src=\"images/oriflamme-1.gif\"><",{"$f":"IF(FIND(\"oriflamme\",A63),MID(RIGHT(A63,18),1,11),\"\")","v":"oriflamme-1"},"Dijon (Capitale)",{"$f":"MATCH(SUBSTITUTE(C63,\" (Capitale)\",\"\"),OFFSET(Liste,,,,1),0)","v":250},{"$f":"SUMPRODUCT(NOT(ISERROR($B$2:$B63))*($C$2:$C63=C63))","v":2}]
[" L'Élégance du Bourguignon (Cardinal), dans l'enceinte de la ville le 2015-08-05 10:37:56\" src=\"images/oriflamme-3.gif\"><",{"$f":"IF(FIND(\"oriflamme\",A64),MID(RIGHT(A64,18),1,11),\"\")","v":"oriflamme-3"},"Dijon (Capitale)",{"$f":"MATCH(SUBSTITUTE(C64,\" (Capitale)\",\"\"),OFFSET(Liste,,,,1),0)","v":250},{"$f":"SUMPRODUCT(NOT(ISERROR($B$2:$B64))*($C$2:$C64=C64))","v":3}]
[" Cor Unum et Anima Una ! (Mousseline), aux portes de la ville le 2015-08-05 08:31:12\" src=\"images/oriflamme-8.gif\"><",{"$f":"IF(FIND(\"oriflamme\",A65),MID(RIGHT(A65,18),1,11),\"\")","v":"oriflamme-8"},"Dole (Capitale)",{"$f":"MATCH(SUBSTITUTE(C65,\" (Capitale)\",\"\"),OFFSET(Liste,,,,1),0)","v":355},{"$f":"SUMPRODUCT(NOT(ISERROR($B$2:$B65))*($C$2:$C65=C65))","v":1}]
["  DSZ Dubovacka samozastita  (Er138), aux portes de la ville le 2015-06-03 00:42:57\" src=\"images/oriflamme-4.gif\"><",{"$f":"IF(FIND(\"oriflamme\",A66),MID(RIGHT(A66,18),1,11),\"\")","v":"oriflamme-4"},"Dubovac (Capitale)",{"$f":"MATCH(SUBSTITUTE(C66,\" (Capitale)\",\"\"),OFFSET(Liste,,,,1),0)","v":86},{"$f":"SUMPRODUCT(NOT(ISERROR($B$2:$B66))*($C$2:$C66=C66))","v":1}]
[" Brotherhood (Ismail_bej_vlora), aux portes de la ville le 2015-07-27 16:10:24\" src=\"images/oriflamme-7.gif\"><",{"$f":"IF(FIND(\"oriflamme\",A67),MID(RIGHT(A67,18),1,11),\"\")","v":"oriflamme-7"},"Dyrrah",{"$f":"MATCH(SUBSTITUTE(C67,\" (Capitale)\",\"\"),OFFSET(Liste,,,,1),0)","v":108},{"$f":"SUMPRODUCT(NOT(ISERROR($B$2:$B67))*($C$2:$C67=C67))","v":1}]
[" Adalet-un Ahras (Excellence), aux portes de la ville le 2014-12-26 22:58:35\" src=\"images/oriflamme-0.gif\"><",{"$f":"IF(FIND(\"oriflamme\",A68),MID(RIGHT(A68,18),1,11),\"\")","v":"oriflamme-0"},"Edirne (Capitale)",{"$f":"MATCH(SUBSTITUTE(C68,\" (Capitale)\",\"\"),OFFSET(Liste,,,,1),0)","v":117},{"$f":"SUMPRODUCT(NOT(ISERROR($B$2:$B68))*($C$2:$C68=C68))","v":1}]
[" NiZAM-I CEDiD (Lazoglu), dans l'enceinte de la ville le 2014-12-26 22:58:35\" src=\"images/oriflamme-4.gif\"><",{"$f":"IF(FIND(\"oriflamme\",A69),MID(RIGHT(A69,18),1,11),\"\")","v":"oriflamme-4"},"Edirne (Capitale)",{"$f":"MATCH(SUBSTITUTE(C69,\" (Capitale)\",\"\"),OFFSET(Liste,,,,1),0)","v":117},{"$f":"SUMPRODUCT(NOT(ISERROR($B$2:$B69))*($C$2:$C69=C69))","v":2}]
[" Legio domini caerulei de Norimberga (Katchet_von_ibelin), dans l'enceinte de la ville le 2015-07-26 21:41:26\" src=\"images/oriflamme-7.gif\"><",{"$f":"IF(FIND(\"oriflamme\",A70),MID(RIGHT(A70,18),1,11),\"\")","v":"oriflamme-7"},"Eichstätt",{"$f":"MATCH(SUBSTITUTE(C70,\" (Capitale)\",\"\"),OFFSET(Liste,,,,1),0)","v":320},{"$f":"SUMPRODUCT(NOT(ISERROR($B$2:$B70))*($C$2:$C70=C70))","v":1}]
[" House Valdyr: Jomsvikings (Hector_valdyr), aux portes de la ville le 2015-03-23 16:40:51\" src=\"images/oriflamme-4.gif\"><",{"$f":"IF(FIND(\"oriflamme\",A71),MID(RIGHT(A71,18),1,11),\"\")","v":"oriflamme-4"},"Elvas",{"$f":"MATCH(SUBSTITUTE(C71,\" (Capitale)\",\"\"),OFFSET(Liste,,,,1),0)","v":164},{"$f":"SUMPRODUCT(NOT(ISERROR($B$2:$B71))*($C$2:$C71=C71))","v":1}]
[" The Fury Langoliers (Dar), aux portes de la ville le 2015-03-23 16:40:51\" src=\"images/oriflamme-2.gif\"><",{"$f":"IF(FIND(\"oriflamme\",A72),MID(RIGHT(A72,18),1,11),\"\")","v":"oriflamme-2"},"Elvas",{"$f":"MATCH(SUBSTITUTE(C72,\" (Capitale)\",\"\"),OFFSET(Liste,,,,1),0)","v":164},{"$f":"SUMPRODUCT(NOT(ISERROR($B$2:$B72))*($C$2:$C72=C72))","v":2}]
[" Első Magyar Hadtest (Vala_), dans l'enceinte de la ville le 2015-07-01 11:52:06\" src=\"images/oriflamme-1.gif\"><",{"$f":"IF(FIND(\"oriflamme\",A73),MID(RIGHT(A73,18),1,11),\"\")","v":"oriflamme-1"},"Esztergom (Capitale)",{"$f":"MATCH(SUBSTITUTE(C73,\" (Capitale)\",\"\"),OFFSET(Liste,,,,1),0)","v":89},{"$f":"SUMPRODUCT(NOT(ISERROR($B$2:$B73))*($C$2:$C73=C73))","v":1}]
[" Guardians of Laighean (Tanai), aux portes de la ville le 2015-04-16 20:40:42\" src=\"images/oriflamme-4.gif\"><",{"$f":"IF(FIND(\"oriflamme\",A74),MID(RIGHT(A74,18),1,11),\"\")","v":"oriflamme-4"},"Évora",{"$f":"MATCH(SUBSTITUTE(C74,\" (Capitale)\",\"\"),OFFSET(Liste,,,,1),0)","v":160},{"$f":"SUMPRODUCT(NOT(ISERROR($B$2:$B74))*($C$2:$C74=C74))","v":1}]
[" Royal Ermine (Azureus), aux portes de la ville le 2015-04-16 20:41:08\" src=\"images/oriflamme-2.gif\"><",{"$f":"IF(FIND(\"oriflamme\",A75),MID(RIGHT(A75,18),1,11),\"\")","v":"oriflamme-2"},"Falun",{"$f":"MATCH(SUBSTITUTE(C75,\" (Capitale)\",\"\"),OFFSET(Liste,,,,1),0)","v":51},{"$f":"SUMPRODUCT(NOT(ISERROR($B$2:$B75))*($C$2:$C75=C75))","v":1}]
[" Invictus (Squall91), aux portes de la ville le 2015-08-04 15:51:43\" src=\"images/oriflamme-4.gif\"><",{"$f":"IF(FIND(\"oriflamme\",A76),MID(RIGHT(A76,18),1,11),\"\")","v":"oriflamme-4"},"Fécamp",{"$f":"MATCH(SUBSTITUTE(C76,\" (Capitale)\",\"\"),OFFSET(Liste,,,,1),0)","v":290},{"$f":"SUMPRODUCT(NOT(ISERROR($B$2:$B76))*($C$2:$C76=C76))","v":1}]
[" Second Sons (Konstantin), aux portes de la ville le 2015-08-05 11:53:47\" src=\"images/oriflamme-0.gif\"><",{"$f":"IF(FIND(\"oriflamme\",A77),MID(RIGHT(A77,18),1,11),\"\")","v":"oriflamme-0"},"Firenze (Capitale)",{"$f":"MATCH(SUBSTITUTE(C77,\" (Capitale)\",\"\"),OFFSET(Liste,,,,1),0)","v":411},{"$f":"SUMPRODUCT(NOT(ISERROR($B$2:$B77))*($C$2:$C77=C77))","v":1}]
[" Nec Recisa Recedit (Tintoretto), dans l'enceinte de la ville le 2015-08-05 11:53:47\" src=\"images/oriflamme-7.gif\"><",{"$f":"IF(FIND(\"oriflamme\",A78),MID(RIGHT(A78,18),1,11),\"\")","v":"oriflamme-7"},"Firenze (Capitale)",{"$f":"MATCH(SUBSTITUTE(C78,\" (Capitale)\",\"\"),OFFSET(Liste,,,,1),0)","v":411},{"$f":"SUMPRODUCT(NOT(ISERROR($B$2:$B78))*($C$2:$C78=C78))","v":2}]
[" Exercitus in Alpium (Doppiagolf), aux portes de la ville le 2015-08-05 12:45:15\" src=\"images/oriflamme-4.gif\"><",{"$f":"IF(FIND(\"oriflamme\",A79),MID(RIGHT(A79,18),1,11),\"\")","v":"oriflamme-4"},"Fornovo",{"$f":"MATCH(SUBSTITUTE(C79,\" (Capitale)\",\"\"),OFFSET(Liste,,,,1),0)","v":330},{"$f":"SUMPRODUCT(NOT(ISERROR($B$2:$B79))*($C$2:$C79=C79))","v":1}]
[" Sancho I de Aragon (Kayn.), aux portes de la ville le 2015-08-04 22:03:20\" src=\"images/oriflamme-0.gif\"><",{"$f":"IF(FIND(\"oriflamme\",A80),MID(RIGHT(A80,18),1,11),\"\")","v":"oriflamme-0"},"Fraga",{"$f":"MATCH(SUBSTITUTE(C80,\" (Capitale)\",\"\"),OFFSET(Liste,,,,1),0)","v":25},{"$f":"SUMPRODUCT(NOT(ISERROR($B$2:$B80))*($C$2:$C80=C80))","v":1}]
[" Shield of Gefle (Sepophan), aux portes de la ville le 2015-05-03 05:16:02\" src=\"images/oriflamme-1.gif\"><",{"$f":"IF(FIND(\"oriflamme\",A81),MID(RIGHT(A81,18),1,11),\"\")","v":"oriflamme-1"},"Gefle (Capitale)",{"$f":"MATCH(SUBSTITUTE(C81,\" (Capitale)\",\"\"),OFFSET(Liste,,,,1),0)","v":52},{"$f":"SUMPRODUCT(NOT(ISERROR($B$2:$B81))*($C$2:$C81=C81))","v":1}]
[" Ordu-u Çağlayan (No62noexit), aux portes de la ville le 2015-03-21 01:06:07\" src=\"images/oriflamme-7.gif\"><",{"$f":"IF(FIND(\"oriflamme\",A82),MID(RIGHT(A82,18),1,11),\"\")","v":"oriflamme-7"},"Gelibolu",{"$f":"MATCH(SUBSTITUTE(C82,\" (Capitale)\",\"\"),OFFSET(Liste,,,,1),0)","v":118},{"$f":"SUMPRODUCT(NOT(ISERROR($B$2:$B82))*($C$2:$C82=C82))","v":1}]
[" Osmanli Ticaret Bankasi (Tacir), aux portes de la ville le 2015-02-22 21:22:38\" src=\"images/oriflamme-0.gif\"><",{"$f":"IF(FIND(\"oriflamme\",A83),MID(RIGHT(A83,18),1,11),\"\")","v":"oriflamme-0"},"Gemlik (Capitale)",{"$f":"MATCH(SUBSTITUTE(C83,\" (Capitale)\",\"\"),OFFSET(Liste,,,,1),0)","v":112},{"$f":"SUMPRODUCT(NOT(ISERROR($B$2:$B83))*($C$2:$C83=C83))","v":1}]
[" Sancak Muhafız Ordusu  (Mturkkan), aux portes de la ville le 2015-02-22 21:22:38\" src=\"images/oriflamme-0.gif\"><",{"$f":"IF(FIND(\"oriflamme\",A84),MID(RIGHT(A84,18),1,11),\"\")","v":"oriflamme-0"},"Gemlik (Capitale)",{"$f":"MATCH(SUBSTITUTE(C84,\" (Capitale)\",\"\"),OFFSET(Liste,,,,1),0)","v":112},{"$f":"SUMPRODUCT(NOT(ISERROR($B$2:$B84))*($C$2:$C84=C84))","v":2}]
[" UKAB Bursa Sancagi (Kehanet), aux portes de la ville le 2015-02-22 21:22:38\" src=\"images/oriflamme-7.gif\"><",{"$f":"IF(FIND(\"oriflamme\",A85),MID(RIGHT(A85,18),1,11),\"\")","v":"oriflamme-7"},"Gemlik (Capitale)",{"$f":"MATCH(SUBSTITUTE(C85,\" (Capitale)\",\"\"),OFFSET(Liste,,,,1),0)","v":112},{"$f":"SUMPRODUCT(NOT(ISERROR($B$2:$B85))*($C$2:$C85=C85))","v":3}]
[" Fatum (Wood.), aux portes de la ville le 2015-08-03 22:10:03\" src=\"images/oriflamme-7.gif\"><",{"$f":"IF(FIND(\"oriflamme\",A86),MID(RIGHT(A86,18),1,11),\"\")","v":"oriflamme-7"},"Genève",{"$f":"MATCH(SUBSTITUTE(C86,\" (Capitale)\",\"\"),OFFSET(Liste,,,,1),0)","v":426},{"$f":"SUMPRODUCT(NOT(ISERROR($B$2:$B86))*($C$2:$C86=C86))","v":1}]
[" Guardia della Repubblica (Ventitre), aux portes de la ville le 2015-08-04 10:26:32\" src=\"images/oriflamme-2.gif\"><",{"$f":"IF(FIND(\"oriflamme\",A87),MID(RIGHT(A87,18),1,11),\"\")","v":"oriflamme-2"},"Genova (Capitale)",{"$f":"MATCH(SUBSTITUTE(C87,\" (Capitale)\",\"\"),OFFSET(Liste,,,,1),0)","v":402},{"$f":"SUMPRODUCT(NOT(ISERROR($B$2:$B87))*($C$2:$C87=C87))","v":1}]
[" Legio IX Dragonis (Diablo_97), dans l'enceinte de la ville le 2015-08-04 10:26:32\" src=\"images/oriflamme-1.gif\"><",{"$f":"IF(FIND(\"oriflamme\",A88),MID(RIGHT(A88,18),1,11),\"\")","v":"oriflamme-1"},"Genova (Capitale)",{"$f":"MATCH(SUBSTITUTE(C88,\" (Capitale)\",\"\"),OFFSET(Liste,,,,1),0)","v":402},{"$f":"SUMPRODUCT(NOT(ISERROR($B$2:$B88))*($C$2:$C88=C88))","v":2}]
[" Girvan Fingauls (Wardorf_hooper), dans l'enceinte de la ville le 2015-07-31 18:02:39\" src=\"images/oriflamme-5.gif\"><",{"$f":"IF(FIND(\"oriflamme\",A89),MID(RIGHT(A89,18),1,11),\"\")","v":"oriflamme-5"},"Girvan",{"$f":"MATCH(SUBSTITUTE(C89,\" (Capitale)\",\"\"),OFFSET(Liste,,,,1),0)","v":77},{"$f":"SUMPRODUCT(NOT(ISERROR($B$2:$B89))*($C$2:$C89=C89))","v":1}]
[" Fist Of Fury (Seldomseen), aux portes de la ville le 2015-08-05 02:45:29\" src=\"images/oriflamme-2.gif\"><",{"$f":"IF(FIND(\"oriflamme\",A90),MID(RIGHT(A90,18),1,11),\"\")","v":"oriflamme-2"},"Glasgow (Capitale)",{"$f":"MATCH(SUBSTITUTE(C90,\" (Capitale)\",\"\"),OFFSET(Liste,,,,1),0)","v":82},{"$f":"SUMPRODUCT(NOT(ISERROR($B$2:$B90))*($C$2:$C90=C90))","v":1}]
[" Robinhood's Merry Men (Kat.), aux portes de la ville le 2015-08-05 02:45:29\" src=\"images/oriflamme-0.gif\"><",{"$f":"IF(FIND(\"oriflamme\",A91),MID(RIGHT(A91,18),1,11),\"\")","v":"oriflamme-0"},"Glasgow (Capitale)",{"$f":"MATCH(SUBSTITUTE(C91,\" (Capitale)\",\"\"),OFFSET(Liste,,,,1),0)","v":82},{"$f":"SUMPRODUCT(NOT(ISERROR($B$2:$B91))*($C$2:$C91=C91))","v":2}]
[" La Bocane (Sparo.), dans l'enceinte de la ville le 2015-08-05 05:54:16\" src=\"images/oriflamme-4.gif\"><",{"$f":"IF(FIND(\"oriflamme\",A92),MID(RIGHT(A92,18),1,11),\"\")","v":"oriflamme-4"},"Grandson",{"$f":"MATCH(SUBSTITUTE(C92,\" (Capitale)\",\"\"),OFFSET(Liste,,,,1),0)","v":421},{"$f":"SUMPRODUCT(NOT(ISERROR($B$2:$B92))*($C$2:$C92=C92))","v":1}]
[" Ad me de custodibus (Sir_aragorn), aux portes de la ville le 2015-08-04 19:59:50\" src=\"images/oriflamme-1.gif\"><",{"$f":"IF(FIND(\"oriflamme\",A93),MID(RIGHT(A93,18),1,11),\"\")","v":"oriflamme-1"},"Grosseto",{"$f":"MATCH(SUBSTITUTE(C93,\" (Capitale)\",\"\"),OFFSET(Liste,,,,1),0)","v":406},{"$f":"SUMPRODUCT(NOT(ISERROR($B$2:$B93))*($C$2:$C93=C93))","v":1}]
[" Apokolokyntosis (Hermes), aux portes de la ville le 2015-08-04 19:59:50\" src=\"images/oriflamme-4.gif\"><",{"$f":"IF(FIND(\"oriflamme\",A94),MID(RIGHT(A94,18),1,11),\"\")","v":"oriflamme-4"},"Grosseto",{"$f":"MATCH(SUBSTITUTE(C94,\" (Capitale)\",\"\"),OFFSET(Liste,,,,1),0)","v":406},{"$f":"SUMPRODUCT(NOT(ISERROR($B$2:$B94))*($C$2:$C94=C94))","v":2}]
[" Legio IX Draco (Sacred90), aux portes de la ville le 2015-08-04 19:59:50\" src=\"images/oriflamme-0.gif\"><",{"$f":"IF(FIND(\"oriflamme\",A95),MID(RIGHT(A95,18),1,11),\"\")","v":"oriflamme-0"},"Grosseto",{"$f":"MATCH(SUBSTITUTE(C95,\" (Capitale)\",\"\"),OFFSET(Liste,,,,1),0)","v":406},{"$f":"SUMPRODUCT(NOT(ISERROR($B$2:$B95))*($C$2:$C95=C95))","v":3}]
[" Harmadik Magyar Hadtest (Shedunul), dans l'enceinte de la ville le 2015-08-02 13:09:44\" src=\"images/oriflamme-4.gif\"><",{"$f":"IF(FIND(\"oriflamme\",A96),MID(RIGHT(A96,18),1,11),\"\")","v":"oriflamme-4"},"Győr",{"$f":"MATCH(SUBSTITUTE(C96,\" (Capitale)\",\"\"),OFFSET(Liste,,,,1),0)","v":90},{"$f":"SUMPRODUCT(NOT(ISERROR($B$2:$B96))*($C$2:$C96=C96))","v":1}]
[" Sussex Rangers; 3rd Division (Joels.joe), aux portes de la ville le 2015-07-24 18:44:39\" src=\"images/oriflamme-0.gif\"><",{"$f":"IF(FIND(\"oriflamme\",A97),MID(RIGHT(A97,18),1,11),\"\")","v":"oriflamme-0"},"Hastings (Capitale)",{"$f":"MATCH(SUBSTITUTE(C97,\" (Capitale)\",\"\"),OFFSET(Liste,,,,1),0)","v":69},{"$f":"SUMPRODUCT(NOT(ISERROR($B$2:$B97))*($C$2:$C97=C97))","v":1}]
[" Wacht am Neckar (Anettchen), aux portes de la ville le 2015-06-25 18:22:13\" src=\"images/oriflamme-5.gif\"><",{"$f":"IF(FIND(\"oriflamme\",A98),MID(RIGHT(A98,18),1,11),\"\")","v":"oriflamme-5"},"Heilbronn",{"$f":"MATCH(SUBSTITUTE(C98,\" (Capitale)\",\"\"),OFFSET(Liste,,,,1),0)","v":377},{"$f":"SUMPRODUCT(NOT(ISERROR($B$2:$B98))*($C$2:$C98=C98))","v":1}]
[" Jægerkorpset (Rufusdufus), aux portes de la ville le 2015-06-25 09:05:40\" src=\"images/oriflamme-0.gif\"><",{"$f":"IF(FIND(\"oriflamme\",A99),MID(RIGHT(A99,18),1,11),\"\")","v":"oriflamme-0"},"Helsingør (Capitale)",{"$f":"MATCH(SUBSTITUTE(C99,\" (Capitale)\",\"\"),OFFSET(Liste,,,,1),0)","v":50},{"$f":"SUMPRODUCT(NOT(ISERROR($B$2:$B99))*($C$2:$C99=C99))","v":1}]
[" WmTF - Band of the Crescent Hawk (Lylefujin), aux portes de la ville le 2015-08-04 00:46:21\" src=\"images/oriflamme-4.gif\"><",{"$f":"IF(FIND(\"oriflamme\",A100),MID(RIGHT(A100,18),1,11),\"\")","v":"oriflamme-4"},"Holywell",{"$f":"MATCH(SUBSTITUTE(C100,\" (Capitale)\",\"\"),OFFSET(Liste,,,,1),0)","v":71},{"$f":"SUMPRODUCT(NOT(ISERROR($B$2:$B100))*($C$2:$C100=C100))","v":1}]
[" Sancho I de Aragon (Kayn.), aux portes de la ville le 2015-07-21 20:04:59\" src=\"images/oriflamme-0.gif\"><",{"$f":"IF(FIND(\"oriflamme\",A101),MID(RIGHT(A101,18),1,11),\"\")","v":"oriflamme-0"},"Huesca",{"$f":"MATCH(SUBSTITUTE(C101,\" (Capitale)\",\"\"),OFFSET(Liste,,,,1),0)","v":26},{"$f":"SUMPRODUCT(NOT(ISERROR($B$2:$B101))*($C$2:$C101=C101))","v":1}]
[" Franzosenver (Bolord), aux portes de la ville le 2015-08-05 05:04:48\" src=\"images/oriflamme-1.gif\"><",{"$f":"IF(FIND(\"oriflamme\",A102),MID(RIGHT(A102,18),1,11),\"\")","v":"oriflamme-1"},"Ingolstadt",{"$f":"MATCH(SUBSTITUTE(C102,\" (Capitale)\",\"\"),OFFSET(Liste,,,,1),0)","v":390},{"$f":"SUMPRODUCT(NOT(ISERROR($B$2:$B102))*($C$2:$C102=C102))","v":1}]
[" Imp's Ymps (Imshi), aux portes de la ville le 2015-06-02 04:42:17\" src=\"images/oriflamme-8.gif\"><",{"$f":"IF(FIND(\"oriflamme\",A103),MID(RIGHT(A103,18),1,11),\"\")","v":"oriflamme-8"},"Kendal (Capitale)",{"$f":"MATCH(SUBSTITUTE(C103,\" (Capitale)\",\"\"),OFFSET(Liste,,,,1),0)","v":73},{"$f":"SUMPRODUCT(NOT(ISERROR($B$2:$B103))*($C$2:$C103=C103))","v":1}]
[" Legion Krakowski (Godfryd), dans l'enceinte de la ville le 2015-05-02 11:24:55\" src=\"images/oriflamme-0.gif\"><",{"$f":"IF(FIND(\"oriflamme\",A104),MID(RIGHT(A104,18),1,11),\"\")","v":"oriflamme-0"},"Kraków (Capitale)",{"$f":"MATCH(SUBSTITUTE(C104,\" (Capitale)\",\"\"),OFFSET(Liste,,,,1),0)","v":92},{"$f":"SUMPRODUCT(NOT(ISERROR($B$2:$B104))*($C$2:$C104=C104))","v":1}]
[" Les Atlantes de La Rochelle (Gauvhin), aux portes de la ville le 2015-08-05 07:48:00\" src=\"images/oriflamme-1.gif\"><",{"$f":"IF(FIND(\"oriflamme\",A105),MID(RIGHT(A105,18),1,11),\"\")","v":"oriflamme-1"},"La Rochelle",{"$f":"MATCH(SUBSTITUTE(C105,\" (Capitale)\",\"\"),OFFSET(Liste,,,,1),0)","v":228},{"$f":"SUMPRODUCT(NOT(ISERROR($B$2:$B105))*($C$2:$C105=C105))","v":1}]
[" Giudizio Divino (Electronmaster), aux portes de la ville le 2015-08-03 07:27:28\" src=\"images/oriflamme-0.gif\"><",{"$f":"IF(FIND(\"oriflamme\",A106),MID(RIGHT(A106,18),1,11),\"\")","v":"oriflamme-0"},"La Spezia",{"$f":"MATCH(SUBSTITUTE(C106,\" (Capitale)\",\"\"),OFFSET(Liste,,,,1),0)","v":403},{"$f":"SUMPRODUCT(NOT(ISERROR($B$2:$B106))*($C$2:$C106=C106))","v":1}]
[" Tsunami (Tornade), aux portes de la ville le 2015-08-05 09:50:54\" src=\"images/oriflamme-5.gif\"><",{"$f":"IF(FIND(\"oriflamme\",A107),MID(RIGHT(A107,18),1,11),\"\")","v":"oriflamme-5"},"La Trémouille",{"$f":"MATCH(SUBSTITUTE(C107,\" (Capitale)\",\"\"),OFFSET(Liste,,,,1),0)","v":229},{"$f":"SUMPRODUCT(NOT(ISERROR($B$2:$B107))*($C$2:$C107=C107))","v":1}]
[" Les Lames d'Amahir (Lexhor), aux portes de la ville le 2015-08-05 11:41:26\" src=\"images/oriflamme-5.gif\"><",{"$f":"IF(FIND(\"oriflamme\",A108),MID(RIGHT(A108,18),1,11),\"\")","v":"oriflamme-5"},"Langres",{"$f":"MATCH(SUBSTITUTE(C108,\" (Capitale)\",\"\"),OFFSET(Liste,,,,1),0)","v":269},{"$f":"SUMPRODUCT(NOT(ISERROR($B$2:$B108))*($C$2:$C108=C108))","v":1}]
[" OR Vincit Omnia II (Julien_giffard), aux portes de la ville le 2015-08-05 11:41:26\" src=\"images/oriflamme-7.gif\"><",{"$f":"IF(FIND(\"oriflamme\",A109),MID(RIGHT(A109,18),1,11),\"\")","v":"oriflamme-7"},"Langres",{"$f":"MATCH(SUBSTITUTE(C109,\" (Capitale)\",\"\"),OFFSET(Liste,,,,1),0)","v":269},{"$f":"SUMPRODUCT(NOT(ISERROR($B$2:$B109))*($C$2:$C109=C109))","v":2}]
[" The A-TEAM (Deedlitt), aux portes de la ville le 2015-08-05 11:41:26\" src=\"images/oriflamme-0.gif\"><",{"$f":"IF(FIND(\"oriflamme\",A110),MID(RIGHT(A110,18),1,11),\"\")","v":"oriflamme-0"},"Langres",{"$f":"MATCH(SUBSTITUTE(C110,\" (Capitale)\",\"\"),OFFSET(Liste,,,,1),0)","v":269},{"$f":"SUMPRODUCT(NOT(ISERROR($B$2:$B110))*($C$2:$C110=C110))","v":3}]
[" Fera Nemaea (Maximillian), aux portes de la ville le 2015-08-05 07:14:09\" src=\"images/oriflamme-7.gif\"><",{"$f":"IF(FIND(\"oriflamme\",A111),MID(RIGHT(A111,18),1,11),\"\")","v":"oriflamme-7"},"L'Aquila (Capitale)",{"$f":"MATCH(SUBSTITUTE(C111,\" (Capitale)\",\"\"),OFFSET(Liste,,,,1),0)","v":143},{"$f":"SUMPRODUCT(NOT(ISERROR($B$2:$B111))*($C$2:$C111=C111))","v":1}]
["  Les Forces Mainoises (William), aux portes de la ville le 2015-08-04 14:38:34\" src=\"images/oriflamme-5.gif\"><",{"$f":"IF(FIND(\"oriflamme\",A112),MID(RIGHT(A112,18),1,11),\"\")","v":"oriflamme-5"},"Le Mans (Capitale)",{"$f":"MATCH(SUBSTITUTE(C112,\" (Capitale)\",\"\"),OFFSET(Liste,,,,1),0)","v":220},{"$f":"SUMPRODUCT(NOT(ISERROR($B$2:$B112))*($C$2:$C112=C112))","v":1}]
[" L'Ours Sanguinaire (Krigan), aux portes de la ville le 2015-08-04 14:38:34\" src=\"images/oriflamme-0.gif\"><",{"$f":"IF(FIND(\"oriflamme\",A113),MID(RIGHT(A113,18),1,11),\"\")","v":"oriflamme-0"},"Le Mans (Capitale)",{"$f":"MATCH(SUBSTITUTE(C113,\" (Capitale)\",\"\"),OFFSET(Liste,,,,1),0)","v":220},{"$f":"SUMPRODUCT(NOT(ISERROR($B$2:$B113))*($C$2:$C113=C113))","v":2}]
[" Fermentum Ante (Alcide.), aux portes de la ville le 2015-08-04 07:39:48\" src=\"images/oriflamme-0.gif\"><",{"$f":"IF(FIND(\"oriflamme\",A114),MID(RIGHT(A114,18),1,11),\"\")","v":"oriflamme-0"},"Lectoure",{"$f":"MATCH(SUBSTITUTE(C114,\" (Capitale)\",\"\"),OFFSET(Liste,,,,1),0)","v":175},{"$f":"SUMPRODUCT(NOT(ISERROR($B$2:$B114))*($C$2:$C114=C114))","v":1}]
[" I Exército-Forças Armadas de Coimbra (Beauchat), aux portes de la ville le 2015-06-27 06:20:51\" src=\"images/oriflamme-0.gif\"><",{"$f":"IF(FIND(\"oriflamme\",A115),MID(RIGHT(A115,18),1,11),\"\")","v":"oriflamme-0"},"Leiria",{"$f":"MATCH(SUBSTITUTE(C115,\" (Capitale)\",\"\"),OFFSET(Liste,,,,1),0)","v":158},{"$f":"SUMPRODUCT(NOT(ISERROR($B$2:$B115))*($C$2:$C115=C115))","v":1}]
[" Ushtria Mbreterore e Arberise (Akili), aux portes de la ville le 2015-07-12 01:38:19\" src=\"images/oriflamme-0.gif\"><",{"$f":"IF(FIND(\"oriflamme\",A116),MID(RIGHT(A116,18),1,11),\"\")","v":"oriflamme-0"},"Lezhë (Capitale)",{"$f":"MATCH(SUBSTITUTE(C116,\" (Capitale)\",\"\"),OFFSET(Liste,,,,1),0)","v":109},{"$f":"SUMPRODUCT(NOT(ISERROR($B$2:$B116))*($C$2:$C116=C116))","v":1}]
[" Garda Princerore  (Gjin_maneshi), dans l'enceinte de la ville le 2015-07-12 01:38:19\" src=\"images/oriflamme-7.gif\"><",{"$f":"IF(FIND(\"oriflamme\",A117),MID(RIGHT(A117,18),1,11),\"\")","v":"oriflamme-7"},"Lezhë (Capitale)",{"$f":"MATCH(SUBSTITUTE(C117,\" (Capitale)\",\"\"),OFFSET(Liste,,,,1),0)","v":109},{"$f":"SUMPRODUCT(NOT(ISERROR($B$2:$B117))*($C$2:$C117=C117))","v":2}]
[" La Gaillarde (Victoire_), dans l'enceinte de la ville le 2015-08-05 08:55:18\" src=\"images/oriflamme-5.gif\"><",{"$f":"IF(FIND(\"oriflamme\",A118),MID(RIGHT(A118,18),1,11),\"\")","v":"oriflamme-5"},"Limoges (Capitale)",{"$f":"MATCH(SUBSTITUTE(C118,\" (Capitale)\",\"\"),OFFSET(Liste,,,,1),0)","v":215},{"$f":"SUMPRODUCT(NOT(ISERROR($B$2:$B118))*($C$2:$C118=C118))","v":1}]
[" Warägergarde (Floff4444), aux portes de la ville le 2015-07-10 22:17:07\" src=\"images/oriflamme-0.gif\"><",{"$f":"IF(FIND(\"oriflamme\",A119),MID(RIGHT(A119,18),1,11),\"\")","v":"oriflamme-0"},"Linz",{"$f":"MATCH(SUBSTITUTE(C119,\" (Capitale)\",\"\"),OFFSET(Liste,,,,1),0)","v":351},{"$f":"SUMPRODUCT(NOT(ISERROR($B$2:$B119))*($C$2:$C119=C119))","v":1}]
[" Resistência - Alea Jacta est (Caminheiro), aux portes de la ville le 2015-07-21 10:54:11\" src=\"images/oriflamme-7.gif\"><",{"$f":"IF(FIND(\"oriflamme\",A120),MID(RIGHT(A120,18),1,11),\"\")","v":"oriflamme-7"},"Lisboa (Capitale)",{"$f":"MATCH(SUBSTITUTE(C120,\" (Capitale)\",\"\"),OFFSET(Liste,,,,1),0)","v":165},{"$f":"SUMPRODUCT(NOT(ISERROR($B$2:$B120))*($C$2:$C120=C120))","v":1}]
[" 1. badisches Banner (Markart), aux portes de la ville le 2015-08-04 10:27:50\" src=\"images/oriflamme-6.gif\"><",{"$f":"IF(FIND(\"oriflamme\",A121),MID(RIGHT(A121,18),1,11),\"\")","v":"oriflamme-6"},"Luxeuil",{"$f":"MATCH(SUBSTITUTE(C121,\" (Capitale)\",\"\"),OFFSET(Liste,,,,1),0)","v":356},{"$f":"SUMPRODUCT(NOT(ISERROR($B$2:$B121))*($C$2:$C121=C121))","v":1}]
[" Athene Noctua (Stormhawk), aux portes de la ville le 2015-08-04 10:27:50\" src=\"images/oriflamme-5.gif\"><",{"$f":"IF(FIND(\"oriflamme\",A122),MID(RIGHT(A122,18),1,11),\"\")","v":"oriflamme-5"},"Luxeuil",{"$f":"MATCH(SUBSTITUTE(C122,\" (Capitale)\",\"\"),OFFSET(Liste,,,,1),0)","v":356},{"$f":"SUMPRODUCT(NOT(ISERROR($B$2:$B122))*($C$2:$C122=C122))","v":2}]
[" Knochenjäger (Rilana), aux portes de la ville le 2015-08-04 10:27:50\" src=\"images/oriflamme-5.gif\"><",{"$f":"IF(FIND(\"oriflamme\",A123),MID(RIGHT(A123,18),1,11),\"\")","v":"oriflamme-5"},"Luxeuil",{"$f":"MATCH(SUBSTITUTE(C123,\" (Capitale)\",\"\"),OFFSET(Liste,,,,1),0)","v":356},{"$f":"SUMPRODUCT(NOT(ISERROR($B$2:$B123))*($C$2:$C123=C123))","v":3}]
[" The Sc Wolf Among Us (Kran), aux portes de la ville le 2015-08-04 10:27:50\" src=\"images/oriflamme-7.gif\"><",{"$f":"IF(FIND(\"oriflamme\",A124),MID(RIGHT(A124,18),1,11),\"\")","v":"oriflamme-7"},"Luxeuil",{"$f":"MATCH(SUBSTITUTE(C124,\" (Capitale)\",\"\"),OFFSET(Liste,,,,1),0)","v":356},{"$f":"SUMPRODUCT(NOT(ISERROR($B$2:$B124))*($C$2:$C124=C124))","v":4}]
[" viribus unitis (Advokat), aux portes de la ville le 2015-08-04 10:27:50\" src=\"images/oriflamme-0.gif\"><",{"$f":"IF(FIND(\"oriflamme\",A125),MID(RIGHT(A125,18),1,11),\"\")","v":"oriflamme-0"},"Luxeuil",{"$f":"MATCH(SUBSTITUTE(C125,\" (Capitale)\",\"\"),OFFSET(Liste,,,,1),0)","v":356},{"$f":"SUMPRODUCT(NOT(ISERROR($B$2:$B125))*($C$2:$C125=C125))","v":5}]
[" Flammas inferorum mitte (Lightwarrior), aux portes de la ville le 2015-08-05 12:06:49\" src=\"images/oriflamme-0.gif\"><",{"$f":"IF(FIND(\"oriflamme\",A126),MID(RIGHT(A126,18),1,11),\"\")","v":"oriflamme-0"},"Lyon (Capitale)",{"$f":"MATCH(SUBSTITUTE(C126,\" (Capitale)\",\"\"),OFFSET(Liste,,,,1),0)","v":315},{"$f":"SUMPRODUCT(NOT(ISERROR($B$2:$B126))*($C$2:$C126=C126))","v":1}]
[" Legio Cycni Arditi (Anniusca), aux portes de la ville le 2015-08-04 16:56:49\" src=\"images/oriflamme-2.gif\"><",{"$f":"IF(FIND(\"oriflamme\",A127),MID(RIGHT(A127,18),1,11),\"\")","v":"oriflamme-2"},"Mantua",{"$f":"MATCH(SUBSTITUTE(C127,\" (Capitale)\",\"\"),OFFSET(Liste,,,,1),0)","v":338},{"$f":"SUMPRODUCT(NOT(ISERROR($B$2:$B127))*($C$2:$C127=C127))","v":1}]
[" Legione dell'Ade VI (Airone156), aux portes de la ville le 2015-08-04 18:31:14\" src=\"images/oriflamme-3.gif\"><",{"$f":"IF(FIND(\"oriflamme\",A128),MID(RIGHT(A128,18),1,11),\"\")","v":"oriflamme-3"},"Massa",{"$f":"MATCH(SUBSTITUTE(C128,\" (Capitale)\",\"\"),OFFSET(Liste,,,,1),0)","v":339},{"$f":"SUMPRODUCT(NOT(ISERROR($B$2:$B128))*($C$2:$C128=C128))","v":1}]
[" SIGNA INFERRE! (Corumjaelenirsei), aux portes de la ville le 2015-07-31 13:11:58\" src=\"images/oriflamme-0.gif\"><",{"$f":"IF(FIND(\"oriflamme\",A129),MID(RIGHT(A129,18),1,11),\"\")","v":"oriflamme-0"},"Milano (Capitale)",{"$f":"MATCH(SUBSTITUTE(C129,\" (Capitale)\",\"\"),OFFSET(Liste,,,,1),0)","v":332},{"$f":"SUMPRODUCT(NOT(ISERROR($B$2:$B129))*($C$2:$C129=C129))","v":1}]
[" Warägergarde (Floff4444), aux portes de la ville le 2015-08-05 08:47:44\" src=\"images/oriflamme-0.gif\"><",{"$f":"IF(FIND(\"oriflamme\",A130),MID(RIGHT(A130,18),1,11),\"\")","v":"oriflamme-0"},"Mistelbach",{"$f":"MATCH(SUBSTITUTE(C130,\" (Capitale)\",\"\"),OFFSET(Liste,,,,1),0)","v":352},{"$f":"SUMPRODUCT(NOT(ISERROR($B$2:$B130))*($C$2:$C130=C130))","v":1}]
[" Debello Superbos (Debellaccioni), dans l'enceinte de la ville le 2015-08-05 09:58:54\" src=\"images/oriflamme-1.gif\"><",{"$f":"IF(FIND(\"oriflamme\",A131),MID(RIGHT(A131,18),1,11),\"\")","v":"oriflamme-1"},"Modena (Capitale)",{"$f":"MATCH(SUBSTITUTE(C131,\" (Capitale)\",\"\"),OFFSET(Liste,,,,1),0)","v":341},{"$f":"SUMPRODUCT(NOT(ISERROR($B$2:$B131))*($C$2:$C131=C131))","v":1}]
[" In Bellae Veritas (Christabella), aux portes de la ville le 2015-08-05 11:07:44\" src=\"images/oriflamme-1.gif\"><",{"$f":"IF(FIND(\"oriflamme\",A132),MID(RIGHT(A132,18),1,11),\"\")","v":"oriflamme-1"},"Mont-de-Marsan (Capitale)",{"$f":"MATCH(SUBSTITUTE(C132,\" (Capitale)\",\"\"),OFFSET(Liste,,,,1),0)","v":278},{"$f":"SUMPRODUCT(NOT(ISERROR($B$2:$B132))*($C$2:$C132=C132))","v":1}]
[" Jende Armatuak (Alvira), aux portes de la ville le 2015-08-05 11:07:44\" src=\"images/oriflamme-4.gif\"><",{"$f":"IF(FIND(\"oriflamme\",A133),MID(RIGHT(A133,18),1,11),\"\")","v":"oriflamme-4"},"Mont-de-Marsan (Capitale)",{"$f":"MATCH(SUBSTITUTE(C133,\" (Capitale)\",\"\"),OFFSET(Liste,,,,1),0)","v":278},{"$f":"SUMPRODUCT(NOT(ISERROR($B$2:$B133))*($C$2:$C133=C133))","v":2}]
[" Exército Tormenta dos inimigos -  (Ellinha), aux portes de la ville le 2015-08-03 09:45:37\" src=\"images/oriflamme-8.gif\"><",{"$f":"IF(FIND(\"oriflamme\",A134),MID(RIGHT(A134,18),1,11),\"\")","v":"oriflamme-8"},"Montemor",{"$f":"MATCH(SUBSTITUTE(C134,\" (Capitale)\",\"\"),OFFSET(Liste,,,,1),0)","v":166},{"$f":"SUMPRODUCT(NOT(ISERROR($B$2:$B134))*($C$2:$C134=C134))","v":1}]
[" Unidade de Defesa:  (Gaffa), aux portes de la ville le 2015-08-03 09:45:37\" src=\"images/oriflamme-1.gif\"><",{"$f":"IF(FIND(\"oriflamme\",A135),MID(RIGHT(A135,18),1,11),\"\")","v":"oriflamme-1"},"Montemor",{"$f":"MATCH(SUBSTITUTE(C135,\" (Capitale)\",\"\"),OFFSET(Liste,,,,1),0)","v":166},{"$f":"SUMPRODUCT(NOT(ISERROR($B$2:$B135))*($C$2:$C135=C135))","v":2}]
[" Legio Pia Fidelis (Pipist87), aux portes de la ville le 2015-07-23 00:02:15\" src=\"images/oriflamme-1.gif\"><",{"$f":"IF(FIND(\"oriflamme\",A136),MID(RIGHT(A136,18),1,11),\"\")","v":"oriflamme-1"},"Montepulciano",{"$f":"MATCH(SUBSTITUTE(C136,\" (Capitale)\",\"\"),OFFSET(Liste,,,,1),0)","v":413},{"$f":"SUMPRODUCT(NOT(ISERROR($B$2:$B136))*($C$2:$C136=C136))","v":1}]
[" Centuries (Did85), aux portes de la ville le 2015-08-05 07:39:03\" src=\"images/oriflamme-2.gif\"><",{"$f":"IF(FIND(\"oriflamme\",A137),MID(RIGHT(A137,18),1,11),\"\")","v":"oriflamme-2"},"Montpellier (Capitale)",{"$f":"MATCH(SUBSTITUTE(C137,\" (Capitale)\",\"\"),OFFSET(Liste,,,,1),0)","v":209},{"$f":"SUMPRODUCT(NOT(ISERROR($B$2:$B137))*($C$2:$C137=C137))","v":1}]
[" Wächter der Isar (Ghami), dans l'enceinte de la ville le 2015-08-04 14:35:26\" src=\"images/oriflamme-1.gif\"><",{"$f":"IF(FIND(\"oriflamme\",A138),MID(RIGHT(A138,18),1,11),\"\")","v":"oriflamme-1"},"München (Capitale)",{"$f":"MATCH(SUBSTITUTE(C138,\" (Capitale)\",\"\"),OFFSET(Liste,,,,1),0)","v":392},{"$f":"SUMPRODUCT(NOT(ISERROR($B$2:$B138))*($C$2:$C138=C138))","v":1}]
[" Armia Republiki Nowotarskiej (Elera), dans l'enceinte de la ville le 2014-11-29 16:42:10\" src=\"images/oriflamme-1.gif\"><",{"$f":"IF(FIND(\"oriflamme\",A139),MID(RIGHT(A139,18),1,11),\"\")","v":"oriflamme-1"},"Nowy Targ",{"$f":"MATCH(SUBSTITUTE(C139,\" (Capitale)\",\"\"),OFFSET(Liste,,,,1),0)","v":94},{"$f":"SUMPRODUCT(NOT(ISERROR($B$2:$B139))*($C$2:$C139=C139))","v":1}]
[" In Umbra Querceus Norimberga (Lysithea), dans l'enceinte de la ville le 2013-11-12 15:55:50\" src=\"images/oriflamme-4.gif\"><",{"$f":"IF(FIND(\"oriflamme\",A140),MID(RIGHT(A140,18),1,11),\"\")","v":"oriflamme-4"},"Nürnberg (Capitale)",{"$f":"MATCH(SUBSTITUTE(C140,\" (Capitale)\",\"\"),OFFSET(Liste,,,,1),0)","v":321},{"$f":"SUMPRODUCT(NOT(ISERROR($B$2:$B140))*($C$2:$C140=C140))","v":1}]
[" Nigra Senensia Aeterna (Ilpedro87), aux portes de la ville le 2015-08-05 11:05:05\" src=\"images/oriflamme-7.gif\"><",{"$f":"IF(FIND(\"oriflamme\",A141),MID(RIGHT(A141,18),1,11),\"\")","v":"oriflamme-7"},"Orbetello",{"$f":"MATCH(SUBSTITUTE(C141,\" (Capitale)\",\"\"),OFFSET(Liste,,,,1),0)","v":407},{"$f":"SUMPRODUCT(NOT(ISERROR($B$2:$B141))*($C$2:$C141=C141))","v":1}]
[" Gladiatori Senesi (Lucapac), dans l'enceinte de la ville le 2015-08-05 11:05:05\" src=\"images/oriflamme-5.gif\"><",{"$f":"IF(FIND(\"oriflamme\",A142),MID(RIGHT(A142,18),1,11),\"\")","v":"oriflamme-5"},"Orbetello",{"$f":"MATCH(SUBSTITUTE(C142,\" (Capitale)\",\"\"),OFFSET(Liste,,,,1),0)","v":407},{"$f":"SUMPRODUCT(NOT(ISERROR($B$2:$B142))*($C$2:$C142=C142))","v":2}]
[" Les Faucons Orléanais II (Asamco), aux portes de la ville le 2015-08-04 20:26:40\" src=\"images/oriflamme-1.gif\"><",{"$f":"IF(FIND(\"oriflamme\",A143),MID(RIGHT(A143,18),1,11),\"\")","v":"oriflamme-1"},"Orléans (Capitale)",{"$f":"MATCH(SUBSTITUTE(C143,\" (Capitale)\",\"\"),OFFSET(Liste,,,,1),0)","v":245},{"$f":"SUMPRODUCT(NOT(ISERROR($B$2:$B143))*($C$2:$C143=C143))","v":1}]
[" Muralla del Este II (Regidor), dans l'enceinte de la ville le 2015-08-05 05:25:46\" src=\"images/oriflamme-5.gif\"><",{"$f":"IF(FIND(\"oriflamme\",A144),MID(RIGHT(A144,18),1,11),\"\")","v":"oriflamme-5"},"Osma",{"$f":"MATCH(SUBSTITUTE(C144,\" (Capitale)\",\"\"),OFFSET(Liste,,,,1),0)","v":36},{"$f":"SUMPRODUCT(NOT(ISERROR($B$2:$B144))*($C$2:$C144=C144))","v":1}]
[" Fòrça comtala biarnesa (Pierobero), aux portes de la ville le 2015-08-01 18:33:38\" src=\"images/oriflamme-5.gif\"><",{"$f":"IF(FIND(\"oriflamme\",A145),MID(RIGHT(A145,18),1,11),\"\")","v":"oriflamme-5"},"Pau (Capitale)",{"$f":"MATCH(SUBSTITUTE(C145,\" (Capitale)\",\"\"),OFFSET(Liste,,,,1),0)","v":188},{"$f":"SUMPRODUCT(NOT(ISERROR($B$2:$B145))*($C$2:$C145=C145))","v":1}]
[" Devils in Skirts (Pilgrim), aux portes de la ville le 2015-07-17 17:39:14\" src=\"images/oriflamme-0.gif\"><",{"$f":"IF(FIND(\"oriflamme\",A146),MID(RIGHT(A146,18),1,11),\"\")","v":"oriflamme-0"},"Penrith",{"$f":"MATCH(SUBSTITUTE(C146,\" (Capitale)\",\"\"),OFFSET(Liste,,,,1),0)","v":76},{"$f":"SUMPRODUCT(NOT(ISERROR($B$2:$B146))*($C$2:$C146=C146))","v":1}]
[" *Memento Mori* (Coleen_de_colmarker), aux portes de la ville le 2015-08-05 10:24:24\" src=\"images/oriflamme-0.gif\"><",{"$f":"IF(FIND(\"oriflamme\",A147),MID(RIGHT(A147,18),1,11),\"\")","v":"oriflamme-0"},"Périgueux (Capitale)",{"$f":"MATCH(SUBSTITUTE(C147,\" (Capitale)\",\"\"),OFFSET(Liste,,,,1),0)","v":226},{"$f":"SUMPRODUCT(NOT(ISERROR($B$2:$B147))*($C$2:$C147=C147))","v":1}]
[" Qui sy Frotte sy Pique  (Fofinha), aux portes de la ville le 2015-08-05 10:24:24\" src=\"images/oriflamme-8.gif\"><",{"$f":"IF(FIND(\"oriflamme\",A148),MID(RIGHT(A148,18),1,11),\"\")","v":"oriflamme-8"},"Périgueux (Capitale)",{"$f":"MATCH(SUBSTITUTE(C148,\" (Capitale)\",\"\"),OFFSET(Liste,,,,1),0)","v":226},{"$f":"SUMPRODUCT(NOT(ISERROR($B$2:$B148))*($C$2:$C148=C148))","v":2}]
[" Sub Rosa (Keyfeya), dans l'enceinte de la ville le 2015-08-05 10:24:24\" src=\"images/oriflamme-7.gif\"><",{"$f":"IF(FIND(\"oriflamme\",A149),MID(RIGHT(A149,18),1,11),\"\")","v":"oriflamme-7"},"Périgueux (Capitale)",{"$f":"MATCH(SUBSTITUTE(C149,\" (Capitale)\",\"\"),OFFSET(Liste,,,,1),0)","v":226},{"$f":"SUMPRODUCT(NOT(ISERROR($B$2:$B149))*($C$2:$C149=C149))","v":3}]
[" Legio XIII Artesiae (Farenheit), aux portes de la ville le 2015-08-04 15:24:38\" src=\"images/oriflamme-0.gif\"><",{"$f":"IF(FIND(\"oriflamme\",A150),MID(RIGHT(A150,18),1,11),\"\")","v":"oriflamme-0"},"Péronne",{"$f":"MATCH(SUBSTITUTE(C150,\" (Capitale)\",\"\"),OFFSET(Liste,,,,1),0)","v":184},{"$f":"SUMPRODUCT(NOT(ISERROR($B$2:$B150))*($C$2:$C150=C150))","v":1}]
[" Cuspis Adamantis (Celtico51), aux portes de la ville le 2015-08-04 13:31:25\" src=\"images/oriflamme-5.gif\"><",{"$f":"IF(FIND(\"oriflamme\",A151),MID(RIGHT(A151,18),1,11),\"\")","v":"oriflamme-5"},"Piombino",{"$f":"MATCH(SUBSTITUTE(C151,\" (Capitale)\",\"\"),OFFSET(Liste,,,,1),0)","v":415},{"$f":"SUMPRODUCT(NOT(ISERROR($B$2:$B151))*($C$2:$C151=C151))","v":1}]
[" Impetu Pertereo (Anubi71), aux portes de la ville le 2015-08-05 10:55:48\" src=\"images/oriflamme-0.gif\"><",{"$f":"IF(FIND(\"oriflamme\",A152),MID(RIGHT(A152,18),1,11),\"\")","v":"oriflamme-0"},"Pisa",{"$f":"MATCH(SUBSTITUTE(C152,\" (Capitale)\",\"\"),OFFSET(Liste,,,,1),0)","v":416},{"$f":"SUMPRODUCT(NOT(ISERROR($B$2:$B152))*($C$2:$C152=C152))","v":1}]
[" O.N.E. I - Semper et Ubique (Andrew), aux portes de la ville le 2015-08-04 15:29:15\" src=\"images/oriflamme-7.gif\"><",{"$f":"IF(FIND(\"oriflamme\",A153),MID(RIGHT(A153,18),1,11),\"\")","v":"oriflamme-7"},"Piteşti",{"$f":"MATCH(SUBSTITUTE(C153,\" (Capitale)\",\"\"),OFFSET(Liste,,,,1),0)","v":135},{"$f":"SUMPRODUCT(NOT(ISERROR($B$2:$B153))*($C$2:$C153=C153))","v":1}]
[" Les poids de vins (Ventreachoux), aux portes de la ville le 2015-08-05 07:58:42\" src=\"images/oriflamme-0.gif\"><",{"$f":"IF(FIND(\"oriflamme\",A154),MID(RIGHT(A154,18),1,11),\"\")","v":"oriflamme-0"},"Poitiers (Capitale)",{"$f":"MATCH(SUBSTITUTE(C154,\" (Capitale)\",\"\"),OFFSET(Liste,,,,1),0)","v":231},{"$f":"SUMPRODUCT(NOT(ISERROR($B$2:$B154))*($C$2:$C154=C154))","v":1}]
[" 3DOrange (Mc_clay_thon), aux portes de la ville le 2015-08-05 05:36:21\" src=\"images/oriflamme-8.gif\"><",{"$f":"IF(FIND(\"oriflamme\",A155),MID(RIGHT(A155,18),1,11),\"\")","v":"oriflamme-8"},"Pola",{"$f":"MATCH(SUBSTITUTE(C155,\" (Capitale)\",\"\"),OFFSET(Liste,,,,1),0)","v":431},{"$f":"SUMPRODUCT(NOT(ISERROR($B$2:$B155))*($C$2:$C155=C155))","v":1}]
[" Oderint Dum Metuant (Khristof17), aux portes de la ville le 2015-07-29 18:40:38\" src=\"images/oriflamme-1.gif\"><",{"$f":"IF(FIND(\"oriflamme\",A156),MID(RIGHT(A156,18),1,11),\"\")","v":"oriflamme-1"},"Polignac",{"$f":"MATCH(SUBSTITUTE(C156,\" (Capitale)\",\"\"),OFFSET(Liste,,,,1),0)","v":310},{"$f":"SUMPRODUCT(NOT(ISERROR($B$2:$B156))*($C$2:$C156=C156))","v":1}]
[" Passavant li meillor ! (Actarius), dans l'enceinte de la ville le 2015-08-04 19:58:57\" src=\"images/oriflamme-1.gif\"><",{"$f":"IF(FIND(\"oriflamme\",A157),MID(RIGHT(A157,18),1,11),\"\")","v":"oriflamme-1"},"Reims (Capitale)",{"$f":"MATCH(SUBSTITUTE(C157,\" (Capitale)\",\"\"),OFFSET(Liste,,,,1),0)","v":270},{"$f":"SUMPRODUCT(NOT(ISERROR($B$2:$B157))*($C$2:$C157=C157))","v":1}]
[" Les Dragons de Valyria (Aegonn), aux portes de la ville le 2015-08-01 11:21:51\" src=\"images/oriflamme-7.gif\"><",{"$f":"IF(FIND(\"oriflamme\",A158),MID(RIGHT(A158,18),1,11),\"\")","v":"oriflamme-7"},"Rennes (Capitale)",{"$f":"MATCH(SUBSTITUTE(C158,\" (Capitale)\",\"\"),OFFSET(Liste,,,,1),0)","v":258},{"$f":"SUMPRODUCT(NOT(ISERROR($B$2:$B158))*($C$2:$C158=C158))","v":1}]
[" Avalon le retour  (Roxane2), dans l'enceinte de la ville le 2015-08-01 11:21:51\" src=\"images/oriflamme-1.gif\"><",{"$f":"IF(FIND(\"oriflamme\",A159),MID(RIGHT(A159,18),1,11),\"\")","v":"oriflamme-1"},"Rennes (Capitale)",{"$f":"MATCH(SUBSTITUTE(C159,\" (Capitale)\",\"\"),OFFSET(Liste,,,,1),0)","v":258},{"$f":"SUMPRODUCT(NOT(ISERROR($B$2:$B159))*($C$2:$C159=C159))","v":2}]
[" Cohors Praetoria - VOS (Mirko_celjski), aux portes de la ville le 2015-07-26 01:05:39\" src=\"images/oriflamme-7.gif\"><",{"$f":"IF(FIND(\"oriflamme\",A160),MID(RIGHT(A160,18),1,11),\"\")","v":"oriflamme-7"},"Rijeka",{"$f":"MATCH(SUBSTITUTE(C160,\" (Capitale)\",\"\"),OFFSET(Liste,,,,1),0)","v":87},{"$f":"SUMPRODUCT(NOT(ISERROR($B$2:$B160))*($C$2:$C160=C160))","v":1}]
[" La Lionne du Rouergue (Donnae_de_marsac.), aux portes de la ville le 2015-08-05 05:03:46\" src=\"images/oriflamme-1.gif\"><",{"$f":"IF(FIND(\"oriflamme\",A161),MID(RIGHT(A161,18),1,11),\"\")","v":"oriflamme-1"},"Rodez (Capitale)",{"$f":"MATCH(SUBSTITUTE(C161,\" (Capitale)\",\"\"),OFFSET(Liste,,,,1),0)","v":197},{"$f":"SUMPRODUCT(NOT(ISERROR($B$2:$B161))*($C$2:$C161=C161))","v":1}]
[" les leopards lionné d'or (Vosse), aux portes de la ville le 2015-08-05 05:03:46\" src=\"images/oriflamme-4.gif\"><",{"$f":"IF(FIND(\"oriflamme\",A162),MID(RIGHT(A162,18),1,11),\"\")","v":"oriflamme-4"},"Rodez (Capitale)",{"$f":"MATCH(SUBSTITUTE(C162,\" (Capitale)\",\"\"),OFFSET(Liste,,,,1),0)","v":197},{"$f":"SUMPRODUCT(NOT(ISERROR($B$2:$B162))*($C$2:$C162=C162))","v":2}]
[" Olá's Trots (Damianus), dans l'enceinte de la ville le 2015-08-04 10:55:38\" src=\"images/oriflamme-0.gif\"><",{"$f":"IF(FIND(\"oriflamme\",A163),MID(RIGHT(A163,18),1,11),\"\")","v":"oriflamme-0"},"Rotterdam",{"$f":"MATCH(SUBSTITUTE(C163,\" (Capitale)\",\"\"),OFFSET(Liste,,,,1),0)","v":428},{"$f":"SUMPRODUCT(NOT(ISERROR($B$2:$B163))*($C$2:$C163=C163))","v":1}]
[" In Vinkolat Memoriam (Arutha), dans l'enceinte de la ville le 2015-07-26 17:49:26\" src=\"images/oriflamme-0.gif\"><",{"$f":"IF(FIND(\"oriflamme\",A164),MID(RIGHT(A164,18),1,11),\"\")","v":"oriflamme-0"},"Rouen (Capitale)",{"$f":"MATCH(SUBSTITUTE(C164,\" (Capitale)\",\"\"),OFFSET(Liste,,,,1),0)","v":293},{"$f":"SUMPRODUCT(NOT(ISERROR($B$2:$B164))*($C$2:$C164=C164))","v":1}]
["<",{"$f":"IF(FIND(\"oriflamme\",A165),MID(RIGHT(A165,18),1,11),\"\")","v":{"$error":"#VALUE!"}},"rowSpan=3>Краљевина Србија<FONT size=2>  Population : 844  Langue : Serbe</FONT>",{"$f":"MATCH(SUBSTITUTE(C165,\" (Capitale)\",\"\"),OFFSET(Liste,,,,1),0)","v":{"$error":"#N/A"}},{"$f":"SUMPRODUCT(NOT(ISERROR($B$2:$B165))*($C$2:$C165=C165))","v":0}]
[" *Myosotis* (Cassius_de_montfort), aux portes de la ville le 2015-08-05 05:20:58\" src=\"images/oriflamme-2.gif\"><",{"$f":"IF(FIND(\"oriflamme\",A166),MID(RIGHT(A166,18),1,11),\"\")","v":"oriflamme-2"},"Saint-Brieuc",{"$f":"MATCH(SUBSTITUTE(C166,\" (Capitale)\",\"\"),OFFSET(Liste,,,,1),0)","v":262},{"$f":"SUMPRODUCT(NOT(ISERROR($B$2:$B166))*($C$2:$C166=C166))","v":1}]
[" Barzh genoù al louarn (Lallie_ap_maelweg), aux portes de la ville le 2015-08-05 05:20:58\" src=\"images/oriflamme-0.gif\"><",{"$f":"IF(FIND(\"oriflamme\",A167),MID(RIGHT(A167,18),1,11),\"\")","v":"oriflamme-0"},"Saint-Brieuc",{"$f":"MATCH(SUBSTITUTE(C167,\" (Capitale)\",\"\"),OFFSET(Liste,,,,1),0)","v":262},{"$f":"SUMPRODUCT(NOT(ISERROR($B$2:$B167))*($C$2:$C167=C167))","v":2}]
[" Devon's Armed Rangers (John_hawkwood), aux portes de la ville le 2015-05-29 23:11:41\" src=\"images/oriflamme-3.gif\"><",{"$f":"IF(FIND(\"oriflamme\",A168),MID(RIGHT(A168,18),1,11),\"\")","v":"oriflamme-3"},"Salisbury",{"$f":"MATCH(SUBSTITUTE(C168,\" (Capitale)\",\"\"),OFFSET(Liste,,,,1),0)","v":61},{"$f":"SUMPRODUCT(NOT(ISERROR($B$2:$B168))*($C$2:$C168=C168))","v":1}]
[" Devon's Knights  (Janko_vukotic), aux portes de la ville le 2015-05-29 23:11:41\" src=\"images/oriflamme-5.gif\"><",{"$f":"IF(FIND(\"oriflamme\",A169),MID(RIGHT(A169,18),1,11),\"\")","v":"oriflamme-5"},"Salisbury",{"$f":"MATCH(SUBSTITUTE(C169,\" (Capitale)\",\"\"),OFFSET(Liste,,,,1),0)","v":61},{"$f":"SUMPRODUCT(NOT(ISERROR($B$2:$B169))*($C$2:$C169=C169))","v":2}]
[" İstiklal Bekçileri (Insight), dans l'enceinte de la ville le 2015-02-11 19:01:56\" src=\"images/oriflamme-0.gif\"><",{"$f":"IF(FIND(\"oriflamme\",A170),MID(RIGHT(A170,18),1,11),\"\")","v":"oriflamme-0"},"Şarköy",{"$f":"MATCH(SUBSTITUTE(C170,\" (Capitale)\",\"\"),OFFSET(Liste,,,,1),0)","v":116},{"$f":"SUMPRODUCT(NOT(ISERROR($B$2:$B170))*($C$2:$C170=C170))","v":1}]
[" Justice En Urgence (Abraxes), dans l'enceinte de la ville le 2015-08-03 13:42:19\" src=\"images/oriflamme-5.gif\"><",{"$f":"IF(FIND(\"oriflamme\",A171),MID(RIGHT(A171,18),1,11),\"\")","v":"oriflamme-5"},"Saumur",{"$f":"MATCH(SUBSTITUTE(C171,\" (Capitale)\",\"\"),OFFSET(Liste,,,,1),0)","v":241},{"$f":"SUMPRODUCT(NOT(ISERROR($B$2:$B171))*($C$2:$C171=C171))","v":1}]
[" Carduus Furvus Norimbergae (Archibalddouglas), aux portes de la ville le 2014-01-05 21:35:24\" src=\"images/oriflamme-1.gif\"><",{"$f":"IF(FIND(\"oriflamme\",A172),MID(RIGHT(A172,18),1,11),\"\")","v":"oriflamme-1"},"Schwäbisch Hall",{"$f":"MATCH(SUBSTITUTE(C172,\" (Capitale)\",\"\"),OFFSET(Liste,,,,1),0)","v":323},{"$f":"SUMPRODUCT(NOT(ISERROR($B$2:$B172))*($C$2:$C172=C172))","v":1}]
[" Memento audere semper (Invincible), dans l'enceinte de la ville le 2015-08-05 07:52:29\" src=\"images/oriflamme-3.gif\"><",{"$f":"IF(FIND(\"oriflamme\",A173),MID(RIGHT(A173,18),1,11),\"\")","v":"oriflamme-3"},"Siena (Capitale)",{"$f":"MATCH(SUBSTITUTE(C173,\" (Capitale)\",\"\"),OFFSET(Liste,,,,1),0)","v":409},{"$f":"SUMPRODUCT(NOT(ISERROR($B$2:$B173))*($C$2:$C173=C173))","v":1}]
[" Utriusque Siciliae (Raffaelemagno), aux portes de la ville le 2015-08-05 02:34:38\" src=\"images/oriflamme-2.gif\"><",{"$f":"IF(FIND(\"oriflamme\",A174),MID(RIGHT(A174,18),1,11),\"\")","v":"oriflamme-2"},"Sora",{"$f":"MATCH(SUBSTITUTE(C174,\" (Capitale)\",\"\"),OFFSET(Liste,,,,1),0)","v":152},{"$f":"SUMPRODUCT(NOT(ISERROR($B$2:$B174))*($C$2:$C174=C174))","v":1}]
[" Dragones de Numancia (Maruca__), dans l'enceinte de la ville le 2015-08-04 17:47:41\" src=\"images/oriflamme-1.gif\"><",{"$f":"IF(FIND(\"oriflamme\",A175),MID(RIGHT(A175,18),1,11),\"\")","v":"oriflamme-1"},"Soria",{"$f":"MATCH(SUBSTITUTE(C175,\" (Capitale)\",\"\"),OFFSET(Liste,,,,1),0)","v":37},{"$f":"SUMPRODUCT(NOT(ISERROR($B$2:$B175))*($C$2:$C175=C175))","v":1}]
[" The Barraigh Rangers (Ninon_de_lenclos), dans l'enceinte de la ville le 2015-06-22 11:25:37\" src=\"images/oriflamme-1.gif\"><",{"$f":"IF(FIND(\"oriflamme\",A176),MID(RIGHT(A176,18),1,11),\"\")","v":"oriflamme-1"},"Stirling",{"$f":"MATCH(SUBSTITUTE(C176,\" (Capitale)\",\"\"),OFFSET(Liste,,,,1),0)","v":83},{"$f":"SUMPRODUCT(NOT(ISERROR($B$2:$B176))*($C$2:$C176=C176))","v":1}]
[" Wacht am Neckar (Anettchen), aux portes de la ville le 2015-08-05 07:48:31\" src=\"images/oriflamme-5.gif\"><",{"$f":"IF(FIND(\"oriflamme\",A177),MID(RIGHT(A177,18),1,11),\"\")","v":"oriflamme-5"},"Stuttgart (Capitale)",{"$f":"MATCH(SUBSTITUTE(C177,\" (Capitale)\",\"\"),OFFSET(Liste,,,,1),0)","v":380},{"$f":"SUMPRODUCT(NOT(ISERROR($B$2:$B177))*($C$2:$C177=C177))","v":1}]
[" Második Magyar Hadtest (Elinor1988), dans l'enceinte de la ville le 2015-08-02 13:28:12\" src=\"images/oriflamme-0.gif\"><",{"$f":"IF(FIND(\"oriflamme\",A178),MID(RIGHT(A178,18),1,11),\"\")","v":"oriflamme-0"},"Székesfehérvár",{"$f":"MATCH(SUBSTITUTE(C178,\" (Capitale)\",\"\"),OFFSET(Liste,,,,1),0)","v":91},{"$f":"SUMPRODUCT(NOT(ISERROR($B$2:$B178))*($C$2:$C178=C178))","v":1}]
[" Companyia Almogavèr Jaume I (Vilart), aux portes de la ville le 2015-07-27 23:46:18\" src=\"images/oriflamme-0.gif\"><",{"$f":"IF(FIND(\"oriflamme\",A179),MID(RIGHT(A179,18),1,11),\"\")","v":"oriflamme-0"},"Tortosa",{"$f":"MATCH(SUBSTITUTE(C179,\" (Capitale)\",\"\"),OFFSET(Liste,,,,1),0)","v":22},{"$f":"SUMPRODUCT(NOT(ISERROR($B$2:$B179))*($C$2:$C179=C179))","v":1}]
[" Fills de Guifre el Pilos (Pindusa), aux portes de la ville le 2015-07-27 23:46:18\" src=\"images/oriflamme-5.gif\"><",{"$f":"IF(FIND(\"oriflamme\",A180),MID(RIGHT(A180,18),1,11),\"\")","v":"oriflamme-5"},"Tortosa",{"$f":"MATCH(SUBSTITUTE(C180,\" (Capitale)\",\"\"),OFFSET(Liste,,,,1),0)","v":22},{"$f":"SUMPRODUCT(NOT(ISERROR($B$2:$B180))*($C$2:$C180=C180))","v":2}]
[" La belle du Sud (Arabella.), aux portes de la ville le 2015-08-05 11:28:27\" src=\"images/oriflamme-0.gif\"><",{"$f":"IF(FIND(\"oriflamme\",A181),MID(RIGHT(A181,18),1,11),\"\")","v":"oriflamme-0"},"Toulouse (Capitale)",{"$f":"MATCH(SUBSTITUTE(C181,\" (Capitale)\",\"\"),OFFSET(Liste,,,,1),0)","v":203},{"$f":"SUMPRODUCT(NOT(ISERROR($B$2:$B181))*($C$2:$C181=C181))","v":1}]
[" Toulouse ne cède (Philippe.de.cetzes), aux portes de la ville le 2015-08-05 11:28:27\" src=\"images/oriflamme-0.gif\"><",{"$f":"IF(FIND(\"oriflamme\",A182),MID(RIGHT(A182,18),1,11),\"\")","v":"oriflamme-0"},"Toulouse (Capitale)",{"$f":"MATCH(SUBSTITUTE(C182,\" (Capitale)\",\"\"),OFFSET(Liste,,,,1),0)","v":203},{"$f":"SUMPRODUCT(NOT(ISERROR($B$2:$B182))*($C$2:$C182=C182))","v":2}]
[" F.S.F (Niwiel), aux portes de la ville le 2015-08-02 18:03:03\" src=\"images/oriflamme-7.gif\"><",{"$f":"IF(FIND(\"oriflamme\",A183),MID(RIGHT(A183,18),1,11),\"\")","v":"oriflamme-7"},"Tournai",{"$f":"MATCH(SUBSTITUTE(C183,\" (Capitale)\",\"\"),OFFSET(Liste,,,,1),0)","v":194},{"$f":"SUMPRODUCT(NOT(ISERROR($B$2:$B183))*($C$2:$C183=C183))","v":1}]
[" Los grifos negros (Connor_macleod), aux portes de la ville le 2015-08-05 06:47:10\" src=\"images/oriflamme-7.gif\"><",{"$f":"IF(FIND(\"oriflamme\",A184),MID(RIGHT(A184,18),1,11),\"\")","v":"oriflamme-7"},"Tours (Capitale)",{"$f":"MATCH(SUBSTITUTE(C184,\" (Capitale)\",\"\"),OFFSET(Liste,,,,1),0)","v":296},{"$f":"SUMPRODUCT(NOT(ISERROR($B$2:$B184))*($C$2:$C184=C184))","v":1}]
[" Guérande (Pit51), dans l'enceinte de la ville le 2015-07-31 14:13:50\" src=\"images/oriflamme-7.gif\"><",{"$f":"IF(FIND(\"oriflamme\",A185),MID(RIGHT(A185,18),1,11),\"\")","v":"oriflamme-7"},"Tréguier",{"$f":"MATCH(SUBSTITUTE(C185,\" (Capitale)\",\"\"),OFFSET(Liste,,,,1),0)","v":263},{"$f":"SUMPRODUCT(NOT(ISERROR($B$2:$B185))*($C$2:$C185=C185))","v":1}]
[" Karr an Ankou (Monsieurpatate), dans l'enceinte de la ville le 2015-07-31 14:13:50\" src=\"images/oriflamme-1.gif\"><",{"$f":"IF(FIND(\"oriflamme\",A186),MID(RIGHT(A186,18),1,11),\"\")","v":"oriflamme-1"},"Tréguier",{"$f":"MATCH(SUBSTITUTE(C186,\" (Capitale)\",\"\"),OFFSET(Liste,,,,1),0)","v":263},{"$f":"SUMPRODUCT(NOT(ISERROR($B$2:$B186))*($C$2:$C186=C186))","v":2}]
[" II COHORS EXPEDITA (Pasgal_x), aux portes de la ville le 2015-05-07 23:10:24\" src=\"images/oriflamme-4.gif\"><",{"$f":"IF(FIND(\"oriflamme\",A187),MID(RIGHT(A187,18),1,11),\"\")","v":"oriflamme-4"},"Udine",{"$f":"MATCH(SUBSTITUTE(C187,\" (Capitale)\",\"\"),OFFSET(Liste,,,,1),0)","v":434},{"$f":"SUMPRODUCT(NOT(ISERROR($B$2:$B187))*($C$2:$C187=C187))","v":1}]
[" Defensores del Condado de Urgell (Lijesus), dans l'enceinte de la ville le 2015-08-04 10:47:23\" src=\"images/oriflamme-5.gif\"><",{"$f":"IF(FIND(\"oriflamme\",A188),MID(RIGHT(A188,18),1,11),\"\")","v":"oriflamme-5"},"Urgel",{"$f":"MATCH(SUBSTITUTE(C188,\" (Capitale)\",\"\"),OFFSET(Liste,,,,1),0)","v":16},{"$f":"SUMPRODUCT(NOT(ISERROR($B$2:$B188))*($C$2:$C188=C188))","v":1}]
[" Argo (V.i.o.l.e.t), aux portes de la ville le 2015-07-07 21:12:42\" src=\"images/oriflamme-2.gif\"><",{"$f":"IF(FIND(\"oriflamme\",A189),MID(RIGHT(A189,18),1,11),\"\")","v":"oriflamme-2"},"Valencia (Capitale)",{"$f":"MATCH(SUBSTITUTE(C189,\" (Capitale)\",\"\"),OFFSET(Liste,,,,1),0)","v":33},{"$f":"SUMPRODUCT(NOT(ISERROR($B$2:$B189))*($C$2:$C189=C189))","v":1}]
[" Consejo de Castilla (Mck), dans l'enceinte de la ville le 2015-07-26 15:26:40\" src=\"images/oriflamme-1.gif\"><",{"$f":"IF(FIND(\"oriflamme\",A190),MID(RIGHT(A190,18),1,11),\"\")","v":"oriflamme-1"},"Valladolid",{"$f":"MATCH(SUBSTITUTE(C190,\" (Capitale)\",\"\"),OFFSET(Liste,,,,1),0)","v":38},{"$f":"SUMPRODUCT(NOT(ISERROR($B$2:$B190))*($C$2:$C190=C190))","v":1}]
[" Legio De Corvus (L.ombre_), aux portes de la ville le 2015-08-05 08:52:11\" src=\"images/oriflamme-7.gif\"><",{"$f":"IF(FIND(\"oriflamme\",A191),MID(RIGHT(A191,18),1,11),\"\")","v":"oriflamme-7"},"Vannes",{"$f":"MATCH(SUBSTITUTE(C191,\" (Capitale)\",\"\"),OFFSET(Liste,,,,1),0)","v":264},{"$f":"SUMPRODUCT(NOT(ISERROR($B$2:$B191))*($C$2:$C191=C191))","v":1}]
["  I Cohors Venetica (Darklanace), aux portes de la ville le 2015-08-05 06:23:13\" src=\"images/oriflamme-7.gif\"><",{"$f":"IF(FIND(\"oriflamme\",A192),MID(RIGHT(A192,18),1,11),\"\")","v":"oriflamme-7"},"Venezia (Capitale)",{"$f":"MATCH(SUBSTITUTE(C192,\" (Capitale)\",\"\"),OFFSET(Liste,,,,1),0)","v":435},{"$f":"SUMPRODUCT(NOT(ISERROR($B$2:$B192))*($C$2:$C192=C192))","v":1}]
[" Lion Heart (Ealis), aux portes de la ville le 2015-08-01 12:55:07\" src=\"images/oriflamme-7.gif\"><",{"$f":"IF(FIND(\"oriflamme\",A193),MID(RIGHT(A193,18),1,11),\"\")","v":"oriflamme-7"},"Verona",{"$f":"MATCH(SUBSTITUTE(C193,\" (Capitale)\",\"\"),OFFSET(Liste,,,,1),0)","v":436},{"$f":"SUMPRODUCT(NOT(ISERROR($B$2:$B193))*($C$2:$C193=C193))","v":1}]
[" 1. Württembergische Armee (Numero_uno), aux portes de la ville le 2015-08-05 11:26:45\" src=\"images/oriflamme-5.gif\"><",{"$f":"IF(FIND(\"oriflamme\",A194),MID(RIGHT(A194,18),1,11),\"\")","v":"oriflamme-5"},"Vesoul",{"$f":"MATCH(SUBSTITUTE(C194,\" (Capitale)\",\"\"),OFFSET(Liste,,,,1),0)","v":360},{"$f":"SUMPRODUCT(NOT(ISERROR($B$2:$B194))*($C$2:$C194=C194))","v":1}]
[" Cohors Praetoria - VOS (Mirko_celjski), aux portes de la ville le 2015-08-02 15:38:56\" src=\"images/oriflamme-7.gif\"><",{"$f":"IF(FIND(\"oriflamme\",A195),MID(RIGHT(A195,18),1,11),\"\")","v":"oriflamme-7"},"Vrbovsko",{"$f":"MATCH(SUBSTITUTE(C195,\" (Capitale)\",\"\"),OFFSET(Liste,,,,1),0)","v":88},{"$f":"SUMPRODUCT(NOT(ISERROR($B$2:$B195))*($C$2:$C195=C195))","v":1}]
[" Templarska vojska Bijelih Ruža (Opasan), aux portes de la ville le 2015-08-02 15:38:56\" src=\"images/oriflamme-2.gif\"><",{"$f":"IF(FIND(\"oriflamme\",A196),MID(RIGHT(A196,18),1,11),\"\")","v":"oriflamme-2"},"Vrbovsko",{"$f":"MATCH(SUBSTITUTE(C196,\" (Capitale)\",\"\"),OFFSET(Liste,,,,1),0)","v":88},{"$f":"SUMPRODUCT(NOT(ISERROR($B$2:$B196))*($C$2:$C196=C196))","v":2}]
[" Armia Księstwa Mazowieckiego (Krisss), aux portes de la ville le 2015-05-27 18:38:23\" src=\"images/oriflamme-1.gif\"><",{"$f":"IF(FIND(\"oriflamme\",A197),MID(RIGHT(A197,18),1,11),\"\")","v":"oriflamme-1"},"Warszawa (Capitale)",{"$f":"MATCH(SUBSTITUTE(C197,\" (Capitale)\",\"\"),OFFSET(Liste,,,,1),0)","v":101},{"$f":"SUMPRODUCT(NOT(ISERROR($B$2:$B197))*($C$2:$C197=C197))","v":1}]
[" The Flaming Ruby (Alessandra_oct), dans l'enceinte de la ville le 2015-08-03 09:43:18\" src=\"images/oriflamme-0.gif\"><",{"$f":"IF(FIND(\"oriflamme\",A198),MID(RIGHT(A198,18),1,11),\"\")","v":"oriflamme-0"},"Whithorn",{"$f":"MATCH(SUBSTITUTE(C198,\" (Capitale)\",\"\"),OFFSET(Liste,,,,1),0)","v":79},{"$f":"SUMPRODUCT(NOT(ISERROR($B$2:$B198))*($C$2:$C198=C198))","v":1}]
[" A.E.I.O.U. (Twoflower), aux portes de la ville le 2015-07-21 12:45:41\" src=\"images/oriflamme-0.gif\"><",{"$f":"IF(FIND(\"oriflamme\",A199),MID(RIGHT(A199,18),1,11),\"\")","v":"oriflamme-0"},"Wien (Capitale)",{"$f":"MATCH(SUBSTITUTE(C199,\" (Capitale)\",\"\"),OFFSET(Liste,,,,1),0)","v":354},{"$f":"SUMPRODUCT(NOT(ISERROR($B$2:$B199))*($C$2:$C199=C199))","v":1}]
[" 1st Marine Regiment (Evan_t), dans l'enceinte de la ville le 2015-07-22 07:52:14\" src=\"images/oriflamme-1.gif\"><",{"$f":"IF(FIND(\"oriflamme\",A200),MID(RIGHT(A200,18),1,11),\"\")","v":"oriflamme-1"},"Wigtown (Capitale)",{"$f":"MATCH(SUBSTITUTE(C200,\" (Capitale)\",\"\"),OFFSET(Liste,,,,1),0)","v":80},{"$f":"SUMPRODUCT(NOT(ISERROR($B$2:$B200))*($C$2:$C200=C200))","v":1}]
[" Air Tòir Sìthe (Penn_lyon), dans l'enceinte de la ville le 2015-07-22 07:52:14\" src=\"images/oriflamme-4.gif\"><",{"$f":"IF(FIND(\"oriflamme\",A201),MID(RIGHT(A201,18),1,11),\"\")","v":"oriflamme-4"},"Wigtown (Capitale)",{"$f":"MATCH(SUBSTITUTE(C201,\" (Capitale)\",\"\"),OFFSET(Liste,,,,1),0)","v":80},{"$f":"SUMPRODUCT(NOT(ISERROR($B$2:$B201))*($C$2:$C201=C201))","v":2}]
[" Last Rites (Mercyfulfate), dans l'enceinte de la ville le 2015-07-22 07:52:14\" src=\"images/oriflamme-7.gif\"><",{"$f":"IF(FIND(\"oriflamme\",A202),MID(RIGHT(A202,18),1,11),\"\")","v":"oriflamme-7"},"Wigtown (Capitale)",{"$f":"MATCH(SUBSTITUTE(C202,\" (Capitale)\",\"\"),OFFSET(Liste,,,,1),0)","v":80},{"$f":"SUMPRODUCT(NOT(ISERROR($B$2:$B202))*($C$2:$C202=C202))","v":3}]
[" Kraljevska Bosanska Garda (Ady_velicanstveni), aux portes de la ville le 2015-08-01 10:05:29\" src=\"images/oriflamme-1.gif\"><",{"$f":"IF(FIND(\"oriflamme\",A203),MID(RIGHT(A203,18),1,11),\"\")","v":"oriflamme-1"},"Zenica (Capitale)",{"$f":"MATCH(SUBSTITUTE(C203,\" (Capitale)\",\"\"),OFFSET(Liste,,,,1),0)","v":85},{"$f":"SUMPRODUCT(NOT(ISERROR($B$2:$B203))*($C$2:$C203=C203))","v":1}]
[" Ordo Gladio Ecclesiae Bosnica (Periklo), aux portes de la ville le 2015-08-01 10:05:29\" src=\"images/oriflamme-3.gif\"><",{"$f":"IF(FIND(\"oriflamme\",A204),MID(RIGHT(A204,18),1,11),\"\")","v":"oriflamme-3"},"Zenica (Capitale)",{"$f":"MATCH(SUBSTITUTE(C204,\" (Capitale)\",\"\"),OFFSET(Liste,,,,1),0)","v":85},{"$f":"SUMPRODUCT(NOT(ISERROR($B$2:$B204))*($C$2:$C204=C204))","v":2}]
[" Exercitus de Bosnian Lilium (Deusious), dans l'enceinte de la ville le 2015-08-01 10:05:29\" src=\"images/oriflamme-7.gif\"><",{"$f":"IF(FIND(\"oriflamme\",A205),MID(RIGHT(A205,18),1,11),\"\")","v":"oriflamme-7"},"Zenica (Capitale)",{"$f":"MATCH(SUBSTITUTE(C205,\" (Capitale)\",\"\"),OFFSET(Liste,,,,1),0)","v":85},{"$f":"SUMPRODUCT(NOT(ISERROR($B$2:$B205))*($C$2:$C205=C205))","v":3}]
[" Draco exercitus Bosnia (Vegos), aux portes de la ville le 2014-12-27 01:42:53\" src=\"images/oriflamme-7.gif\"><",{"$f":"IF(FIND(\"oriflamme\",A206),MID(RIGHT(A206,18),1,11),\"\")","v":"oriflamme-7"},"Άγιος Γεώργιος",{"$f":"MATCH(SUBSTITUTE(C206,\" (Capitale)\",\"\"),OFFSET(Liste,,,,1),0)","v":12},{"$f":"SUMPRODUCT(NOT(ISERROR($B$2:$B206))*($C$2:$C206=C206))","v":1}]
[" St.George Urban Cohort (Sweet_flame), dans l'enceinte de la ville le 2014-12-28 18:12:17\" src=\"images/oriflamme-5.gif\"><",{"$f":"IF(FIND(\"oriflamme\",A207),MID(RIGHT(A207,18),1,11),\"\")","v":"oriflamme-5"},"Κιλκίς",{"$f":"MATCH(SUBSTITUTE(C207,\" (Capitale)\",\"\"),OFFSET(Liste,,,,1),0)","v":14},{"$f":"SUMPRODUCT(NOT(ISERROR($B$2:$B207))*($C$2:$C207=C207))","v":1}]
[" Asakir-i Mansure-i Muhammediyye (Lordserkan), aux portes de la ville le 2015-02-23 19:18:26\" src=\"images/oriflamme-5.gif\"><",{"$f":"IF(FIND(\"oriflamme\",A208),MID(RIGHT(A208,18),1,11),\"\")","v":"oriflamme-5"},"Σέρρες (Capitale)",{"$f":"MATCH(SUBSTITUTE(C208,\" (Capitale)\",\"\"),OFFSET(Liste,,,,1),0)","v":13},{"$f":"SUMPRODUCT(NOT(ISERROR($B$2:$B208))*($C$2:$C208=C208))","v":1}]
[" Evrenosoğlu Levendân Alayı (Riders), aux portes de la ville le 2015-02-23 19:18:26\" src=\"images/oriflamme-1.gif\"><",{"$f":"IF(FIND(\"oriflamme\",A209),MID(RIGHT(A209,18),1,11),\"\")","v":"oriflamme-1"},"Σέρρες (Capitale)",{"$f":"MATCH(SUBSTITUTE(C209,\" (Capitale)\",\"\"),OFFSET(Liste,,,,1),0)","v":13},{"$f":"SUMPRODUCT(NOT(ISERROR($B$2:$B209))*($C$2:$C209=C209))","v":2}]
[" İstiklâl Bekçileri (Kosele), aux portes de la ville le 2015-02-23 19:18:26\" src=\"images/oriflamme-4.gif\"><",{"$f":"IF(FIND(\"oriflamme\",A210),MID(RIGHT(A210,18),1,11),\"\")","v":"oriflamme-4"},"Σέρρες (Capitale)",{"$f":"MATCH(SUBSTITUTE(C210,\" (Capitale)\",\"\"),OFFSET(Liste,,,,1),0)","v":13},{"$f":"SUMPRODUCT(NOT(ISERROR($B$2:$B210))*($C$2:$C210=C210))","v":3}]
[" Draco exercitus Bosnia (Vegos), dans l'enceinte de la ville le 2015-02-23 19:18:26\" src=\"images/oriflamme-7.gif\"><",{"$f":"IF(FIND(\"oriflamme\",A211),MID(RIGHT(A211,18),1,11),\"\")","v":"oriflamme-7"},"Σέρρες (Capitale)",{"$f":"MATCH(SUBSTITUTE(C211,\" (Capitale)\",\"\"),OFFSET(Liste,,,,1),0)","v":13},{"$f":"SUMPRODUCT(NOT(ISERROR($B$2:$B211))*($C$2:$C211=C211))","v":4}]
[" St.George Urban Cohort (Sweet_flame), dans l'enceinte de la ville le 2015-02-23 19:18:26\" src=\"images/oriflamme-5.gif\"><",{"$f":"IF(FIND(\"oriflamme\",A212),MID(RIGHT(A212,18),1,11),\"\")","v":"oriflamme-5"},"Σέρρες (Capitale)",{"$f":"MATCH(SUBSTITUTE(C212,\" (Capitale)\",\"\"),OFFSET(Liste,,,,1),0)","v":13},{"$f":"SUMPRODUCT(NOT(ISERROR($B$2:$B212))*($C$2:$C212=C212))","v":5}]
[" Tsoutsouras Urban Cohort III (Arkoyda), dans l'enceinte de la ville le 2015-02-23 19:18:26\" src=\"images/oriflamme-7.gif\"><",{"$f":"IF(FIND(\"oriflamme\",A213),MID(RIGHT(A213,18),1,11),\"\")","v":"oriflamme-7"},"Σέρρες (Capitale)",{"$f":"MATCH(SUBSTITUTE(C213,\" (Capitale)\",\"\"),OFFSET(Liste,,,,1),0)","v":13},{"$f":"SUMPRODUCT(NOT(ISERROR($B$2:$B213))*($C$2:$C213=C213))","v":6}]
[" Renaissance guardians (Pompeius_i), aux portes de la ville le 2015-07-19 04:54:10\" src=\"images/oriflamme-4.gif\"><",{"$f":"IF(FIND(\"oriflamme\",A214),MID(RIGHT(A214,18),1,11),\"\")","v":"oriflamme-4"},"Враца",{"$f":"MATCH(SUBSTITUTE(C214,\" (Capitale)\",\"\"),OFFSET(Liste,,,,1),0)","v":7},{"$f":"SUMPRODUCT(NOT(ISERROR($B$2:$B214))*($C$2:$C214=C214))","v":1}]
[" Golden Rose Battalion (Telets), dans l'enceinte de la ville le 2015-07-19 04:54:10\" src=\"images/oriflamme-5.gif\"><",{"$f":"IF(FIND(\"oriflamme\",A215),MID(RIGHT(A215,18),1,11),\"\")","v":"oriflamme-5"},"Враца",{"$f":"MATCH(SUBSTITUTE(C215,\" (Capitale)\",\"\"),OFFSET(Liste,,,,1),0)","v":7},{"$f":"SUMPRODUCT(NOT(ISERROR($B$2:$B215))*($C$2:$C215=C215))","v":2}]
[" ВКС  (Miloss), dans l'enceinte de la ville le 2015-04-22 12:30:14\" src=\"images/oriflamme-0.gif\"><",{"$f":"IF(FIND(\"oriflamme\",A216),MID(RIGHT(A216,18),1,11),\"\")","v":"oriflamme-0"},"Јагодна",{"$f":"MATCH(SUBSTITUTE(C216,\" (Capitale)\",\"\"),OFFSET(Liste,,,,1),0)","v":1},{"$f":"SUMPRODUCT(NOT(ISERROR($B$2:$B216))*($C$2:$C216=C216))","v":1}]
[" Златиборски орлови (Cubica), dans l'enceinte de la ville le 2015-04-22 12:30:14\" src=\"images/oriflamme-4.gif\"><",{"$f":"IF(FIND(\"oriflamme\",A217),MID(RIGHT(A217,18),1,11),\"\")","v":"oriflamme-4"},"Јагодна",{"$f":"MATCH(SUBSTITUTE(C217,\" (Capitale)\",\"\"),OFFSET(Liste,,,,1),0)","v":1},{"$f":"SUMPRODUCT(NOT(ISERROR($B$2:$B217))*($C$2:$C217=C217))","v":2}]
[" Army Council  (Dragoss74), dans l'enceinte de la ville le 2015-07-25 21:46:41\" src=\"images/oriflamme-6.gif\"><",{"$f":"IF(FIND(\"oriflamme\",A218),MID(RIGHT(A218,18),1,11),\"\")","v":"oriflamme-6"},"Ловеч",{"$f":"MATCH(SUBSTITUTE(C218,\" (Capitale)\",\"\"),OFFSET(Liste,,,,1),0)","v":132},{"$f":"SUMPRODUCT(NOT(ISERROR($B$2:$B218))*($C$2:$C218=C218))","v":1}]
[" The Templiers (Petio78), dans l'enceinte de la ville le 2015-08-04 15:50:55\" src=\"images/oriflamme-5.gif\"><",{"$f":"IF(FIND(\"oriflamme\",A219),MID(RIGHT(A219,18),1,11),\"\")","v":"oriflamme-5"},"Лом",{"$f":"MATCH(SUBSTITUTE(C219,\" (Capitale)\",\"\"),OFFSET(Liste,,,,1),0)","v":9},{"$f":"SUMPRODUCT(NOT(ISERROR($B$2:$B219))*($C$2:$C219=C219))","v":1}]
[" Black Warriors (Milica_grehovic), dans l'enceinte de la ville le 2015-07-30 20:02:37\" src=\"images/oriflamme-7.gif\"><",{"$f":"IF(FIND(\"oriflamme\",A220),MID(RIGHT(A220,18),1,11),\"\")","v":"oriflamme-7"},"Рудник",{"$f":"MATCH(SUBSTITUTE(C220,\" (Capitale)\",\"\"),OFFSET(Liste,,,,1),0)","v":2},{"$f":"SUMPRODUCT(NOT(ISERROR($B$2:$B220))*($C$2:$C220=C220))","v":1}]
[" Вукови Рашке (Vojvoda), aux portes de la ville le 2015-08-04 01:04:07\" src=\"images/oriflamme-4.gif\"><",{"$f":"IF(FIND(\"oriflamme\",A221),MID(RIGHT(A221,18),1,11),\"\")","v":"oriflamme-4"},"Смедерево (Capitale)",{"$f":"MATCH(SUBSTITUTE(C221,\" (Capitale)\",\"\"),OFFSET(Liste,,,,1),0)","v":3},{"$f":"SUMPRODUCT(NOT(ISERROR($B$2:$B221))*($C$2:$C221=C221))","v":1}]
[" T-Sila (Sekac), dans l'enceinte de la ville le 2015-08-04 01:04:07\" src=\"images/oriflamme-3.gif\"><",{"$f":"IF(FIND(\"oriflamme\",A222),MID(RIGHT(A222,18),1,11),\"\")","v":"oriflamme-3"},"Смедерево (Capitale)",{"$f":"MATCH(SUBSTITUTE(C222,\" (Capitale)\",\"\"),OFFSET(Liste,,,,1),0)","v":3},{"$f":"SUMPRODUCT(NOT(ISERROR($B$2:$B222))*($C$2:$C222=C222))","v":2}]
[" Витезови Рашке (Masterpera), dans l'enceinte de la ville le 2015-08-04 01:04:07\" src=\"images/oriflamme-7.gif\"><",{"$f":"IF(FIND(\"oriflamme\",A223),MID(RIGHT(A223,18),1,11),\"\")","v":"oriflamme-7"},"Смедерево (Capitale)",{"$f":"MATCH(SUBSTITUTE(C223,\" (Capitale)\",\"\"),OFFSET(Liste,,,,1),0)","v":3},{"$f":"SUMPRODUCT(NOT(ISERROR($B$2:$B223))*($C$2:$C223=C223))","v":3}]
[" Краљева гарда (Arsenije_vukanovic), dans l'enceinte de la ville le 2015-08-04 01:04:07\" src=\"images/oriflamme-1.gif\"><",{"$f":"IF(FIND(\"oriflamme\",A224),MID(RIGHT(A224,18),1,11),\"\")","v":"oriflamme-1"},"Смедерево (Capitale)",{"$f":"MATCH(SUBSTITUTE(C224,\" (Capitale)\",\"\"),OFFSET(Liste,,,,1),0)","v":3},{"$f":"SUMPRODUCT(NOT(ISERROR($B$2:$B224))*($C$2:$C224=C224))","v":4}]
[" Краљева гарда (Arsenije_vukanovic), dans l'enceinte de la ville le 2015-08-04 01:04:07\" src=\"images/oriflamme-1.gif\"><",{"$f":"IF(FIND(\"oriflamme\",A225),MID(RIGHT(A225,18),1,11),\"\")","v":"oriflamme-1"},"Смедерево (Capitale)",{"$f":"MATCH(SUBSTITUTE(C225,\" (Capitale)\",\"\"),OFFSET(Liste,,,,1),0)","v":3},{"$f":"SUMPRODUCT(NOT(ISERROR($B$2:$B225))*($C$2:$C225=C225))","v":5}]
[" T-Sila (Sekac), aux portes de la ville le 2015-07-29 23:00:22\" src=\"images/oriflamme-3.gif\"><",{"$f":"IF(FIND(\"oriflamme\",A226),MID(RIGHT(A226,18),1,11),\"\")","v":"oriflamme-3"},"Смедерево (Capitale)",{"$f":"MATCH(SUBSTITUTE(C226,\" (Capitale)\",\"\"),OFFSET(Liste,,,,1),0)","v":3},{"$f":"SUMPRODUCT(NOT(ISERROR($B$2:$B226))*($C$2:$C226=C226))","v":6}]
[" Вукови Рашке (Vojvoda), aux portes de la ville le 2015-07-29 23:00:22\" src=\"images/oriflamme-4.gif\"><",{"$f":"IF(FIND(\"oriflamme\",A227),MID(RIGHT(A227,18),1,11),\"\")","v":"oriflamme-4"},"Смедерево (Capitale)",{"$f":"MATCH(SUBSTITUTE(C227,\" (Capitale)\",\"\"),OFFSET(Liste,,,,1),0)","v":3},{"$f":"SUMPRODUCT(NOT(ISERROR($B$2:$B227))*($C$2:$C227=C227))","v":7}]
[" Витезови Рашке (Masterpera), dans l'enceinte de la ville le 2015-07-29 23:00:22\" src=\"images/oriflamme-7.gif\"><",{"$f":"IF(FIND(\"oriflamme\",A228),MID(RIGHT(A228,18),1,11),\"\")","v":"oriflamme-7"},"Смедерево (Capitale)",{"$f":"MATCH(SUBSTITUTE(C228,\" (Capitale)\",\"\"),OFFSET(Liste,,,,1),0)","v":3},{"$f":"SUMPRODUCT(NOT(ISERROR($B$2:$B228))*($C$2:$C228=C228))","v":8}]
[" Краљева гарда (Kojadin), dans l'enceinte de la ville le 2015-07-29 23:00:22\" src=\"images/oriflamme-1.gif\"><",{"$f":"IF(FIND(\"oriflamme\",A229),MID(RIGHT(A229,18),1,11),\"\")","v":"oriflamme-1"},"Смедерево (Capitale)",{"$f":"MATCH(SUBSTITUTE(C229,\" (Capitale)\",\"\"),OFFSET(Liste,,,,1),0)","v":3},{"$f":"SUMPRODUCT(NOT(ISERROR($B$2:$B229))*($C$2:$C229=C229))","v":9}]
[null,{"$f":"IF(FIND(\"oriflamme\",A230),MID(RIGHT(A230,18),1,11),\"\")","v":{"$error":"#VALUE!"}},null,{"$f":"MATCH(SUBSTITUTE(C230,\" (Capitale)\",\"\"),OFFSET(Liste,,,,1),0)","v":{"$error":"#N/A"}},{"$f":"SUMPRODUCT(NOT(ISERROR($B$2:$B230))*($C$2:$C230=C230))","v":0}]
[null,{"$f":"IF(FIND(\"oriflamme\",A231),MID(RIGHT(A231,18),1,11),\"\")","v":{"$error":"#VALUE!"}},null,{"$f":"MATCH(SUBSTITUTE(C231,\" (Capitale)\",\"\"),OFFSET(Liste,,,,1),0)","v":{"$error":"#N/A"}},{"$f":"SUMPRODUCT(NOT(ISERROR($B$2:$B231))*($C$2:$C231=C231))","v":0}]
[null,{"$f":"IF(FIND(\"oriflamme\",A232),MID(RIGHT(A232,18),1,11),\"\")","v":{"$error":"#VALUE!"}},null,{"$f":"MATCH(SUBSTITUTE(C232,\" (Capitale)\",\"\"),OFFSET(Liste,,,,1),0)","v":{"$error":"#N/A"}},{"$f":"SUMPRODUCT(NOT(ISERROR($B$2:$B232))*($C$2:$C232=C232))","v":0}]
[null,{"$f":"IF(FIND(\"oriflamme\",A233),MID(RIGHT(A233,18),1,11),\"\")","v":{"$error":"#VALUE!"}},null,{"$f":"MATCH(SUBSTITUTE(C233,\" (Capitale)\",\"\"),OFFSET(Liste,,,,1),0)","v":{"$error":"#N/A"}},{"$f":"SUMPRODUCT(NOT(ISERROR($B$2:$B233))*($C$2:$C233=C233))","v":0}]
[null,{"$f":"IF(FIND(\"oriflamme\",A234),MID(RIGHT(A234,18),1,11),\"\")","v":{"$error":"#VALUE!"}},null,{"$f":"MATCH(SUBSTITUTE(C234,\" (Capitale)\",\"\"),OFFSET(Liste,,,,1),0)","v":{"$error":"#N/A"}},{"$f":"SUMPRODUCT(NOT(ISERROR($B$2:$B234))*($C$2:$C234=C234))","v":0}]
[null,{"$f":"IF(FIND(\"oriflamme\",A235),MID(RIGHT(A235,18),1,11),\"\")","v":{"$error":"#VALUE!"}},null,{"$f":"MATCH(SUBSTITUTE(C235,\" (Capitale)\",\"\"),OFFSET(Liste,,,,1),0)","v":{"$error":"#N/A"}},{"$f":"SUMPRODUCT(NOT(ISERROR($B$2:$B235))*($C$2:$C235=C235))","v":0}]
[null,{"$f":"IF(FIND(\"oriflamme\",A236),MID(RIGHT(A236,18),1,11),\"\")","v":{"$error":"#VALUE!"}},null,{"$f":"MATCH(SUBSTITUTE(C236,\" (Capitale)\",\"\"),OFFSET(Liste,,,,1),0)","v":{"$error":"#N/A"}},{"$f":"SUMPRODUCT(NOT(ISERROR($B$2:$B236))*($C$2:$C236=C236))","v":0}]
[null,{"$f":"IF(FIND(\"oriflamme\",A237),MID(RIGHT(A237,18),1,11),\"\")","v":{"$error":"#VALUE!"}},null,{"$f":"MATCH(SUBSTITUTE(C237,\" (Capitale)\",\"\"),OFFSET(Liste,,,,1),0)","v":{"$error":"#N/A"}},{"$f":"SUMPRODUCT(NOT(ISERROR($B$2:$B237))*($C$2:$C237=C237))","v":0}]
[null,{"$f":"IF(FIND(\"oriflamme\",A238),MID(RIGHT(A238,18),1,11),\"\")","v":{"$error":"#VALUE!"}},null,{"$f":"MATCH(SUBSTITUTE(C238,\" (Capitale)\",\"\"),OFFSET(Liste,,,,1),0)","v":{"$error":"#N/A"}},{"$f":"SUMPRODUCT(NOT(ISERROR($B$2:$B238))*($C$2:$C238=C238))","v":0}]
[null,{"$f":"IF(FIND(\"oriflamme\",A239),MID(RIGHT(A239,18),1,11),\"\")","v":{"$error":"#VALUE!"}},null,{"$f":"MATCH(SUBSTITUTE(C239,\" (Capitale)\",\"\"),OFFSET(Liste,,,,1),0)","v":{"$error":"#N/A"}},{"$f":"SUMPRODUCT(NOT(ISERROR($B$2:$B239))*($C$2:$C239=C239))","v":0}]
[null,{"$f":"IF(FIND(\"oriflamme\",A240),MID(RIGHT(A240,18),1,11),\"\")","v":{"$error":"#VALUE!"}},null,{"$f":"MATCH(SUBSTITUTE(C240,\" (Capitale)\",\"\"),OFFSET(Liste,,,,1),0)","v":{"$error":"#N/A"}},{"$f":"SUMPRODUCT(NOT(ISERROR($B$2:$B240))*($C$2:$C240=C240))","v":0}]
[null,{"$f":"IF(FIND(\"oriflamme\",A241),MID(RIGHT(A241,18),1,11),\"\")","v":{"$error":"#VALUE!"}},null,{"$f":"MATCH(SUBSTITUTE(C241,\" (Capitale)\",\"\"),OFFSET(Liste,,,,1),0)","v":{"$error":"#N/A"}},{"$f":"SUMPRODUCT(NOT(ISERROR($B$2:$B241))*($C$2:$C241=C241))","v":0}]
[null,{"$f":"IF(FIND(\"oriflamme\",A242),MID(RIGHT(A242,18),1,11),\"\")","v":{"$error":"#VALUE!"}},null,{"$f":"MATCH(SUBSTITUTE(C242,\" (Capitale)\",\"\"),OFFSET(Liste,,,,1),0)","v":{"$error":"#N/A"}},{"$f":"SUMPRODUCT(NOT(ISERROR($B$2:$B242))*($C$2:$C242=C242))","v":0}]
[null,{"$f":"IF(FIND(\"oriflamme\",A243),MID(RIGHT(A243,18),1,11),\"\")","v":{"$error":"#VALUE!"}},null,{"$f":"MATCH(SUBSTITUTE(C243,\" (Capitale)\",\"\"),OFFSET(Liste,,,,1),0)","v":{"$error":"#N/A"}},{"$f":"SUMPRODUCT(NOT(ISERROR($B$2:$B243))*($C$2:$C243=C243))","v":0}]
[null,{"$f":"IF(FIND(\"oriflamme\",A244),MID(RIGHT(A244,18),1,11),\"\")","v":{"$error":"#VALUE!"}},null,{"$f":"MATCH(SUBSTITUTE(C244,\" (Capitale)\",\"\"),OFFSET(Liste,,,,1),0)","v":{"$error":"#N/A"}},{"$f":"SUMPRODUCT(NOT(ISERROR($B$2:$B244))*($C$2:$C244=C244))","v":0}]
[null,{"$f":"IF(FIND(\"oriflamme\",A245),MID(RIGHT(A245,18),1,11),\"\")","v":{"$error":"#VALUE!"}},null,{"$f":"MATCH(SUBSTITUTE(C245,\" (Capitale)\",\"\"),OFFSET(Liste,,,,1),0)","v":{"$error":"#N/A"}},{"$f":"SUMPRODUCT(NOT(ISERROR($B$2:$B245))*($C$2:$C245=C245))","v":0}]
[null,{"$f":"IF(FIND(\"oriflamme\",A246),MID(RIGHT(A246,18),1,11),\"\")","v":{"$error":"#VALUE!"}},null,{"$f":"MATCH(SUBSTITUTE(C246,\" (Capitale)\",\"\"),OFFSET(Liste,,,,1),0)","v":{"$error":"#N/A"}},{"$f":"SUMPRODUCT(NOT(ISERROR($B$2:$B246))*($C$2:$C246=C246))","v":0}]
[null,{"$f":"IF(FIND(\"oriflamme\",A247),MID(RIGHT(A247,18),1,11),\"\")","v":{"$error":"#VALUE!"}},null,{"$f":"MATCH(SUBSTITUTE(C247,\" (Capitale)\",\"\"),OFFSET(Liste,,,,1),0)","v":{"$error":"#N/A"}},{"$f":"SUMPRODUCT(NOT(ISERROR($B$2:$B247))*($C$2:$C247=C247))","v":0}]
[null,{"$f":"IF(FIND(\"oriflamme\",A248),MID(RIGHT(A248,18),1,11),\"\")","v":{"$error":"#VALUE!"}},null,{"$f":"MATCH(SUBSTITUTE(C248,\" (Capitale)\",\"\"),OFFSET(Liste,,,,1),0)","v":{"$error":"#N/A"}},{"$f":"SUMPRODUCT(NOT(ISERROR($B$2:$B248))*($C$2:$C248=C248))","v":0}]
[null,{"$f":"IF(FIND(\"oriflamme\",A249),MID(RIGHT(A249,18),1,11),\"\")","v":{"$error":"#VALUE!"}},null,{"$f":"MATCH(SUBSTITUTE(C249,\" (Capitale)\",\"\"),OFFSET(Liste,,,,1),0)","v":{"$error":"#N/A"}},{"$f":"SUMPRODUCT(NOT(ISERROR($B$2:$B249))*($C$2:$C249=C249))","v":0}]
[null,{"$f":"IF(FIND(\"oriflamme\",A250),MID(RIGHT(A250,18),1,11),\"\")","v":{"$error":"#VALUE!"}},null,{"$f":"MATCH(SUBSTITUTE(C250,\" (Capitale)\",\"\"),OFFSET(Liste,,,,1),0)","v":{"$error":"#N/A"}},{"$f":"SUMPRODUCT(NOT(ISERROR($B$2:$B250))*($C$2:$C250=C250))","v":0}]
[null,{"$f":"IF(FIND(\"oriflamme\",A251),MID(RIGHT(A251,18),1,11),\"\")","v":{"$error":"#VALUE!"}},null,{"$f":"MATCH(SUBSTITUTE(C251,\" (Capitale)\",\"\"),OFFSET(Liste,,,,1),0)","v":{"$error":"#N/A"}},{"$f":"SUMPRODUCT(NOT(ISERROR($B$2:$B251))*($C$2:$C251=C251))","v":0}]
[null,{"$f":"IF(FIND(\"oriflamme\",A252),MID(RIGHT(A252,18),1,11),\"\")","v":{"$error":"#VALUE!"}},null,{"$f":"MATCH(SUBSTITUTE(C252,\" (Capitale)\",\"\"),OFFSET(Liste,,,,1),0)","v":{"$error":"#N/A"}},{"$f":"SUMPRODUCT(NOT(ISERROR($B$2:$B252))*($C$2:$C252=C252))","v":0}]
[null,{"$f":"IF(FIND(\"oriflamme\",A253),MID(RIGHT(A253,18),1,11),\"\")","v":{"$error":"#VALUE!"}},null,{"$f":"MATCH(SUBSTITUTE(C253,\" (Capitale)\",\"\"),OFFSET(Liste,,,,1),0)","v":{"$error":"#N/A"}},{"$f":"SUMPRODUCT(NOT(ISERROR($B$2:$B253))*($C$2:$C253=C253))","v":0}]
[null,{"$f":"IF(FIND(\"oriflamme\",A254),MID(RIGHT(A254,18),1,11),\"\")","v":{"$error":"#VALUE!"}},null,{"$f":"MATCH(SUBSTITUTE(C254,\" (Capitale)\",\"\"),OFFSET(Liste,,,,1),0)","v":{"$error":"#N/A"}},{"$f":"SUMPRODUCT(NOT(ISERROR($B$2:$B254))*($C$2:$C254=C254))","v":0}]
[null,{"$f":"IF(FIND(\"oriflamme\",A255),MID(RIGHT(A255,18),1,11),\"\")","v":{"$error":"#VALUE!"}},null,{"$f":"MATCH(SUBSTITUTE(C255,\" (Capitale)\",\"\"),OFFSET(Liste,,,,1),0)","v":{"$error":"#N/A"}},{"$f":"SUMPRODUCT(NOT(ISERROR($B$2:$B255))*($C$2:$C255=C255))","v":0}]
[null,{"$f":"IF(FIND(\"oriflamme\",A256),MID(RIGHT(A256,18),1,11),\"\")","v":{"$error":"#VALUE!"}},null,{"$f":"MATCH(SUBSTITUTE(C256,\" (Capitale)\",\"\"),OFFSET(Liste,,,,1),0)","v":{"$error":"#N/A"}},{"$f":"SUMPRODUCT(NOT(ISERROR($B$2:$B256))*($C$2:$C256=C256))","v":0}]
[null,{"$f":"IF(FIND(\"oriflamme\",A257),MID(RIGHT(A257,18),1,11),\"\")","v":{"$error":"#VALUE!"}},null,{"$f":"MATCH(SUBSTITUTE(C257,\" (Capitale)\",\"\"),OFFSET(Liste,,,,1),0)","v":{"$error":"#N/A"}},{"$f":"SUMPRODUCT(NOT(ISERROR($B$2:$B257))*($C$2:$C257=C257))","v":0}]
[null,{"$f":"IF(FIND(\"oriflamme\",A258),MID(RIGHT(A258,18),1,11),\"\")","v":{"$error":"#VALUE!"}},null,{"$f":"MATCH(SUBSTITUTE(C258,\" (Capitale)\",\"\"),OFFSET(Liste,,,,1),0)","v":{"$error":"#N/A"}},{"$f":"SUMPRODUCT(NOT(ISERROR($B$2:$B258))*($C$2:$C258=C258))","v":0}]
[null,{"$f":"IF(FIND(\"oriflamme\",A259),MID(RIGHT(A259,18),1,11),\"\")","v":{"$error":"#VALUE!"}},null,{"$f":"MATCH(SUBSTITUTE(C259,\" (Capitale)\",\"\"),OFFSET(Liste,,,,1),0)","v":{"$error":"#N/A"}},{"$f":"SUMPRODUCT(NOT(ISERROR($B$2:$B259))*($C$2:$C259=C259))","v":0}]
[null,{"$f":"IF(FIND(\"oriflamme\",A260),MID(RIGHT(A260,18),1,11),\"\")","v":{"$error":"#VALUE!"}},null,{"$f":"MATCH(SUBSTITUTE(C260,\" (Capitale)\",\"\"),OFFSET(Liste,,,,1),0)","v":{"$error":"#N/A"}},{"$f":"SUMPRODUCT(NOT(ISERROR($B$2:$B260))*($C$2:$C260=C260))","v":0}]
[null,{"$f":"IF(FIND(\"oriflamme\",A261),MID(RIGHT(A261,18),1,11),\"\")","v":{"$error":"#VALUE!"}},null,{"$f":"MATCH(SUBSTITUTE(C261,\" (Capitale)\",\"\"),OFFSET(Liste,,,,1),0)","v":{"$error":"#N/A"}},{"$f":"SUMPRODUCT(NOT(ISERROR($B$2:$B261))*($C$2:$C261=C261))","v":0}]
[null,{"$f":"IF(FIND(\"oriflamme\",A262),MID(RIGHT(A262,18),1,11),\"\")","v":{"$error":"#VALUE!"}},null,{"$f":"MATCH(SUBSTITUTE(C262,\" (Capitale)\",\"\"),OFFSET(Liste,,,,1),0)","v":{"$error":"#N/A"}},{"$f":"SUMPRODUCT(NOT(ISERROR($B$2:$B262))*($C$2:$C262=C262))","v":0}]
[null,{"$f":"IF(FIND(\"oriflamme\",A263),MID(RIGHT(A263,18),1,11),\"\")","v":{"$error":"#VALUE!"}},null,{"$f":"MATCH(SUBSTITUTE(C263,\" (Capitale)\",\"\"),OFFSET(Liste,,,,1),0)","v":{"$error":"#N/A"}},{"$f":"SUMPRODUCT(NOT(ISERROR($B$2:$B263))*($C$2:$C263=C263))","v":0}]
[null,{"$f":"IF(FIND(\"oriflamme\",A264),MID(RIGHT(A264,18),1,11),\"\")","v":{"$error":"#VALUE!"}},null,{"$f":"MATCH(SUBSTITUTE(C264,\" (Capitale)\",\"\"),OFFSET(Liste,,,,1),0)","v":{"$error":"#N/A"}},{"$f":"SUMPRODUCT(NOT(ISERROR($B$2:$B264))*($C$2:$C264=C264))","v":0}]
[null,{"$f":"IF(FIND(\"oriflamme\",A265),MID(RIGHT(A265,18),1,11),\"\")","v":{"$error":"#VALUE!"}},null,{"$f":"MATCH(SUBSTITUTE(C265,\" (Capitale)\",\"\"),OFFSET(Liste,,,,1),0)","v":{"$error":"#N/A"}},{"$f":"SUMPRODUCT(NOT(ISERROR($B$2:$B265))*($C$2:$C265=C265))","v":0}]
[null,{"$f":"IF(FIND(\"oriflamme\",A266),MID(RIGHT(A266,18),1,11),\"\")","v":{"$error":"#VALUE!"}},null,{"$f":"MATCH(SUBSTITUTE(C266,\" (Capitale)\",\"\"),OFFSET(Liste,,,,1),0)","v":{"$error":"#N/A"}},{"$f":"SUMPRODUCT(NOT(ISERROR($B$2:$B266))*($C$2:$C266=C266))","v":0}]
[null,{"$f":"IF(FIND(\"oriflamme\",A267),MID(RIGHT(A267,18),1,11),\"\")","v":{"$error":"#VALUE!"}},null,{"$f":"MATCH(SUBSTITUTE(C267,\" (Capitale)\",\"\"),OFFSET(Liste,,,,1),0)","v":{"$error":"#N/A"}},{"$f":"SUMPRODUCT(NOT(ISERROR($B$2:$B267))*($C$2:$C267=C267))","v":0}]
[null,{"$f":"IF(FIND(\"oriflamme\",A268),MID(RIGHT(A268,18),1,11),\"\")","v":{"$error":"#VALUE!"}},null,{"$f":"MATCH(SUBSTITUTE(C268,\" (Capitale)\",\"\"),OFFSET(Liste,,,,1),0)","v":{"$error":"#N/A"}},{"$f":"SUMPRODUCT(NOT(ISERROR($B$2:$B268))*($C$2:$C268=C268))","v":0}]
[null,{"$f":"IF(FIND(\"oriflamme\",A269),MID(RIGHT(A269,18),1,11),\"\")","v":{"$error":"#VALUE!"}},null,{"$f":"MATCH(SUBSTITUTE(C269,\" (Capitale)\",\"\"),OFFSET(Liste,,,,1),0)","v":{"$error":"#N/A"}},{"$f":"SUMPRODUCT(NOT(ISERROR($B$2:$B269))*($C$2:$C269=C269))","v":0}]
[null,{"$f":"IF(FIND(\"oriflamme\",A270),MID(RIGHT(A270,18),1,11),\"\")","v":{"$error":"#VALUE!"}},null,{"$f":"MATCH(SUBSTITUTE(C270,\" (Capitale)\",\"\"),OFFSET(Liste,,,,1),0)","v":{"$error":"#N/A"}},{"$f":"SUMPRODUCT(NOT(ISERROR($B$2:$B270))*($C$2:$C270=C270))","v":0}]
[null,{"$f":"IF(FIND(\"oriflamme\",A271),MID(RIGHT(A271,18),1,11),\"\")","v":{"$error":"#VALUE!"}},null,{"$f":"MATCH(SUBSTITUTE(C271,\" (Capitale)\",\"\"),OFFSET(Liste,,,,1),0)","v":{"$error":"#N/A"}},{"$f":"SUMPRODUCT(NOT(ISERROR($B$2:$B271))*($C$2:$C271=C271))","v":0}]
[null,{"$f":"IF(FIND(\"oriflamme\",A272),MID(RIGHT(A272,18),1,11),\"\")","v":{"$error":"#VALUE!"}},null,{"$f":"MATCH(SUBSTITUTE(C272,\" (Capitale)\",\"\"),OFFSET(Liste,,,,1),0)","v":{"$error":"#N/A"}},{"$f":"SUMPRODUCT(NOT(ISERROR($B$2:$B272))*($C$2:$C272=C272))","v":0}]
[null,{"$f":"IF(FIND(\"oriflamme\",A273),MID(RIGHT(A273,18),1,11),\"\")","v":{"$error":"#VALUE!"}},null,{"$f":"MATCH(SUBSTITUTE(C273,\" (Capitale)\",\"\"),OFFSET(Liste,,,,1),0)","v":{"$error":"#N/A"}},{"$f":"SUMPRODUCT(NOT(ISERROR($B$2:$B273))*($C$2:$C273=C273))","v":0}]
[null,{"$f":"IF(FIND(\"oriflamme\",A274),MID(RIGHT(A274,18),1,11),\"\")","v":{"$error":"#VALUE!"}},null,{"$f":"MATCH(SUBSTITUTE(C274,\" (Capitale)\",\"\"),OFFSET(Liste,,,,1),0)","v":{"$error":"#N/A"}},{"$f":"SUMPRODUCT(NOT(ISERROR($B$2:$B274))*($C$2:$C274=C274))","v":0}]
[null,{"$f":"IF(FIND(\"oriflamme\",A275),MID(RIGHT(A275,18),1,11),\"\")","v":{"$error":"#VALUE!"}},null,{"$f":"MATCH(SUBSTITUTE(C275,\" (Capitale)\",\"\"),OFFSET(Liste,,,,1),0)","v":{"$error":"#N/A"}},{"$f":"SUMPRODUCT(NOT(ISERROR($B$2:$B275))*($C$2:$C275=C275))","v":0}]
[null,{"$f":"IF(FIND(\"oriflamme\",A276),MID(RIGHT(A276,18),1,11),\"\")","v":{"$error":"#VALUE!"}},null,{"$f":"MATCH(SUBSTITUTE(C276,\" (Capitale)\",\"\"),OFFSET(Liste,,,,1),0)","v":{"$error":"#N/A"}},{"$f":"SUMPRODUCT(NOT(ISERROR($B$2:$B276))*($C$2:$C276=C276))","v":0}]
[null,{"$f":"IF(FIND(\"oriflamme\",A277),MID(RIGHT(A277,18),1,11),\"\")","v":{"$error":"#VALUE!"}},null,{"$f":"MATCH(SUBSTITUTE(C277,\" (Capitale)\",\"\"),OFFSET(Liste,,,,1),0)","v":{"$error":"#N/A"}},{"$f":"SUMPRODUCT(NOT(ISERROR($B$2:$B277))*($C$2:$C277=C277))","v":0}]
[null,{"$f":"IF(FIND(\"oriflamme\",A278),MID(RIGHT(A278,18),1,11),\"\")","v":{"$error":"#VALUE!"}},null,{"$f":"MATCH(SUBSTITUTE(C278,\" (Capitale)\",\"\"),OFFSET(Liste,,,,1),0)","v":{"$error":"#N/A"}},{"$f":"SUMPRODUCT(NOT(ISERROR($B$2:$B278))*($C$2:$C278=C278))","v":0}]
[null,{"$f":"IF(FIND(\"oriflamme\",A279),MID(RIGHT(A279,18),1,11),\"\")","v":{"$error":"#VALUE!"}},null,{"$f":"MATCH(SUBSTITUTE(C279,\" (Capitale)\",\"\"),OFFSET(Liste,,,,1),0)","v":{"$error":"#N/A"}},{"$f":"SUMPRODUCT(NOT(ISERROR($B$2:$B279))*($C$2:$C279=C279))","v":0}]
[null,{"$f":"IF(FIND(\"oriflamme\",A280),MID(RIGHT(A280,18),1,11),\"\")","v":{"$error":"#VALUE!"}},null,{"$f":"MATCH(SUBSTITUTE(C280,\" (Capitale)\",\"\"),OFFSET(Liste,,,,1),0)","v":{"$error":"#N/A"}},{"$f":"SUMPRODUCT(NOT(ISERROR($B$2:$B280))*($C$2:$C280=C280))","v":0}]
[null,{"$f":"IF(FIND(\"oriflamme\",A281),MID(RIGHT(A281,18),1,11),\"\")","v":{"$error":"#VALUE!"}},null,{"$f":"MATCH(SUBSTITUTE(C281,\" (Capitale)\",\"\"),OFFSET(Liste,,,,1),0)","v":{"$error":"#N/A"}},{"$f":"SUMPRODUCT(NOT(ISERROR($B$2:$B281))*($C$2:$C281=C281))","v":0}]
[null,{"$f":"IF(FIND(\"oriflamme\",A282),MID(RIGHT(A282,18),1,11),\"\")","v":{"$error":"#VALUE!"}},null,{"$f":"MATCH(SUBSTITUTE(C282,\" (Capitale)\",\"\"),OFFSET(Liste,,,,1),0)","v":{"$error":"#N/A"}},{"$f":"SUMPRODUCT(NOT(ISERROR($B$2:$B282))*($C$2:$C282=C282))","v":0}]
[null,{"$f":"IF(FIND(\"oriflamme\",A283),MID(RIGHT(A283,18),1,11),\"\")","v":{"$error":"#VALUE!"}},null,{"$f":"MATCH(SUBSTITUTE(C283,\" (Capitale)\",\"\"),OFFSET(Liste,,,,1),0)","v":{"$error":"#N/A"}},{"$f":"SUMPRODUCT(NOT(ISERROR($B$2:$B283))*($C$2:$C283=C283))","v":0}]
[null,{"$f":"IF(FIND(\"oriflamme\",A284),MID(RIGHT(A284,18),1,11),\"\")","v":{"$error":"#VALUE!"}},null,{"$f":"MATCH(SUBSTITUTE(C284,\" (Capitale)\",\"\"),OFFSET(Liste,,,,1),0)","v":{"$error":"#N/A"}},{"$f":"SUMPRODUCT(NOT(ISERROR($B$2:$B284))*($C$2:$C284=C284))","v":0}]
[null,{"$f":"IF(FIND(\"oriflamme\",A285),MID(RIGHT(A285,18),1,11),\"\")","v":{"$error":"#VALUE!"}},null,{"$f":"MATCH(SUBSTITUTE(C285,\" (Capitale)\",\"\"),OFFSET(Liste,,,,1),0)","v":{"$error":"#N/A"}},{"$f":"SUMPRODUCT(NOT(ISERROR($B$2:$B285))*($C$2:$C285=C285))","v":0}]
[null,{"$f":"IF(FIND(\"oriflamme\",A286),MID(RIGHT(A286,18),1,11),\"\")","v":{"$error":"#VALUE!"}},null,{"$f":"MATCH(SUBSTITUTE(C286,\" (Capitale)\",\"\"),OFFSET(Liste,,,,1),0)","v":{"$error":"#N/A"}},{"$f":"SUMPRODUCT(NOT(ISERROR($B$2:$B286))*($C$2:$C286=C286))","v":0}]
[null,{"$f":"IF(FIND(\"oriflamme\",A287),MID(RIGHT(A287,18),1,11),\"\")","v":{"$error":"#VALUE!"}},null,{"$f":"MATCH(SUBSTITUTE(C287,\" (Capitale)\",\"\"),OFFSET(Liste,,,,1),0)","v":{"$error":"#N/A"}},{"$f":"SUMPRODUCT(NOT(ISERROR($B$2:$B287))*($C$2:$C287=C287))","v":0}]
[null,{"$f":"IF(FIND(\"oriflamme\",A288),MID(RIGHT(A288,18),1,11),\"\")","v":{"$error":"#VALUE!"}},null,{"$f":"MATCH(SUBSTITUTE(C288,\" (Capitale)\",\"\"),OFFSET(Liste,,,,1),0)","v":{"$error":"#N/A"}},{"$f":"SUMPRODUCT(NOT(ISERROR($B$2:$B288))*($C$2:$C288=C288))","v":0}]
[null,{"$f":"IF(FIND(\"oriflamme\",A289),MID(RIGHT(A289,18),1,11),\"\")","v":{"$error":"#VALUE!"}},null,{"$f":"MATCH(SUBSTITUTE(C289,\" (Capitale)\",\"\"),OFFSET(Liste,,,,1),0)","v":{"$error":"#N/A"}},{"$f":"SUMPRODUCT(NOT(ISERROR($B$2:$B289))*($C$2:$C289=C289))","v":0}]
[null,{"$f":"IF(FIND(\"oriflamme\",A290),MID(RIGHT(A290,18),1,11),\"\")","v":{"$error":"#VALUE!"}},null,{"$f":"MATCH(SUBSTITUTE(C290,\" (Capitale)\",\"\"),OFFSET(Liste,,,,1),0)","v":{"$error":"#N/A"}},{"$f":"SUMPRODUCT(NOT(ISERROR($B$2:$B290))*($C$2:$C290=C290))","v":0}]
[null,{"$f":"IF(FIND(\"oriflamme\",A291),MID(RIGHT(A291,18),1,11),\"\")","v":{"$error":"#VALUE!"}},null,{"$f":"MATCH(SUBSTITUTE(C291,\" (Capitale)\",\"\"),OFFSET(Liste,,,,1),0)","v":{"$error":"#N/A"}},{"$f":"SUMPRODUCT(NOT(ISERROR($B$2:$B291))*($C$2:$C291=C291))","v":0}]
[null,{"$f":"IF(FIND(\"oriflamme\",A292),MID(RIGHT(A292,18),1,11),\"\")","v":{"$error":"#VALUE!"}},null,{"$f":"MATCH(SUBSTITUTE(C292,\" (Capitale)\",\"\"),OFFSET(Liste,,,,1),0)","v":{"$error":"#N/A"}},{"$f":"SUMPRODUCT(NOT(ISERROR($B$2:$B292))*($C$2:$C292=C292))","v":0}]
[null,{"$f":"IF(FIND(\"oriflamme\",A293),MID(RIGHT(A293,18),1,11),\"\")","v":{"$error":"#VALUE!"}},null,{"$f":"MATCH(SUBSTITUTE(C293,\" (Capitale)\",\"\"),OFFSET(Liste,,,,1),0)","v":{"$error":"#N/A"}},{"$f":"SUMPRODUCT(NOT(ISERROR($B$2:$B293))*($C$2:$C293=C293))","v":0}]
[null,{"$f":"IF(FIND(\"oriflamme\",A294),MID(RIGHT(A294,18),1,11),\"\")","v":{"$error":"#VALUE!"}},null,{"$f":"MATCH(SUBSTITUTE(C294,\" (Capitale)\",\"\"),OFFSET(Liste,,,,1),0)","v":{"$error":"#N/A"}},{"$f":"SUMPRODUCT(NOT(ISERROR($B$2:$B294))*($C$2:$C294=C294))","v":0}]
[null,{"$f":"IF(FIND(\"oriflamme\",A295),MID(RIGHT(A295,18),1,11),\"\")","v":{"$error":"#VALUE!"}},null,{"$f":"MATCH(SUBSTITUTE(C295,\" (Capitale)\",\"\"),OFFSET(Liste,,,,1),0)","v":{"$error":"#N/A"}},{"$f":"SUMPRODUCT(NOT(ISERROR($B$2:$B295))*($C$2:$C295=C295))","v":0}]
[null,{"$f":"IF(FIND(\"oriflamme\",A296),MID(RIGHT(A296,18),1,11),\"\")","v":{"$error":"#VALUE!"}},null,{"$f":"MATCH(SUBSTITUTE(C296,\" (Capitale)\",\"\"),OFFSET(Liste,,,,1),0)","v":{"$error":"#N/A"}},{"$f":"SUMPRODUCT(NOT(ISERROR($B$2:$B296))*($C$2:$C296=C296))","v":0}]
[null,{"$f":"IF(FIND(\"oriflamme\",A297),MID(RIGHT(A297,18),1,11),\"\")","v":{"$error":"#VALUE!"}},null,{"$f":"MATCH(SUBSTITUTE(C297,\" (Capitale)\",\"\"),OFFSET(Liste,,,,1),0)","v":{"$error":"#N/A"}},{"$f":"SUMPRODUCT(NOT(ISERROR($B$2:$B297))*($C$2:$C297=C297))","v":0}]
[null,{"$f":"IF(FIND(\"oriflamme\",A298),MID(RIGHT(A298,18),1,11),\"\")","v":{"$error":"#VALUE!"}},null,{"$f":"MATCH(SUBSTITUTE(C298,\" (Capitale)\",\"\"),OFFSET(Liste,,,,1),0)","v":{"$error":"#N/A"}},{"$f":"SUMPRODUCT(NOT(ISERROR($B$2:$B298))*($C$2:$C298=C298))","v":0}]
[null,{"$f":"IF(FIND(\"oriflamme\",A299),MID(RIGHT(A299,18),1,11),\"\")","v":{"$error":"#VALUE!"}},null,{"$f":"MATCH(SUBSTITUTE(C299,\" (Capitale)\",\"\"),OFFSET(Liste,,,,1),0)","v":{"$error":"#N/A"}},{"$f":"SUMPRODUCT(NOT(ISERROR($B$2:$B299))*($C$2:$C299=C299))","v":0}]
[null,{"$f":"IF(FIND(\"oriflamme\",A300),MID(RIGHT(A300,18),1,11),\"\")","v":{"$error":"#VALUE!"}},null,{"$f":"MATCH(SUBSTITUTE(C300,\" (Capitale)\",\"\"),OFFSET(Liste,,,,1),0)","v":{"$error":"#N/A"}},{"$f":"SUMPRODUCT(NOT(ISERROR($B$2:$B300))*($C$2:$C300=C300))","v":0}]

{"sheet":"images","index":2,"n_rows":12,"n_cols":4,"rows_kept":12,"cut":false,"hidden":true,"merged":[]}
[]
[]
[]
[null,"oriflamme-0",null,{"$f":"CELL(\"address\",C4)","v":"$C$4"}]
[null,"oriflamme-1",null,{"$f":"CELL(\"address\",C5)","v":"$C$5"}]
[null,"oriflamme-2",null,"$C$6"]
[null,"oriflamme-3",null,"$C$7"]
[null,"oriflamme-4",null,"$C$8"]
[null,"oriflamme-5",null,"$C$9"]
[null,"oriflamme-6",null,"$C$10"]
[null,"oriflamme-7",null,"$C$11"]
[null,"oriflamme-8",null,"$C$12"]

{"sheet":"carte","index":3,"n_rows":227,"n_cols":121,"rows_kept":227,"cut":false,"hidden":false,"merged":[]}
[]
[]
[]
[]
[]
[]
[]
[]
[]
[]
[]
[]
[]
[]
[]
[]
[]
[]
[]
[]
[]
[]
[]
[]
[]
[]
[]
[]
[]
[]
[]
[]
[]
[]
[]
[]
[]
[]
[]
[]
[]
[]
[]
[]
[]
[]
[]
[]
[]
[]
[]
[]
[]
[]
[]
[]
[]
[]
[]
[]
[]
[]
[]
[]
[]
[]
[]
[]
[]
[]
[]
[]
[]
[]
[]
[]
[]
[]
[]
[]
[]
[]
[]
[]
[]
[]
[]
[]
[]
[]
[null,null,null,null,null,null,null,null,null,null,null,null,null,null,null,null,null,null,null,null,null,null,")"]
[]
[]
[]
[]
[]
[]
[]
[]
[]
[]
[]
[]
[]
[]
[]
[]
[]
[]
[]
[]
[]
[]
[]
[]
[]
[]
[]
[]
[]
[]
[]
[]
[]
[]
[]
[]
[]
[]
[]
[]
[]
[]
[]
[]
[]
[]
[]
[]
[]
[]
[]
[]
[]
[]
[]
[]
[]
[]
[]
[]
[]
[]
[]
[]
[]
[]
[]
[]
[]
[]
[]
[]
[]
[]
[]
[]
[]
[]
[]
[]
[]
[]
[]
[]
[]
[]
[]
[]
[]
[]
[]
[]
[]
[]
[]
[]
[]
[]
[]
[]
[]
[]
[]
[]
[]
[]
[]
[]
[]
[]
[]
[]
[]
[]
[]
[]
[]
[]
[]
[]
[]
[]
[]
[]
[]
[]
[]
[]
[]
[]
[]
[]
[]
[]
[]
[null,null,null,null,null,null,null,null,null,null,null,null,null,null,null,null,null,null,null,null,null,null,null,null,null,null,null,null,null,null,null,null,null,null,null,null,null,null,null,null,null,null,null,null,null,null,null,null,null,null,null,null,null,null,null,null,null,null,null,null,null,null,null,null,null,null,null,null,null,null,null,null,null,null,null,null,null,null,null,null,null,null,null,null,null,null,null,null,null,null,null,null,null,null,null,null,null,null,null,null,null,null,null,null,null,null,null,null,null,null,null,null,null,null,null,null,null,null,null,null,")"]

{"sheet":"coordonnée","index":4,"n_rows":439,"n_cols":5,"rows_kept":439,"cut":false,"hidden":true,"merged":[]}
[]
[null,"Village"]
[null,"Јагодна"]
[null,"Рудник"]
[null,"Смедерево"]
[null,"Новгород"]
[null,"Велико Търново"]
[null,"Видин"]
[null,"Враца"]
[null,"Кутловица"]
[null,"Лом"]
[null,"Самоков"]
[null,"София"]
[null,"Άγιος Γεώργιος"]
[null,"Σέρρες"]
[null,"Κιλκίς",{"$f":"CELL(\"address\",carte!KG248)","v":"'[Carte_ArmeeRR (version beta) - Copie.xlsm]carte'!$KG$248"}]
[null,"Caspe",{"$f":"CELL(\"address\",carte!CM260)","v":"'[Carte_ArmeeRR (version beta) - Copie.xlsm]carte'!$CM$260"}]
[null,"Urgel",{"$f":"CELL(\"address\",carte!DA246)","v":"'[Carte_ArmeeRR (version beta) - Copie.xlsm]carte'!$DA$246"}]
[null,"Barcelona",{"$f":"CELL(\"address\",carte!DF260)","v":"'[Carte_ArmeeRR (version beta) - Copie.xlsm]carte'!$DF$260"}]
[null,"Gerona",{"$f":"CELL(\"address\",carte!DL252)","v":"'[Carte_ArmeeRR (version beta) - Copie.xlsm]carte'!$DL$252"}]
[null,"Lérida",{"$f":"CELL(\"address\",carte!CS256)","v":"'[Carte_ArmeeRR (version beta) - Copie.xlsm]carte'!$CS$256"}]
[null,"Puigcerdà",{"$f":"CELL(\"address\",carte!DE248)","v":"'[Carte_ArmeeRR (version beta) - Copie.xlsm]carte'!$DE$248"}]
[null,"Tarragona",{"$f":"CELL(\"address\",carte!CW263)","v":"'[Carte_ArmeeRR (version beta) - Copie.xlsm]carte'!$CW$263"},null,{"$f":"CELL(\"address\",carte!S131:S132)","v":"'[Carte_ArmeeRR (version beta) - Copie.xlsm]carte'!$S$131"}]
[null,"Tortosa",{"$f":"CELL(\"address\",carte!CQ267)","v":"'[Carte_ArmeeRR (version beta) - Copie.xlsm]carte'!$CQ$267"},"ou",{"$f":"CELL(\"address\",carte!R133:R134)","v":"'[Carte_ArmeeRR (version beta) - Copie.xlsm]carte'!$R$133"}]
[null,"Vic",{"$f":"CELL(\"address\",carte!DF253)","v":"'[Carte_ArmeeRR (version beta) - Copie.xlsm]carte'!$DF$253"}]
[null,"Calatayud",{"$f":"CELL(\"address\",carte!BY258)","v":"'[Carte_ArmeeRR (version beta) - Copie.xlsm]carte'!$BY$258"}]
[null,"Fraga",{"$f":"CELL(\"address\",carte!CP256)","v":"'[Carte_ArmeeRR (version beta) - Copie.xlsm]carte'!$CP$256"}]
[null,"Huesca",{"$f":"CELL(\"address\",carte!CK247)","v":"'[Carte_ArmeeRR (version beta) - Copie.xlsm]carte'!$CK$247"}]
[null,"Jaca",{"$f":"CELL(\"address\",carte!CJ242)","v":"'[Carte_ArmeeRR (version beta) - Copie.xlsm]carte'!$CJ$242"}]
[null,"Monzón",{"$f":"CELL(\"address\",carte!CP250)","v":"'[Carte_ArmeeRR (version beta) - Copie.xlsm]carte'!$CP$250"}]
[null,"Zaragoza",{"$f":"CELL(\"address\",carte!CE254)","v":"'[Carte_ArmeeRR (version beta) - Copie.xlsm]carte'!$CE$254"}]
[null,"Castellón",{"$f":"CELL(\"address\",carte!CL277)","v":"'[Carte_ArmeeRR (version beta) - Copie.xlsm]carte'!$CL$277"}]
[null,"Játiva",{"$f":"CELL(\"address\",carte!CG293)","v":"'[Carte_ArmeeRR (version beta) - Copie.xlsm]carte'!$CG$293"}]
[null,"Segorbe",{"$f":"CELL(\"address\",carte!CH279)","v":"'[Carte_ArmeeRR (version beta) - Copie.xlsm]carte'!$CH$279"}]
[null,"Valencia",{"$f":"CELL(\"address\",carte!CH286)","v":"'[Carte_ArmeeRR (version beta) - Copie.xlsm]carte'!$CH$286"}]
[null,"Aranda de Duero",{"$f":"CELL(\"address\",carte!BG253)","v":"'[Carte_ArmeeRR (version beta) - Copie.xlsm]carte'!$BG$253"}]
[null,"Burgos",{"$f":"CELL(\"address\",carte!BG244)","v":"'[Carte_ArmeeRR (version beta) - Copie.xlsm]carte'!$BG$244"},"ou",{"$f":"CELL(\"address\",carte!L122:L123)","v":"'[Carte_ArmeeRR (version beta) - Copie.xlsm]carte'!$L$122"}]
[null,"Osma",{"$f":"CELL(\"address\",carte!BK256)","v":"'[Carte_ArmeeRR (version beta) - Copie.xlsm]carte'!$BK$256"}]
[null,"Soria",{"$f":"CELL(\"address\",carte!BP254)","v":"'[Carte_ArmeeRR (version beta) - Copie.xlsm]carte'!$BP$254"}]
[null,"Valladolid",{"$f":"CELL(\"address\",carte!AW252)","v":"'[Carte_ArmeeRR (version beta) - Copie.xlsm]carte'!$AW$252"}]
[null,"Corcaigh",{"$f":"CELL(\"address\",carte!AN100)","v":"'[Carte_ArmeeRR (version beta) - Copie.xlsm]carte'!$AN$100"}]
[null,"Lios Mór",{"$f":"CELL(\"address\",carte!AS100)","v":"'[Carte_ArmeeRR (version beta) - Copie.xlsm]carte'!$AS$100"}]
[null,"An Gort",{"$f":"CELL(\"address\",carte!AN82)","v":"'[Carte_ArmeeRR (version beta) - Copie.xlsm]carte'!$AN$82"}]
[null,"Baile Átha Luain",{"$f":"CELL(\"address\",carte!AW72)","v":"'[Carte_ArmeeRR (version beta) - Copie.xlsm]carte'!$AW$72"}]
[null,"Baile Locha Riach",{"$f":"CELL(\"address\",carte!AV81)","v":"'[Carte_ArmeeRR (version beta) - Copie.xlsm]carte'!$AV$81"}]
[null,"An Caiseal",{"$f":"CELL(\"address\",carte!AR94)","v":"'[Carte_ArmeeRR (version beta) - Copie.xlsm]carte'!$AR$94"}]
[null,"An tInbhear Mór"]
[null,"Ceatharlach"]
[null,"Cill Chainnigh",{"$f":"CELL(\"address\",carte!BA90)","v":"'[Carte_ArmeeRR (version beta) - Copie.xlsm]carte'!$BA$90"}]
[null,"Port Láirge",{"$f":"CELL(\"address\",carte!AW97)","v":"'[Carte_ArmeeRR (version beta) - Copie.xlsm]carte'!$AW$97"}]
[null,"Imleach",{"$f":"CELL(\"address\",carte!AP96)","v":"'[Carte_ArmeeRR (version beta) - Copie.xlsm]carte'!$AP$96"}]
[null,"Helsingør"]
[null,"Falun"]
[null,"Gefle"]
[null,"Rauma"]
[null,"Turku"]
[null,"Dénia"]
[null,"Barnstaple",{"$f":"CELL(\"address\",carte!BQ118)","v":"'[Carte_ArmeeRR (version beta) - Copie.xlsm]carte'!$BQ$118"}]
[null,"Bridgewater",{"$f":"CELL(\"address\",carte!BZ118)","v":"'[Carte_ArmeeRR (version beta) - Copie.xlsm]carte'!$BZ$118"}]
[null,"Bristol",{"$f":"CELL(\"address\",carte!CC114)","v":"'[Carte_ArmeeRR (version beta) - Copie.xlsm]carte'!$CC$114"}]
[null,"Chard",{"$f":"CELL(\"address\",carte!BZ122)","v":"'[Carte_ArmeeRR (version beta) - Copie.xlsm]carte'!$BZ$122"}]
[null,"Dartmouth",{"$f":"CELL(\"address\",carte!BT127)","v":"'[Carte_ArmeeRR (version beta) - Copie.xlsm]carte'!$BT$127"}]
[null,"Salisbury",{"$f":"CELL(\"address\",carte!CI121)","v":"'[Carte_ArmeeRR (version beta) - Copie.xlsm]carte'!$CI$121"}]
[null,"Southampton",{"$f":"CELL(\"address\",carte!CJ124)","v":"'[Carte_ArmeeRR (version beta) - Copie.xlsm]carte'!$CJ$124"}]
[null,"Derby",{"$f":"CELL(\"address\",carte!CM95)","v":"'[Carte_ArmeeRR (version beta) - Copie.xlsm]carte'!$CM$95"}]
[null,"Evesham",{"$f":"CELL(\"address\",carte!CH108)","v":"'[Carte_ArmeeRR (version beta) - Copie.xlsm]carte'!$CH$108"}]
[null,"Lichfield"]
[null,"Worcester",{"$f":"CELL(\"address\",carte!CF105)","v":"'[Carte_ArmeeRR (version beta) - Copie.xlsm]carte'!$CF$105"}]
[null,"Arundel",{"$f":"CELL(\"address\",carte!CP125)","v":"'[Carte_ArmeeRR (version beta) - Copie.xlsm]carte'!$CP$125"}]
[null,"Dover",{"$f":"CELL(\"address\",carte!DD123)","v":"'[Carte_ArmeeRR (version beta) - Copie.xlsm]carte'!$DD$123"}]
[null,"Hastings",{"$f":"CELL(\"address\",carte!CZ125)","v":"'[Carte_ArmeeRR (version beta) - Copie.xlsm]carte'!$CZ$125"}]
[null,"Lewes",{"$f":"CELL(\"address\",carte!CU126)","v":"'[Carte_ArmeeRR (version beta) - Copie.xlsm]carte'!$CU$126"}]
[null,"Holywell",{"$f":"CELL(\"address\",carte!CA90)","v":"'[Carte_ArmeeRR (version beta) - Copie.xlsm]carte'!$CA$90"}]
[null,"Egremont",{"$f":"CELL(\"address\",carte!CA72)","v":"'[Carte_ArmeeRR (version beta) - Copie.xlsm]carte'!$CA$72"}]
[null,"Kendal",{"$f":"CELL(\"address\",carte!CF74)","v":"'[Carte_ArmeeRR (version beta) - Copie.xlsm]carte'!$CF$74"}]
[null,"Liverpool",{"$f":"CELL(\"address\",carte!CD87)","v":"'[Carte_ArmeeRR (version beta) - Copie.xlsm]carte'!$CD$87"}]
[null,"Manchester",{"$f":"CELL(\"address\",carte!CH86)","v":"'[Carte_ArmeeRR (version beta) - Copie.xlsm]carte'!$CH$86"}]
[null,"Penrith"]
[null,"Girvan",{"$f":"CELL(\"address\",carte!BS60)","v":"'[Carte_ArmeeRR (version beta) - Copie.xlsm]carte'!$BS$60"}]
[null,"Kirkcudbright",{"$f":"CELL(\"address\",carte!BX66)","v":"'[Carte_ArmeeRR (version beta) - Copie.xlsm]carte'!$BX$66"}]
[null,"Whithorn",{"$f":"CELL(\"address\",carte!BU66)","v":"'[Carte_ArmeeRR (version beta) - Copie.xlsm]carte'!$BU$66"}]
[null,"Wigtown",{"$f":"CELL(\"address\",carte!BV63)","v":"'[Carte_ArmeeRR (version beta) - Copie.xlsm]carte'!$BV$63"}]
[null,"Ardencaple",{"$f":"CELL(\"address\",carte!BW48)","v":"'[Carte_ArmeeRR (version beta) - Copie.xlsm]carte'!$BW$48"}]
[null,"Glasgow",{"$f":"CELL(\"address\",carte!BZ50)","v":"'[Carte_ArmeeRR (version beta) - Copie.xlsm]carte'!$BZ$50"}]
[null,"Stirling",{"$f":"CELL(\"address\",carte!CB49)","v":"'[Carte_ArmeeRR (version beta) - Copie.xlsm]carte'!$CB$49"}]
[null,"Brštanik"]
[null,"Zenica"]
[null,"Dubovac"]
[null,"Rijeka"]
[null,"Vrbovsko"]
[null,"Esztergom"]
[null,"Győr"]
[null,"Székesfehérvár"]
[null,"Kraków",{"$f":"CELL(\"address\",carte!IN131)","v":"'[Carte_ArmeeRR (version beta) - Copie.xlsm]carte'!$IN$131"}]
[null,"Nowy Sącz",{"$f":"CELL(\"address\",carte!IS137)","v":"'[Carte_ArmeeRR (version beta) - Copie.xlsm]carte'!$IS$137"}]
[null,"Nowy Targ",{"$f":"CELL(\"address\",carte!IP141)","v":"'[Carte_ArmeeRR (version beta) - Copie.xlsm]carte'!$IP$141"}]
[null,"Oświęcim",{"$f":"CELL(\"address\",carte!IK135)","v":"'[Carte_ArmeeRR (version beta) - Copie.xlsm]carte'!$IK$135"}]
[null,"Tarnów",{"$f":"CELL(\"address\",carte!IU132)","v":"'[Carte_ArmeeRR (version beta) - Copie.xlsm]carte'!$IU$132"}]
[null,"Wolbrom",{"$f":"CELL(\"address\",carte!IK127)","v":"'[Carte_ArmeeRR (version beta) - Copie.xlsm]carte'!$IK$127"}]
[null,"Czersk"]
[null,"Płock",{"$f":"CELL(\"address\",carte!IP101)","v":"'[Carte_ArmeeRR (version beta) - Copie.xlsm]carte'!$IP$101"}]
[null,"Rawa",{"$f":"CELL(\"address\",carte!IR111)","v":"'[Carte_ArmeeRR (version beta) - Copie.xlsm]carte'!$IR$111"}]
[null,"Warszawa",{"$f":"CELL(\"address\",carte!IV105)","v":"'[Carte_ArmeeRR (version beta) - Copie.xlsm]carte'!$IV$105"}]
[null,"Wyszogród",{"$f":"CELL(\"address\",carte!IR103)","v":"'[Carte_ArmeeRR (version beta) - Copie.xlsm]carte'!$IR$103"}]
[null,"Częstochowa",{"$f":"CELL(\"address\",carte!IH122)","v":"'[Carte_ArmeeRR (version beta) - Copie.xlsm]carte'!$IH$122"}]
[null,"Gniezno",{"$f":"CELL(\"address\",carte!HT101)","v":"'[Carte_ArmeeRR (version beta) - Copie.xlsm]carte'!$HT$101"}]
[null,"Kalisz",{"$f":"CELL(\"address\",carte!IB111)","v":"'[Carte_ArmeeRR (version beta) - Copie.xlsm]carte'!$IB$111"}]
[null,"Poznań",{"$f":"CELL(\"address\",carte!HN101)","v":"'[Carte_ArmeeRR (version beta) - Copie.xlsm]carte'!$HN$101"}]
[null,"Skwierzyna",{"$f":"CELL(\"address\",carte!HG100)","v":"'[Carte_ArmeeRR (version beta) - Copie.xlsm]carte'!$HG$100"}]
[null,"Dyrrah"]
[null,"Lezhë"]
[null,"Bandırma"]
[null,"Dursunbey"]
[null,"Gemlik"]
[null,"Inegöl"]
[null,"Karacabey"]
[null,"Tavşanlı"]
[null,"Şarköy"]
[null,"Edirne"]
[null,"Gelibolu"]
[null,"Harmanli"]
[null,"Keşan"]
[null,"Kirklareli"]
[null,"Tekirdağ"]
[null,"Türbedere"]
[null,"Çanakkale"]
[null,"Ayvalık"]
[null,"Balikesir"]
[null,"Balya"]
[null,"Çan"]
[null,"Edremit"]
[null,"Ezine"]
[null,"Gönen"]
[null,"Ловеч"]
[null,"Câmpulung"]
[null,"Curtea de Argeş"]
[null,"Piteşti"]
[null,"Roşiorii de Vede"]
[null,"Slatina"]
[null,"Snagov"]
[null,"Târgşor"]
[null,"Târgovişte"]
[null,"Avezzano"]
[null,"Chieti"]
[null,"L'Aquila"]
[null,"Silvi"]
[null,"Sulmona"]
[null,"Tagliacozzo"]
[null,"Teramo"]
[null,"Capua"]
[null,"Gaeta"]
[null,"Pontecorvo"]
[null,"Sessa Aurunca"]
[null,"Sora"]
[null,"Terracina"]
[null,"Alcobaça"]
[null,"Aveiro"]
[null,"Coimbra"]
[null,"Guarda"]
[null,"Leiria"]
[null,"Viseu"]
[null,"Évora"]
[null,"Alcácer do Sal"]
[null,"Avis"]
[null,"Crato"]
[null,"Elvas"]
[null,"Lisboa"]
[null,"Montemor"]
[null,"Santarém"]
[null,"Setúbal"]
[null,"Braga"]
[null,"Chaves"]
[null,"Lamego"]
[null,"Porto"]
[null,"Auch",{"$f":"CELL(\"address\",carte!CT228)","v":"'[Carte_ArmeeRR (version beta) - Copie.xlsm]carte'!$CT$228"}]
[null,"Eauze",{"$f":"CELL(\"address\",carte!CO226)","v":"'[Carte_ArmeeRR (version beta) - Copie.xlsm]carte'!$CO$226"}]
[null,"Lectoure",{"$f":"CELL(\"address\",carte!CV224)","v":"'[Carte_ArmeeRR (version beta) - Copie.xlsm]carte'!$CV$224"}]
[null,"Muret",{"$f":"CELL(\"address\",carte!CV230)","v":"'[Carte_ArmeeRR (version beta) - Copie.xlsm]carte'!$CV$230"}]
[null,"Saint Bertrand de Comminges",{"$f":"CELL(\"address\",carte!CS236)","v":"'[Carte_ArmeeRR (version beta) - Copie.xlsm]carte'!$CS$236"}]
[null,"Saint-Liziers",{"$f":"CELL(\"address\",carte!CW236)","v":"'[Carte_ArmeeRR (version beta) - Copie.xlsm]carte'!$CW$236"}]
[null,"Arras",{"$f":"CELL(\"address\",carte!DQ135)","v":"'[Carte_ArmeeRR (version beta) - Copie.xlsm]carte'!$DQ$135"}]
[null,"Azincourt",{"$f":"CELL(\"address\",carte!DK132)","v":"'[Carte_ArmeeRR (version beta) - Copie.xlsm]carte'!$DK$132"}]
[null,"Bertincourt",{"$f":"CELL(\"address\",carte!DH138)","v":"'[Carte_ArmeeRR (version beta) - Copie.xlsm]carte'!$DH$138"}]
[null,"Calais",{"$f":"CELL(\"address\",carte!DJ125)","v":"'[Carte_ArmeeRR (version beta) - Copie.xlsm]carte'!$DJ$125"}]
[null,"Cambrai",{"$f":"CELL(\"address\",carte!DU136)","v":"'[Carte_ArmeeRR (version beta) - Copie.xlsm]carte'!$DU$136"}]
[null,"Péronne"]
[null,"Lourdes",{"$f":"CELL(\"address\",carte!CL238)","v":"'[Carte_ArmeeRR (version beta) - Copie.xlsm]carte'!$CL$238"}]
[null,"Mauléon",{"$f":"CELL(\"address\",carte!CG234)","v":"'[Carte_ArmeeRR (version beta) - Copie.xlsm]carte'!$CG$234"}]
[null,"Orthez",{"$f":"CELL(\"address\",carte!CI230)","v":"'[Carte_ArmeeRR (version beta) - Copie.xlsm]carte'!$CI$230"}]
[null,"Pau",{"$f":"CELL(\"address\",carte!CL232)","v":"'[Carte_ArmeeRR (version beta) - Copie.xlsm]carte'!$CL$232"}]
[null,"Tarbes",{"$f":"CELL(\"address\",carte!CP234)","v":"'[Carte_ArmeeRR (version beta) - Copie.xlsm]carte'!$CP$234"}]
[null,"Antwerpen",{"$f":"CELL(\"address\",carte!EB124)","v":"'[Carte_ArmeeRR (version beta) - Copie.xlsm]carte'!$EB$124"}]
[null,"Bruges",{"$f":"CELL(\"address\",carte!DS123)","v":"'[Carte_ArmeeRR (version beta) - Copie.xlsm]carte'!$DS$123"}]
[null,"Dunkerque",{"$f":"CELL(\"address\",carte!DO124)","v":"'[Carte_ArmeeRR (version beta) - Copie.xlsm]carte'!$DO$124"}]
[null,"Gent",{"$f":"CELL(\"address\",carte!DU124)","v":"'[Carte_ArmeeRR (version beta) - Copie.xlsm]carte'!$DU$124"}]
[null,"Tournai",{"$f":"CELL(\"address\",carte!DU131)","v":"'[Carte_ArmeeRR (version beta) - Copie.xlsm]carte'!$DU$131"}]
[null,"Espalion",{"$f":"CELL(\"address\",carte!DO216)","v":"'[Carte_ArmeeRR (version beta) - Copie.xlsm]carte'!$DO$216"}]
[null,"Millau",{"$f":"CELL(\"address\",carte!DM221)","v":"'[Carte_ArmeeRR (version beta) - Copie.xlsm]carte'!$DM$221"}]
[null,"Rodez",{"$f":"CELL(\"address\",carte!DK216)","v":"'[Carte_ArmeeRR (version beta) - Copie.xlsm]carte'!$DK$216"}]
[null,"Villefranche-de-Rouergue",{"$f":"CELL(\"address\",carte!DF216)","v":"'[Carte_ArmeeRR (version beta) - Copie.xlsm]carte'!$DF$216"}]
[null,"Albi",{"$f":"CELL(\"address\",carte!DF221)","v":"'[Carte_ArmeeRR (version beta) - Copie.xlsm]carte'!$DF$221"}]
[null,"Castelnaudary",{"$f":"CELL(\"address\",carte!DC232)","v":"'[Carte_ArmeeRR (version beta) - Copie.xlsm]carte'!$DC$232"}]
[null,"Castres",{"$f":"CELL(\"address\",carte!DG228)","v":"'[Carte_ArmeeRR (version beta) - Copie.xlsm]carte'!$DG$228"}]
[null,"Foix",{"$f":"CELL(\"address\",carte!DB237)","v":"'[Carte_ArmeeRR (version beta) - Copie.xlsm]carte'!$DB$237"}]
[null,"Toulouse",{"$f":"CELL(\"address\",carte!DA227)","v":"'[Carte_ArmeeRR (version beta) - Copie.xlsm]carte'!$DA$227"}]
[null,"Alais",{"$f":"CELL(\"address\",carte!DW222)","v":"'[Carte_ArmeeRR (version beta) - Copie.xlsm]carte'!$DW$222"}]
[null,"Béziers",{"$f":"CELL(\"address\",carte!DQ234)","v":"'[Carte_ArmeeRR (version beta) - Copie.xlsm]carte'!$DQ$234"}]
[null,"Carcassonne",{"$f":"CELL(\"address\",carte!DI236)","v":"'[Carte_ArmeeRR (version beta) - Copie.xlsm]carte'!$DI$236"}]
[null,"Lodève",{"$f":"CELL(\"address\",carte!DQ227)","v":"'[Carte_ArmeeRR (version beta) - Copie.xlsm]carte'!$DQ$227"}]
[null,"Mende",{"$f":"CELL(\"address\",carte!DT215)","v":"'[Carte_ArmeeRR (version beta) - Copie.xlsm]carte'!$DT$215"}]
[null,"Montpellier",{"$f":"CELL(\"address\",carte!DU231)","v":"'[Carte_ArmeeRR (version beta) - Copie.xlsm]carte'!$DU$231"},null,{"$f":"CELL(\"address\",carte!X115:X116)","v":"'[Carte_ArmeeRR (version beta) - Copie.xlsm]carte'!$X$115"}]
[null,"Narbonne",{"$f":"CELL(\"address\",carte!DM235)","v":"'[Carte_ArmeeRR (version beta) - Copie.xlsm]carte'!$DM$235"}]
[null,"Nîmes",{"$f":"CELL(\"address\",carte!DY230)","v":"'[Carte_ArmeeRR (version beta) - Copie.xlsm]carte'!$DY$230"}]
[null,"Uzès",{"$f":"CELL(\"address\",carte!EA222)","v":"'[Carte_ArmeeRR (version beta) - Copie.xlsm]carte'!$EA$222"}]
[null,"Bourganeuf",{"$f":"CELL(\"address\",carte!DD197)","v":"'[Carte_ArmeeRR (version beta) - Copie.xlsm]carte'!$DD$197"}]
[null,"Guéret",{"$f":"CELL(\"address\",carte!DE193)","v":"'[Carte_ArmeeRR (version beta) - Copie.xlsm]carte'!$DE$193"}]
[null,"Limoges",{"$f":"CELL(\"address\",carte!CZ198)","v":"'[Carte_ArmeeRR (version beta) - Copie.xlsm]carte'!$CZ$198"}]
[null,"Rochechouart",{"$f":"CELL(\"address\",carte!CU198)","v":"'[Carte_ArmeeRR (version beta) - Copie.xlsm]carte'!$CU$198"}]
[null,"Tulle",{"$f":"CELL(\"address\",carte!DB204)","v":"'[Carte_ArmeeRR (version beta) - Copie.xlsm]carte'!$DB$204"}]
[null,"Ventadour",{"$f":"CELL(\"address\",carte!DI202)","v":"'[Carte_ArmeeRR (version beta) - Copie.xlsm]carte'!$DI$202"}]
[null,"Laval",{"$f":"CELL(\"address\",carte!CK165)","v":"'[Carte_ArmeeRR (version beta) - Copie.xlsm]carte'!$CK$165"}]
[null,"Le Mans",{"$f":"CELL(\"address\",carte!CR165)","v":"'[Carte_ArmeeRR (version beta) - Copie.xlsm]carte'!$CR$165"}]
[null,"Mayenne",{"$f":"CELL(\"address\",carte!CN161)","v":"'[Carte_ArmeeRR (version beta) - Copie.xlsm]carte'!$CN$161"}]
[null,"Montmirail",{"$f":"CELL(\"address\",carte!CU166)","v":"'[Carte_ArmeeRR (version beta) - Copie.xlsm]carte'!$CU$166"}]
[null,"Angoulême",{"$f":"CELL(\"address\",carte!CP200)","v":"'[Carte_ArmeeRR (version beta) - Copie.xlsm]carte'!$CP$200"}]
[null,"Bergerac",{"$f":"CELL(\"address\",carte!CT210)","v":"'[Carte_ArmeeRR (version beta) - Copie.xlsm]carte'!$CT$210"}]
[null,"Castillon",{"$f":"CELL(\"address\",carte!CP210)","v":"'[Carte_ArmeeRR (version beta) - Copie.xlsm]carte'!$CP$210"}]
[null,"Périgueux",{"$f":"CELL(\"address\",carte!CV205)","v":"'[Carte_ArmeeRR (version beta) - Copie.xlsm]carte'!$CV$205"}]
[null,"Sarlat",{"$f":"CELL(\"address\",carte!CY210)","v":"'[Carte_ArmeeRR (version beta) - Copie.xlsm]carte'!$CY$210"}]
[null,"La Rochelle",{"$f":"CELL(\"address\",carte!CH191)","v":"'[Carte_ArmeeRR (version beta) - Copie.xlsm]carte'!$CH$191"}]
[null,"La Trémouille",{"$f":"CELL(\"address\",carte!CZ191)","v":"'[Carte_ArmeeRR (version beta) - Copie.xlsm]carte'!$CZ$191"}]
[null,"Niort",{"$f":"CELL(\"address\",carte!CM190)","v":"'[Carte_ArmeeRR (version beta) - Copie.xlsm]carte'!$CM$190"}]
[null,"Poitiers",{"$f":"CELL(\"address\",carte!CT187)","v":"'[Carte_ArmeeRR (version beta) - Copie.xlsm]carte'!$CT$187"}]
[null,"Saintes",{"$f":"CELL(\"address\",carte!$CK$198)","v":"'[Carte_ArmeeRR (version beta) - Copie.xlsm]carte'!$CK$198"}]
[null,"Thouars",{"$f":"CELL(\"address\",carte!$CP$183)","v":"'[Carte_ArmeeRR (version beta) - Copie.xlsm]carte'!$CP$183"}]
[null,"Alençon",{"$f":"CELL(\"address\",carte!$CS$161)","v":"'[Carte_ArmeeRR (version beta) - Copie.xlsm]carte'!$CS$161"}]
[null,"Argentan",{"$f":"CELL(\"address\",carte!$CT$157)","v":"'[Carte_ArmeeRR (version beta) - Copie.xlsm]carte'!$CT$157"}]
[null,"Mortagne",{"$f":"CELL(\"address\",carte!$CW$159)","v":"'[Carte_ArmeeRR (version beta) - Copie.xlsm]carte'!$CW$159"}]
[null,"Verneuil",{"$f":"CELL(\"address\",carte!$CX$157)","v":"'[Carte_ArmeeRR (version beta) - Copie.xlsm]carte'!$CX$157"}]
[null,"Angers",{"$f":"CELL(\"address\",carte!$CM$174)","v":"'[Carte_ArmeeRR (version beta) - Copie.xlsm]carte'!$CM$174"}]
[null,"Craon",{"$f":"CELL(\"address\",carte!$CK$168)","v":"'[Carte_ArmeeRR (version beta) - Copie.xlsm]carte'!$CK$168"}]
[null,"La Flêche",{"$f":"CELL(\"address\",carte!$CQ$171)","v":"'[Carte_ArmeeRR (version beta) - Copie.xlsm]carte'!$CQ$171"}]
[null,"Saumur",{"$f":"CELL(\"address\",carte!$CP$177)","v":"'[Carte_ArmeeRR (version beta) - Copie.xlsm]carte'!$CP$177"}]
[null,"Blois",{"$f":"CELL(\"address\",carte!$DC$171)","v":"'[Carte_ArmeeRR (version beta) - Copie.xlsm]carte'!$DC$171"}]
[null,"Gien",{"$f":"CELL(\"address\",carte!$DM$171)","v":"'[Carte_ArmeeRR (version beta) - Copie.xlsm]carte'!$DM$171"}]
[null,"Montargis",{"$f":"CELL(\"address\",carte!$DK$166)","v":"'[Carte_ArmeeRR (version beta) - Copie.xlsm]carte'!$DK$166"}]
[null,"Orléans",{"$f":"CELL(\"address\",carte!$DF$168)","v":"'[Carte_ArmeeRR (version beta) - Copie.xlsm]carte'!$DF$168"}]
[null,"Patay",{"$f":"CELL(\"address\",carte!$DC$165)","v":"'[Carte_ArmeeRR (version beta) - Copie.xlsm]carte'!$DC$165"}]
[null,"Autun",{"$f":"CELL(\"address\",carte!$DZ$182)","v":"'[Carte_ArmeeRR (version beta) - Copie.xlsm]carte'!$DZ$182"}]
[null,"Chalon",{"$f":"CELL(\"address\",carte!$ED$186)","v":"'[Carte_ArmeeRR (version beta) - Copie.xlsm]carte'!$ED$186"}]
[null,"Cosne",{"$f":"CELL(\"address\",carte!$DR$175)","v":"'[Carte_ArmeeRR (version beta) - Copie.xlsm]carte'!$DR$175"}]
[null,"Dijon",{"$f":"CELL(\"address\",carte!$EG$179)","v":"'[Carte_ArmeeRR (version beta) - Copie.xlsm]carte'!$EG$179"}]
[null,"Joinville",{"$f":"CELL(\"address\",carte!$EG$163)","v":"'[Carte_ArmeeRR (version beta) - Copie.xlsm]carte'!$EG$163"}]
[null,"Mâcon",{"$f":"CELL(\"address\",carte!$ED$192)","v":"'[Carte_ArmeeRR (version beta) - Copie.xlsm]carte'!$ED$192"}]
[null,"Nevers",{"$f":"CELL(\"address\",carte!$DQ$182)","v":"'[Carte_ArmeeRR (version beta) - Copie.xlsm]carte'!$DQ$182"}]
[null,"Sémur",{"$f":"CELL(\"address\",carte!$EC$175)","v":"'[Carte_ArmeeRR (version beta) - Copie.xlsm]carte'!$EC$175"}]
[null,"Tonnerre",{"$f":"CELL(\"address\",carte!$DX$171)","v":"'[Carte_ArmeeRR (version beta) - Copie.xlsm]carte'!$DX$171"}]
[null,"Brest",{"$f":"CELL(\"address\",carte!$BJ$155)","v":"'[Carte_ArmeeRR (version beta) - Copie.xlsm]carte'!$BJ$155"}]
[null,"Fougères",{"$f":"CELL(\"address\",carte!$CI$160)","v":"'[Carte_ArmeeRR (version beta) - Copie.xlsm]carte'!$CI$160"}]
[null,"Rennes",{"$f":"CELL(\"address\",carte!$CE$163)","v":"'[Carte_ArmeeRR (version beta) - Copie.xlsm]carte'!$CE$163"}]
[null,"Rieux",{"$f":"CELL(\"address\",carte!$CB$170)","v":"'[Carte_ArmeeRR (version beta) - Copie.xlsm]carte'!$CB$170"}]
[null,"Rohan",{"$f":"CELL(\"address\",carte!$BW$162)","v":"'[Carte_ArmeeRR (version beta) - Copie.xlsm]carte'!$BW$162"}]
[null,"Saint Pol de Léon",{"$f":"CELL(\"address\",carte!$BM$153)","v":"'[Carte_ArmeeRR (version beta) - Copie.xlsm]carte'!$BM$153"}]
[null,"Saint-Brieuc",{"$f":"CELL(\"address\",carte!$BW$156)","v":"'[Carte_ArmeeRR (version beta) - Copie.xlsm]carte'!$BW$156"}]
[null,"Tréguier",{"$f":"CELL(\"address\",carte!$BS$153)","v":"'[Carte_ArmeeRR (version beta) - Copie.xlsm]carte'!$BS$153"}]
[null,"Vannes",{"$f":"CELL(\"address\",carte!$BW$168)","v":"'[Carte_ArmeeRR (version beta) - Copie.xlsm]carte'!$BW$168"}]
[null,"Argonne",{"$f":"CELL(\"address\",carte!$EG$154)","v":"'[Carte_ArmeeRR (version beta) - Copie.xlsm]carte'!$EG$154"}]
[null,"Clermont",{"$f":"CELL(\"address\",carte!$DM$145)","v":"'[Carte_ArmeeRR (version beta) - Copie.xlsm]carte'!$DM$145"}]
[null,"Compiègne",{"$f":"CELL(\"address\",carte!$DR$146)","v":"'[Carte_ArmeeRR (version beta) - Copie.xlsm]carte'!$DR$146"}]
[null,"Conflans-lès-Sens",{"$f":"CELL(\"address\",carte!$DR$166)","v":"'[Carte_ArmeeRR (version beta) - Copie.xlsm]carte'!$DR$166"}]
[null,"Langres",{"$f":"CELL(\"address\",carte!$EH$173)","v":"'[Carte_ArmeeRR (version beta) - Copie.xlsm]carte'!$EH$173"}]
[null,"Reims",{"$f":"CELL(\"address\",carte!$EA$149)","v":"'[Carte_ArmeeRR (version beta) - Copie.xlsm]carte'!$EA$149"}]
[null,"Sainte-Menehould",{"$f":"CELL(\"address\",carte!$DU$153)","v":"'[Carte_ArmeeRR (version beta) - Copie.xlsm]carte'!$DU$153"}]
[null,"Troyes",{"$f":"CELL(\"address\",carte!$DX$164)","v":"'[Carte_ArmeeRR (version beta) - Copie.xlsm]carte'!$DX$164"}]
[null,"Varennes",{"$f":"CELL(\"address\",carte!$DX$144)","v":"'[Carte_ArmeeRR (version beta) - Copie.xlsm]carte'!$DX$144"}]
[null,"Bayonne",{"$f":"CELL(\"address\",carte!$CB$228)","v":"'[Carte_ArmeeRR (version beta) - Copie.xlsm]carte'!$CB$228"}]
[null,"Dax",{"$f":"CELL(\"address\",carte!$CF$226)","v":"'[Carte_ArmeeRR (version beta) - Copie.xlsm]carte'!$CF$226"}]
[null,"Labrit",{"$f":"CELL(\"address\",carte!$CK$221)","v":"'[Carte_ArmeeRR (version beta) - Copie.xlsm]carte'!$CK$221"}]
[null,"Mimizan",{"$f":"CELL(\"address\",carte!$CE$221)","v":"'[Carte_ArmeeRR (version beta) - Copie.xlsm]carte'!$CE$221"}]
[null,"Mont-de-Marsan",{"$f":"CELL(\"address\",carte!$CK$226)","v":"'[Carte_ArmeeRR (version beta) - Copie.xlsm]carte'!$CK$226"}]
[null,"Agen",{"$f":"CELL(\"address\",carte!$CV$218)","v":"'[Carte_ArmeeRR (version beta) - Copie.xlsm]carte'!$CV$218"}]
[null,"Bazas",{"$f":"CELL(\"address\",carte!$CM$215)","v":"'[Carte_ArmeeRR (version beta) - Copie.xlsm]carte'!$CM$215"}]
[null,"Blaye",{"$f":"CELL(\"address\",carte!$CL$206)","v":"'[Carte_ArmeeRR (version beta) - Copie.xlsm]carte'!$CL$206"}]
[null,"Bordeaux",{"$f":"CELL(\"address\",carte!$CK$210)","v":"'[Carte_ArmeeRR (version beta) - Copie.xlsm]carte'!$CK$210"}]
[null,"Cahors",{"$f":"CELL(\"address\",carte!$DB$214)","v":"'[Carte_ArmeeRR (version beta) - Copie.xlsm]carte'!$DB$214"}]
[null,"La Teste-de-Buch",{"$f":"CELL(\"address\",carte!$CG$214)","v":"'[Carte_ArmeeRR (version beta) - Copie.xlsm]carte'!$CG$214"}]
[null,"Marmande",{"$f":"CELL(\"address\",carte!$CR$216)","v":"'[Carte_ArmeeRR (version beta) - Copie.xlsm]carte'!$CR$216"}]
[null,"Montauban",{"$f":"CELL(\"address\",carte!$CZ$219)","v":"'[Carte_ArmeeRR (version beta) - Copie.xlsm]carte'!$CZ$219"}]
[null,"Avranches",{"$f":"CELL(\"address\",carte!$CI$156)","v":"'[Carte_ArmeeRR (version beta) - Copie.xlsm]carte'!$CI$156"}]
[null,"Bayeux",{"$f":"CELL(\"address\",carte!$CN$148)","v":"'[Carte_ArmeeRR (version beta) - Copie.xlsm]carte'!$CN$148"}]
[null,"Dieppe",{"$f":"CELL(\"address\",carte!$DB$140)","v":"'[Carte_ArmeeRR (version beta) - Copie.xlsm]carte'!$DB$140"}]
[null,"Fécamp",{"$f":"CELL(\"address\",carte!$CV$144)","v":"'[Carte_ArmeeRR (version beta) - Copie.xlsm]carte'!$CV$144"}]
[null,"Honfleur",{"$f":"CELL(\"address\",carte!$CU$147)","v":"'[Carte_ArmeeRR (version beta) - Copie.xlsm]carte'!$CU$147"}]
[null,"Lisieux",{"$f":"CELL(\"address\",carte!$CT$152)","v":"'[Carte_ArmeeRR (version beta) - Copie.xlsm]carte'!$CT$152"}]
[null,"Rouen",{"$f":"CELL(\"address\",carte!$DB$147)","v":"'[Carte_ArmeeRR (version beta) - Copie.xlsm]carte'!$DB$147"}]
[null,"Chinon",{"$f":"CELL(\"address\",carte!$CT$179)","v":"'[Carte_ArmeeRR (version beta) - Copie.xlsm]carte'!$CT$179"}]
[null,"Loches",{"$f":"CELL(\"address\",carte!$CX$179)","v":"'[Carte_ArmeeRR (version beta) - Copie.xlsm]carte'!$CX$179"}]
[null,"Tours",{"$f":"CELL(\"address\",carte!$CW$175)","v":"'[Carte_ArmeeRR (version beta) - Copie.xlsm]carte'!$CW$175"}]
[null,"Vendôme",{"$f":"CELL(\"address\",carte!$CX$168)","v":"'[Carte_ArmeeRR (version beta) - Copie.xlsm]carte'!$CX$168"}]
[null,"Bourges",{"$f":"CELL(\"address\",carte!$DH$182)","v":"'[Carte_ArmeeRR (version beta) - Copie.xlsm]carte'!$DH$182"}]
[null,"Châteauroux",{"$f":"CELL(\"address\",carte!$DD$187)","v":"'[Carte_ArmeeRR (version beta) - Copie.xlsm]carte'!$DD$187"}]
[null,"Saint-Aignan",{"$f":"CELL(\"address\",carte!$DC$181)","v":"'[Carte_ArmeeRR (version beta) - Copie.xlsm]carte'!$DC$181"}]
[null,"Sancerre",{"$f":"CELL(\"address\",carte!$DM$178)","v":"'[Carte_ArmeeRR (version beta) - Copie.xlsm]carte'!$DM$178"}]
[null,"Aurillac",{"$f":"CELL(\"address\",carte!$DJ$209)","v":"'[Carte_ArmeeRR (version beta) - Copie.xlsm]carte'!$DJ$209"}]
[null,"Bourbon",{"$f":"CELL(\"address\",carte!$DN$188)","v":"'[Carte_ArmeeRR (version beta) - Copie.xlsm]carte'!$DN$188"}]
[null,"Clermont",{"$f":"CELL(\"address\",carte!$DR$201)","v":"'[Carte_ArmeeRR (version beta) - Copie.xlsm]carte'!$DR$201"}]
[null,"Montbrisson",{"$f":"CELL(\"address\",carte!$DX$199)","v":"'[Carte_ArmeeRR (version beta) - Copie.xlsm]carte'!$DX$199"}]
[null,"Montluçon",{"$f":"CELL(\"address\",carte!$DM$194)","v":"'[Carte_ArmeeRR (version beta) - Copie.xlsm]carte'!$DM$194"}]
[null,"Montpensier",{"$f":"CELL(\"address\",carte!$DR$195)","v":"'[Carte_ArmeeRR (version beta) - Copie.xlsm]carte'!$DR$195"}]
[null,"Moulins",{"$f":"CELL(\"address\",carte!$DU$190)","v":"'[Carte_ArmeeRR (version beta) - Copie.xlsm]carte'!$DU$190"}]
[null,"Murat",{"$f":"CELL(\"address\",carte!$DO$206)","v":"'[Carte_ArmeeRR (version beta) - Copie.xlsm]carte'!$DO$206"}]
[null,"Polignac",{"$f":"CELL(\"address\",carte!$DT$206)","v":"'[Carte_ArmeeRR (version beta) - Copie.xlsm]carte'!$DT$206"}]
[null,"Thiers",{"$f":"CELL(\"address\",carte!$DV$198)","v":"'[Carte_ArmeeRR (version beta) - Copie.xlsm]carte'!$DV$198"}]
[null,"Briançon",{"$f":"CELL(\"address\",carte!$ET$209)","v":"'[Carte_ArmeeRR (version beta) - Copie.xlsm]carte'!$ET$209"}]
[null,"Dié",{"$f":"CELL(\"address\",carte!$EH$214)","v":"'[Carte_ArmeeRR (version beta) - Copie.xlsm]carte'!$EH$214"}]
[null,"Embrun",{"$f":"CELL(\"address\",carte!$ER$213)","v":"'[Carte_ArmeeRR (version beta) - Copie.xlsm]carte'!$ER$213"}]
[null,"Lyon",{"$f":"CELL(\"address\",carte!$ED$199)","v":"'[Carte_ArmeeRR (version beta) - Copie.xlsm]carte'!$ED$199"}]
[null,"Montélimar",{"$f":"CELL(\"address\",carte!$EB$215)","v":"'[Carte_ArmeeRR (version beta) - Copie.xlsm]carte'!$EB$215"}]
[null,"Valence",{"$f":"CELL(\"address\",carte!$EC$211)","v":"'[Carte_ArmeeRR (version beta) - Copie.xlsm]carte'!$EC$211"}]
[null,"Vienne",{"$f":"CELL(\"address\",carte!$EE$203)","v":"'[Carte_ArmeeRR (version beta) - Copie.xlsm]carte'!$EE$203"}]
[null,"Ansbach",{"$f":"CELL(\"address\",carte!$FW$150)","v":"'[Carte_ArmeeRR (version beta) - Copie.xlsm]carte'!$FW$150"}]
[null,"Eichstätt",{"$f":"CELL(\"address\",carte!$GA$153)","v":"'[Carte_ArmeeRR (version beta) - Copie.xlsm]carte'!$GA$153"}]
[null,"Nürnberg",{"$f":"CELL(\"address\",carte!$GA$146)","v":"'[Carte_ArmeeRR (version beta) - Copie.xlsm]carte'!$GA$146"}]
[null,"Rothenburg",{"$f":"CELL(\"address\",carte!$FT$148)","v":"'[Carte_ArmeeRR (version beta) - Copie.xlsm]carte'!$FT$148"}]
[null,"Schwäbisch Hall",{"$f":"CELL(\"address\",carte!$FP$151)","v":"'[Carte_ArmeeRR (version beta) - Copie.xlsm]carte'!$FP$151"}]
[null,"Aix",{"$f":"CELL(\"address\",carte!$EI$231)","v":"'[Carte_ArmeeRR (version beta) - Copie.xlsm]carte'!$EI$231"}]
[null,"Arles",{"$f":"CELL(\"address\",carte!$EB$233)","v":"'[Carte_ArmeeRR (version beta) - Copie.xlsm]carte'!$EB$233"}]
[null,"Brignoles",{"$f":"CELL(\"address\",carte!$EP$233)","v":"'[Carte_ArmeeRR (version beta) - Copie.xlsm]carte'!$EP$233"}]
[null,"Marseille",{"$f":"CELL(\"address\",carte!$EI$235)","v":"'[Carte_ArmeeRR (version beta) - Copie.xlsm]carte'!$EI$235"}]
[null,"Alessandria",{"$f":"CELL(\"address\",carte!$FI$211)","v":"'[Carte_ArmeeRR (version beta) - Copie.xlsm]carte'!$FI$211"}]
[null,"Como",{"$f":"CELL(\"address\",carte!$FM$198)","v":"'[Carte_ArmeeRR (version beta) - Copie.xlsm]carte'!$FM$198"}]
[null,"Fornovo",{"$f":"CELL(\"address\",carte!$FU$215)","v":"'[Carte_ArmeeRR (version beta) - Copie.xlsm]carte'!$FU$215"}]
[null,"Lodi",{"$f":"CELL(\"address\",carte!$FR$208)","v":"'[Carte_ArmeeRR (version beta) - Copie.xlsm]carte'!$FR$208"}]
[null,"Milano",{"$f":"CELL(\"address\",carte!$FN$201)","v":"'[Carte_ArmeeRR (version beta) - Copie.xlsm]carte'!$FN$201"}]
[null,"Novara",{"$f":"CELL(\"address\",carte!$FJ$204)","v":"'[Carte_ArmeeRR (version beta) - Copie.xlsm]carte'!$FJ$204"}]
[null,"Parma",{"$f":"CELL(\"address\",carte!$FW$212)","v":"'[Carte_ArmeeRR (version beta) - Copie.xlsm]carte'!$FW$212"}]
[null,"Pavia",{"$f":"CELL(\"address\",carte!$FM$207)","v":"'[Carte_ArmeeRR (version beta) - Copie.xlsm]carte'!$FM$207"}]
[null,"Piacenza",{"$f":"CELL(\"address\",carte!$FR$212)","v":"'[Carte_ArmeeRR (version beta) - Copie.xlsm]carte'!$FR$212"}]
[null,"Guastalla",{"$f":"CELL(\"address\",carte!$GA$211)","v":"'[Carte_ArmeeRR (version beta) - Copie.xlsm]carte'!$GA$211"}]
[null,"Mantua",{"$f":"CELL(\"address\",carte!$GB$207)","v":"'[Carte_ArmeeRR (version beta) - Copie.xlsm]carte'!$GB$207"}]
[null,"Massa",{"$f":"CELL(\"address\",carte!$FW$225)","v":"'[Carte_ArmeeRR (version beta) - Copie.xlsm]carte'!$FW$225"}]
[null,"Mirandola",{"$f":"CELL(\"address\",carte!$GD$212)","v":"'[Carte_ArmeeRR (version beta) - Copie.xlsm]carte'!$GD$212"}]
[null,"Modena",{"$f":"CELL(\"address\",carte!$GC$216)","v":"'[Carte_ArmeeRR (version beta) - Copie.xlsm]carte'!$GC$216"}]
[null,"Epinal",{"$f":"CELL(\"address\",carte!$ES$162)","v":"'[Carte_ArmeeRR (version beta) - Copie.xlsm]carte'!$ES$162"}]
[null,"Nancy",{"$f":"CELL(\"address\",carte!$EQ$156)","v":"'[Carte_ArmeeRR (version beta) - Copie.xlsm]carte'!$EQ$156"}]
[null,"Toul",{"$f":"CELL(\"address\",carte!$EO$157)","v":"'[Carte_ArmeeRR (version beta) - Copie.xlsm]carte'!$EO$157"}]
[null,"Vaudemont",{"$f":"CELL(\"address\",carte!$EP$160)","v":"'[Carte_ArmeeRR (version beta) - Copie.xlsm]carte'!$EP$160"}]
[null,"Annecy",{"$f":"CELL(\"address\",carte!$EO$199)","v":"'[Carte_ArmeeRR (version beta) - Copie.xlsm]carte'!$EO$199"}]
[null,"Belley",{"$f":"CELL(\"address\",carte!$EJ$198)","v":"'[Carte_ArmeeRR (version beta) - Copie.xlsm]carte'!$EJ$198"}]
[null,"Bourg",{"$f":"CELL(\"address\",carte!$EG$194)","v":"'[Carte_ArmeeRR (version beta) - Copie.xlsm]carte'!$EG$194"}]
[null,"Chambéry",{"$f":"CELL(\"address\",carte!$EK$201)","v":"'[Carte_ArmeeRR (version beta) - Copie.xlsm]carte'!$EK$201"}]
[null,"Amstetten",{"$f":"CELL(\"address\",carte!$HE$161)","v":"'[Carte_ArmeeRR (version beta) - Copie.xlsm]carte'!$HE$161"}]
[null,"Linz",{"$f":"CELL(\"address\",carte!$HA$159)","v":"'[Carte_ArmeeRR (version beta) - Copie.xlsm]carte'!$HA$159"}]
[null,"Mistelbach",{"$f":"CELL(\"address\",carte!$HQ$156)","v":"'[Carte_ArmeeRR (version beta) - Copie.xlsm]carte'!$HQ$156"}]
[null,"Ternitz",{"$f":"CELL(\"address\",carte!$HN$165)","v":"'[Carte_ArmeeRR (version beta) - Copie.xlsm]carte'!$HN$165"}]
[null,"Wien",{"$f":"CELL(\"address\",carte!$HO$159)","v":"'[Carte_ArmeeRR (version beta) - Copie.xlsm]carte'!$HO$159"}]
[null,"Dole",{"$f":"CELL(\"address\",carte!$EJ$183)","v":"'[Carte_ArmeeRR (version beta) - Copie.xlsm]carte'!$EJ$183"}]
[null,"Luxeuil",{"$f":"CELL(\"address\",carte!$EQ$173)","v":"'[Carte_ArmeeRR (version beta) - Copie.xlsm]carte'!$EQ$173"}]
[null,"Poligny",{"$f":"CELL(\"address\",carte!$EL$186)","v":"'[Carte_ArmeeRR (version beta) - Copie.xlsm]carte'!$EL$186"}]
[null,"Pontarlier",{"$f":"CELL(\"address\",carte!$EQ$184)","v":"'[Carte_ArmeeRR (version beta) - Copie.xlsm]carte'!$EQ$184"}]
[null,"Saint Claude",{"$f":"CELL(\"address\",carte!$EM$190)","v":"'[Carte_ArmeeRR (version beta) - Copie.xlsm]carte'!$EM$190"}]
[null,"Vesoul",{"$f":"CELL(\"address\",carte!$EN$177)","v":"'[Carte_ArmeeRR (version beta) - Copie.xlsm]carte'!$EN$177"}]
[null,"Aschaffenburg",{"$f":"CELL(\"address\",carte!FM140)","v":"'[Carte_ArmeeRR (version beta) - Copie.xlsm]carte'!$FM$140"}]
[null,"Bad Mergentheim",{"$f":"CELL(\"address\",carte!FP146)","v":"'[Carte_ArmeeRR (version beta) - Copie.xlsm]carte'!$FP$146"}]
[null,"Buchen",{"$f":"CELL(\"address\",carte!FL146)","v":"'[Carte_ArmeeRR (version beta) - Copie.xlsm]carte'!$FL$146"}]
[null,"Frankfurt",{"$f":"CELL(\"address\",carte!FI139)","v":"'[Carte_ArmeeRR (version beta) - Copie.xlsm]carte'!$FI$139"}]
[null,"Mainz",{"$f":"CELL(\"address\",carte!FE140)","v":"'[Carte_ArmeeRR (version beta) - Copie.xlsm]carte'!$FE$140"}]
[null,"Amsterdam"]
[null,"Haarlem",{"$f":"CELL(\"address\",carte!EC107)","v":"'[Carte_ArmeeRR (version beta) - Copie.xlsm]carte'!$EC$107"}]
[null,"Heusden",{"$f":"CELL(\"address\",carte!EF119)","v":"'[Carte_ArmeeRR (version beta) - Copie.xlsm]carte'!$EF$119"}]
[null,"Utrecht",{"$f":"CELL(\"address\",carte!EG113)","v":"'[Carte_ArmeeRR (version beta) - Copie.xlsm]carte'!$EG$113"}]
[null,"Augsburg",{"$f":"CELL(\"address\",carte!FZ162)","v":"'[Carte_ArmeeRR (version beta) - Copie.xlsm]carte'!$FZ$162"}]
[null,"Konstanz",{"$f":"CELL(\"address\",carte!FL172)","v":"'[Carte_ArmeeRR (version beta) - Copie.xlsm]carte'!$FL$172"}]
[null,"Lindau",{"$f":"CELL(\"address\",carte!FQ174)","v":"'[Carte_ArmeeRR (version beta) - Copie.xlsm]carte'!$FQ$174"}]
[null,"Memmingen",{"$f":"CELL(\"address\",carte!FT167)","v":"'[Carte_ArmeeRR (version beta) - Copie.xlsm]carte'!$FT$167"}]
[null,"Ravensburg",{"$f":"CELL(\"address\",carte!FP171)","v":"'[Carte_ArmeeRR (version beta) - Copie.xlsm]carte'!$FP$171"}]
[null,"Schaffhausen",{"$f":"CELL(\"address\",carte!FH172)","v":"'[Carte_ArmeeRR (version beta) - Copie.xlsm]carte'!$FH$172"}]
[null,"Esslingen",{"$f":"CELL(\"address\",carte!FN157)","v":"'[Carte_ArmeeRR (version beta) - Copie.xlsm]carte'!$FN$157"}]
[null,"Heilbronn",{"$f":"CELL(\"address\",carte!FK151)","v":"'[Carte_ArmeeRR (version beta) - Copie.xlsm]carte'!$FK$151"}]
[null,"Reutlingen",{"$f":"CELL(\"address\",carte!FL162)","v":"'[Carte_ArmeeRR (version beta) - Copie.xlsm]carte'!$FL$162"}]
[null,"Rottweil",{"$f":"CELL(\"address\",carte!FH165)","v":"'[Carte_ArmeeRR (version beta) - Copie.xlsm]carte'!$FH$165"}]
[null,"Stuttgart",{"$f":"CELL(\"address\",carte!FJ157)","v":"'[Carte_ArmeeRR (version beta) - Copie.xlsm]carte'!$FJ$157"}]
[null,"Ulm",{"$f":"CELL(\"address\",carte!FR162)","v":"'[Carte_ArmeeRR (version beta) - Copie.xlsm]carte'!$FR$162"}]
[null,"Zollern",{"$f":"CELL(\"address\",carte!FJ164)","v":"'[Carte_ArmeeRR (version beta) - Copie.xlsm]carte'!$FJ$164"}]
[null,"Zwiefalten",{"$f":"CELL(\"address\",carte!FO164)","v":"'[Carte_ArmeeRR (version beta) - Copie.xlsm]carte'!$FO$164"}]
[null,"Bruck an der Mur",{"$f":"CELL(\"address\",carte!HI172)","v":"'[Carte_ArmeeRR (version beta) - Copie.xlsm]carte'!$HI$172"}]
[null,"Graz",{"$f":"CELL(\"address\",carte!HJ178)","v":"'[Carte_ArmeeRR (version beta) - Copie.xlsm]carte'!$HJ$178"}]
[null,"Marburg an der Drau",{"$f":"CELL(\"address\",carte!HM184)","v":"'[Carte_ArmeeRR (version beta) - Copie.xlsm]carte'!$HM$184"}]
[null,"Rottenmann",{"$f":"CELL(\"address\",carte!HD170)","v":"'[Carte_ArmeeRR (version beta) - Copie.xlsm]carte'!$HD$170"}]
[null,"Deggendorf",{"$f":"CELL(\"address\",carte!GP154)","v":"'[Carte_ArmeeRR (version beta) - Copie.xlsm]carte'!$GP$154"}]
[null,"Freising",{"$f":"CELL(\"address\",carte!GG161)","v":"'[Carte_ArmeeRR (version beta) - Copie.xlsm]carte'!$GG$161"}]
[null,"Ingolstadt",{"$f":"CELL(\"address\",carte!GD156)","v":"'[Carte_ArmeeRR (version beta) - Copie.xlsm]carte'!$GD$156"}]
[null,"Landshut",{"$f":"CELL(\"address\",carte!GJ159)","v":"'[Carte_ArmeeRR (version beta) - Copie.xlsm]carte'!$GJ$159"}]
[null,"München",{"$f":"CELL(\"address\",carte!GE165)","v":"'[Carte_ArmeeRR (version beta) - Copie.xlsm]carte'!$GE$165"}]
[null,"Passau",{"$f":"CELL(\"address\",carte!GT157)","v":"'[Carte_ArmeeRR (version beta) - Copie.xlsm]carte'!$GT$157"}]
[null,"Regensburg",{"$f":"CELL(\"address\",carte!GI152)","v":"'[Carte_ArmeeRR (version beta) - Copie.xlsm]carte'!$GI$152"}]
[null,"Celje"]
[null,"Baden",{"$f":"CELL(\"address\",carte!FD157)","v":"'[Carte_ArmeeRR (version beta) - Copie.xlsm]carte'!$FD$157"}]
[null,"Freiburg",{"$f":"CELL(\"address\",carte!FB169)","v":"'[Carte_ArmeeRR (version beta) - Copie.xlsm]carte'!$FB$169"}]
[null,"Lörrach",{"$f":"CELL(\"address\",carte!FB174)","v":"'[Carte_ArmeeRR (version beta) - Copie.xlsm]carte'!$FB$174"}]
[null,"Offenburg",{"$f":"CELL(\"address\",carte!FB161)","v":"'[Carte_ArmeeRR (version beta) - Copie.xlsm]carte'!$FB$161"}]
[null,"Albenga",{"$f":"CELL(\"address\",carte!FD226)","v":"'[Carte_ArmeeRR (version beta) - Copie.xlsm]carte'!$FD$226"}]
[null,"Chiavari",{"$f":"CELL(\"address\",carte!FP220)","v":"'[Carte_ArmeeRR (version beta) - Copie.xlsm]carte'!$FP$220"}]
[null,"Genova",{"$f":"CELL(\"address\",carte!FK218)","v":"'[Carte_ArmeeRR (version beta) - Copie.xlsm]carte'!$FK$218"}]
[null,"La Spezia",{"$f":"CELL(\"address\",carte!FS223)","v":"'[Carte_ArmeeRR (version beta) - Copie.xlsm]carte'!$FS$223"}]
[null,"Savona",{"$f":"CELL(\"address\",carte!FG221)","v":"'[Carte_ArmeeRR (version beta) - Copie.xlsm]carte'!$FG$221"}]
[null,"Ventimiglia",{"$f":"CELL(\"address\",carte!EX229)","v":"'[Carte_ArmeeRR (version beta) - Copie.xlsm]carte'!$EX$229"}]
[null,"Grosseto"]
[null,"Orbetello"]
[null,"Santa Fiora"]
[null,"Siena"]
[null,"Arezzo",{"$f":"CELL(\"address\",carte!GL232)","v":"'[Carte_ArmeeRR (version beta) - Copie.xlsm]carte'!$GL$232"}]
[null,"Firenze",{"$f":"CELL(\"address\",carte!GG228)","v":"'[Carte_ArmeeRR (version beta) - Copie.xlsm]carte'!$GG$228"}]
[null,"Livorno",{"$f":"CELL(\"address\",carte!FZ232)","v":"'[Carte_ArmeeRR (version beta) - Copie.xlsm]carte'!$FZ$232"}]
[null,"Montepulciano",{"$f":"CELL(\"address\",carte!GL236)","v":"'[Carte_ArmeeRR (version beta) - Copie.xlsm]carte'!$GL$236"}]
[null,"Montevarchi",{"$f":"CELL(\"address\",carte!GJ231)","v":"'[Carte_ArmeeRR (version beta) - Copie.xlsm]carte'!$GJ$231"}]
[null,"Piombino",{"$f":"CELL(\"address\",carte!GA238)","v":"'[Carte_ArmeeRR (version beta) - Copie.xlsm]carte'!$GA$238"}]
[null,"Pisa",{"$f":"CELL(\"address\",carte!FY229)","v":"'[Carte_ArmeeRR (version beta) - Copie.xlsm]carte'!$FY$229"}]
[null,"Pistoia",{"$f":"CELL(\"address\",carte!GD225)","v":"'[Carte_ArmeeRR (version beta) - Copie.xlsm]carte'!$GD$225"}]
[null,"San Miniato",{"$f":"CELL(\"address\",carte!GC228)","v":"'[Carte_ArmeeRR (version beta) - Copie.xlsm]carte'!$GC$228"}]
[null,"Volterra",{"$f":"CELL(\"address\",carte!GC232)","v":"'[Carte_ArmeeRR (version beta) - Copie.xlsm]carte'!$GC$232"}]
[null,"Fribourg",{"$f":"CELL(\"address\",carte!EV186)","v":"'[Carte_ArmeeRR (version beta) - Copie.xlsm]carte'!$EV$186"}]
[null,"Grandson",{"$f":"CELL(\"address\",carte!ER187)","v":"'[Carte_ArmeeRR (version beta) - Copie.xlsm]carte'!$ER$187"}]
[null,"Luzern",{"$f":"CELL(\"address\",carte!FF182)","v":"'[Carte_ArmeeRR (version beta) - Copie.xlsm]carte'!$FF$182"}]
[null,"Schwyz",{"$f":"CELL(\"address\",carte!FJ182)","v":"'[Carte_ArmeeRR (version beta) - Copie.xlsm]carte'!$FJ$182"}]
[null,"Sion",{"$f":"CELL(\"address\",carte!EW192)","v":"'[Carte_ArmeeRR (version beta) - Copie.xlsm]carte'!$EW$192"}]
[null,"Solothurn",{"$f":"CELL(\"address\",carte!FB179)","v":"'[Carte_ArmeeRR (version beta) - Copie.xlsm]carte'!$FB$179"}]
[null,"Genève",{"$f":"CELL(\"address\",carte!EN195)","v":"'[Carte_ArmeeRR (version beta) - Copie.xlsm]carte'!$EN$195"}]
[null,"Leiden"]
[null,"Rotterdam",{"$f":"CELL(\"address\",carte!EB116)","v":"'[Carte_ArmeeRR (version beta) - Copie.xlsm]carte'!$EB$116"}]
[null,"Padova"]
[null,"Parenzo"]
[null,"Pola"]
[null,"Portogruaro"]
[null,"Treviso"]
[null,"Udine"]
[null,"Venezia"]
[null,"Verona"]
[null,"Brno"]